Workbook

Sheet CET_Kategorie
B1: idKategoria | C1: idRodzic | D1: nazwa
B2: 0.9 | C2: 0 | D2: CET – KABLE I PRZEWODY
B3: 9.0 | C3: 0.9 | D3: PRZEWODY WSPÓŁOSIOWE (KONCENTRYCZNE) WIELKIEJ CZĘSTOTLIWOŚCI (KC)
B4: 9.1 | C4: 0.9 | D4: PRZEWODY TELEINFORMATYCZNE (TI)
B5: 9.2 | C5: 0.9 | D5: KABLE TELEKOMUNIKACYJNE STACYJNE (TK05; TK08)
B6: 9.3 | C6: 0.9 | D6: PRZEWODY TELEKOMUNIKACYJNE – MONTAŻOWE (TD)
B7: 9.4 | C7: 0.9 | D7: PRZEWODY GŁOŚNIKOWE (GŁ)
B8: 9.5 | C8: 0.9 | D8: PRZEWODY MIKROFONOWE (MI)
B9: 9.6 | C9: 0.9 | D9: PRZEWODY OPONOWE, MIESZKANIOWE I WARSZTATOWE (wszystkie OP; OPP; WP)
B10: 9.7 | C10: 0.9 | D10: PRZEWODY ELEKTROINSTALACYJNE – LINKOWE (EE)
B11: 9.8 | C11: 0.9 | D11: PRZEWODY ELEKTROINSTALACYJNE – JEDNODRUTOWE (wszystkie DY)
B12: 9.9 | C12: 0.9 | D12: PRZEWODY PRZYŁĄCZENIOWE (SP)
B13: 9.10 | C13: 0.9 | D13: PRZEWODY STEROWNICZE CETRONIC (STER300; STER500)
B14: 9.11 | C14: 0.9 | D14: KABLE SYGNALIZACYJNE (SYGN)
B15: 9.12 | C15: 0.9 | D15: PRZEWODY SAMOCHODOWE
B16: 9.13 | C16: 0.9 | D16: KABLE FOTOWOLTAICZNE SOLARCET (SOL)
B17: 0.10 | C17: 0.10 | D17: MATEC – ELEKTRYCZNE SYSTEMY GRZEJNE
B18: 10.0 | C18: 0.10 | D18: Ogrzewanie podłogowe – regulatory temperatury
B19: 10.1 | C19: 0.10 | D19: Ogrzewanie podłogowe – maty i folie grzejne
B20: 10.2 | C20: 0.10 | D20: Ogrzewanie podłogowe – zestawy ogrzewania podłogowego
B21: 10.3 | C21: 0.10 | D21: Systemy antyoblodzeniowe stałooporowe – GPRN
B22: 10.4 | C22: 0.10 | D22: Systemy antyoblodzeniowe stałooporowe – GPRU
B23: 10.5 | C23: 0.10 | D23: Systemy antyoblodzeniowe stałooporowa – GPSY
B24: 10.6 | C24: 0.10 | D24: Systemy antyoblodzeniowe stałooporowe – GMPD
B25: 10.7 | C25: 0.10 | D25: Systemy antyoblodzeniowe – sterowanie
B26: 10.8 | C26: 0.10 | D26: Systemy antyoblodzeniowe – akcesoria
B27: 10.9 | C27: 0.10 | D27: Systemy antyoblodzeniowe samoregulujące – GP-SR
B28: 10.10 | C28: 0.10 | D28: Mobilne Systemy Antyoblodzeniowe
C29: Stan Dostępności | D29: Opis
C30: A | D30: Towar dostepny od ręki
C31: B | D31: Towar dostępny w ciągu 2 dni roboczyć
C32: C | D32: Towar dostępny w ciągu 6 dni roboczych
C33: D | D33: Towar dostępny na zamówienie (bez prawa zwrotu)
C34: E | D34: Towar dostępny do wyczerpania zapasów (bez prawa zwrotu)

Sheet CET cennik 01 02 2026 wer SHE
A1: ID | B1: ID wariant | C1: GTIN | D1: SYMBOL | E1: NAZWA | F1: JEDN PODST. | G1: St. Dostarczenia | H1: ILOŚĆ | I1: CENA JEDNOST. NETTO | J1: WALUTA | K1: PODATEK VAT | L1: KGO | M1: ILOŚĆ W OPAKOWANIU | N1: GRUPA BONUSOWA | O1: GRUPA RABATOWA | P1: ID KATEGORIA | Q1: PKWIU | R1: KOD TARYFY CELNEJ | S1: KLASA ETIM | T1: KOLOR | U1: WAGA netto [kg] | V1: WAGA BRUTTO KG / 1km | W1: DŁUGOŚĆ {M} | X1: SZEROKOŚĆ {M} | Y1: WYSOKOŚĆ {M}
A2: KAB10000985 | B2: KAB10000985-0100 | C2: 5901181014181 | D2: DY 0,50 300/500 BIAŁY | E2: Przewód elektroinstalacyjny, jednodrutowy DY 0,50 300/500 BIAŁY | F2: km | H2: 1 | I2: =VLOOKUP(A2,'CET uproszczony 01 02 2026'!$B$4:$G$747,6,0) -> 611.00 zł | J2: PLN | K2: 23% | M2: 100 | N2: CET | O2: DYDYC | P2: 9.8 | Q2: 27.32.13.0 | R2: 85444995 | S2: EC000993 | T2: BIAŁY | U2: 7.95
A3: KAB10000985 | B3: KAB10000985-0200 | C3: 5901181011579 | D3: DY 0,50 300/500 BIAŁY | E3: Przewód elektroinstalacyjny, jednodrutowy DY 0,50 300/500 BIAŁY | F3: km | H3: 1 | I3: =VLOOKUP(A3,'CET uproszczony 01 02 2026'!$B$4:$G$747,6,0) -> 611.00 zł | J3: PLN | K3: 23% | M3: 200 | N3: CET | O3: DYDYC | P3: 9.8 | Q3: 27.32.13.0 | R3: 85444995 | S3: EC000993 | T3: BIAŁY | U3: 7.95
A4: KAB10000985 | B4: KAB10000985-0500 | C4: 5901181011586 | D4: DY 0,50 300/500 BIAŁY | E4: Przewód elektroinstalacyjny, jednodrutowy DY 0,50 300/500 BIAŁY | F4: km | H4: 1 | I4: =VLOOKUP(A4,'CET uproszczony 01 02 2026'!$B$4:$G$747,6,0) -> 611.00 zł | J4: PLN | K4: 23% | M4: 500 | N4: CET | O4: DYDYC | P4: 9.8 | Q4: 27.32.13.0 | R4: 85444995 | S4: EC000993 | T4: BIAŁY | U4: 7.95
A5: KAB10000985 | B5: KAB10000985-1000 | C5: 5903669494027 | D5: DY 0,50 300/500 BIAŁY | E5: Przewód elektroinstalacyjny, jednodrutowy DY 0,50 300/500 BIAŁY | F5: km | H5: 1 | I5: =VLOOKUP(A5,'CET uproszczony 01 02 2026'!$B$4:$G$747,6,0) -> 611.00 zł | J5: PLN | K5: 23% | M5: 1000 | N5: CET | O5: DYDYC | P5: 9.8 | Q5: 27.32.13.0 | R5: 85444995 | S5: EC000993 | T5: BIAŁY | U5: 7.95
A6: KAB10000985 | B6: KAB10000985-5000 | C6: 5903669494034 | D6: DY 0,50 300/500 BIAŁY | E6: Przewód elektroinstalacyjny, jednodrutowy DY 0,50 300/500 BIAŁY | F6: km | H6: 1 | I6: =VLOOKUP(A6,'CET uproszczony 01 02 2026'!$B$4:$G$747,6,0) -> 611.00 zł | J6: PLN | K6: 23% | M6: 5000 | N6: CET | O6: DYDYC | P6: 9.8 | Q6: 27.32.13.0 | R6: 85444995 | S6: EC000993 | T6: BIAŁY | U6: 7.95
A7: KAB10000986 | B7: KAB10000986-0100 | C7: 5901181015515 | D7: DY 0,50 300/500 BRĄZOWY | E7: Przewód elektroinstalacyjny, jednodrutowy DY 0,50 300/500 BRĄZOWY | F7: km | H7: 1 | I7: =VLOOKUP(A7,'CET uproszczony 01 02 2026'!$B$4:$G$747,6,0) -> 611.00 zł | J7: PLN | K7: 23% | M7: 100 | N7: CET | O7: DYDYC | P7: 9.8 | Q7: 27.32.13.0 | R7: 85444995 | S7: EC000993 | T7: BRĄZOWY | U7: 7.95
A8: KAB10000986 | B8: KAB10000986-0500 | C8: 5903669494041 | D8: DY 0,50 300/500 BRĄZOWY | E8: Przewód elektroinstalacyjny, jednodrutowy DY 0,50 300/500 BRĄZOWY | F8: km | H8: 1 | I8: =VLOOKUP(A8,'CET uproszczony 01 02 2026'!$B$4:$G$747,6,0) -> 611.00 zł | J8: PLN | K8: 23% | M8: 500 | N8: CET | O8: DYDYC | P8: 9.8 | Q8: 27.32.13.0 | R8: 85444995 | S8: EC000993 | T8: BRĄZOWY | U8: 7.95
A9: KAB10000986 | B9: KAB10000986-1000 | C9: 5903669494058 | D9: DY 0,50 300/500 BRĄZOWY | E9: Przewód elektroinstalacyjny, jednodrutowy DY 0,50 300/500 BRĄZOWY | F9: km | H9: 1 | I9: =VLOOKUP(A9,'CET uproszczony 01 02 2026'!$B$4:$G$747,6,0) -> 611.00 zł | J9: PLN | K9: 23% | M9: 1000 | N9: CET | O9: DYDYC | P9: 9.8 | Q9: 27.32.13.0 | R9: 85444995 | S9: EC000993 | T9: BRĄZOWY | U9: 7.95
A10: KAB10000987 | B10: KAB10000987-0100 | C10: 5901181015522 | D10: DY 0,50 300/500 CZARNY | E10: Przewód elektroinstalacyjny, jednodrutowy DY 0,50 300/500 CZARNY | F10: km | H10: 1 | I10: =VLOOKUP(A10,'CET uproszczony 01 02 2026'!$B$4:$G$747,6,0) -> 611.00 zł | J10: PLN | K10: 23% | M10: 100 | N10: CET | O10: DYDYC | P10: 9.8 | Q10: 27.32.13.0 | R10: 85444995 | S10: EC000993 | T10: CZARNY | U10: 7.95
A11: KAB10000987 | B11: KAB10000987-0200 | C11: 5901181011838 | D11: DY 0,50 300/500 CZARNY | E11: Przewód elektroinstalacyjny, jednodrutowy DY 0,50 300/500 CZARNY | F11: km | H11: 1 | I11: =VLOOKUP(A11,'CET uproszczony 01 02 2026'!$B$4:$G$747,6,0) -> 611.00 zł | J11: PLN | K11: 23% | M11: 200 | N11: CET | O11: DYDYC | P11: 9.8 | Q11: 27.32.13.0 | R11: 85444995 | S11: EC000993 | T11: CZARNY | U11: 7.95
A12: KAB10000987 | B12: KAB10000987-0500 | C12: 5901181011593 | D12: DY 0,50 300/500 CZARNY | E12: Przewód elektroinstalacyjny, jednodrutowy DY 0,50 300/500 CZARNY | F12: km | H12: 1 | I12: =VLOOKUP(A12,'CET uproszczony 01 02 2026'!$B$4:$G$747,6,0) -> 611.00 zł | J12: PLN | K12: 23% | M12: 500 | N12: CET | O12: DYDYC | P12: 9.8 | Q12: 27.32.13.0 | R12: 85444995 | S12: EC000993 | T12: CZARNY | U12: 7.95
A13: KAB10000987 | B13: KAB10000987-1000 | C13: 5903669494065 | D13: DY 0,50 300/500 CZARNY | E13: Przewód elektroinstalacyjny, jednodrutowy DY 0,50 300/500 CZARNY | F13: km | H13: 1 | I13: =VLOOKUP(A13,'CET uproszczony 01 02 2026'!$B$4:$G$747,6,0) -> 611.00 zł | J13: PLN | K13: 23% | M13: 1000 | N13: CET | O13: DYDYC | P13: 9.8 | Q13: 27.32.13.0 | R13: 85444995 | S13: EC000993 | T13: CZARNY | U13: 7.95
A14: KAB10000988 | B14: KAB10000988-0100 | C14: 5901181016239 | D14: DY 0,50 300/500 CZERWONY | E14: Przewód elektroinstalacyjny, jednodrutowy DY 0,50 300/500 CZERWONY | F14: km | H14: 1 | I14: =VLOOKUP(A14,'CET uproszczony 01 02 2026'!$B$4:$G$747,6,0) -> 611.00 zł | J14: PLN | K14: 23% | M14: 100 | N14: CET | O14: DYDYC | P14: 9.8 | Q14: 27.32.13.0 | R14: 85444995 | S14: EC000993 | T14: CZERWONY | U14: 7.95
A15: KAB10000988 | B15: KAB10000988-0200 | C15: 5901181011609 | D15: DY 0,50 300/500 CZERWONY | E15: Przewód elektroinstalacyjny, jednodrutowy DY 0,50 300/500 CZERWONY | F15: km | H15: 1 | I15: =VLOOKUP(A15,'CET uproszczony 01 02 2026'!$B$4:$G$747,6,0) -> 611.00 zł | J15: PLN | K15: 23% | M15: 200 | N15: CET | O15: DYDYC | P15: 9.8 | Q15: 27.32.13.0 | R15: 85444995 | S15: EC000993 | T15: CZERWONY | U15: 7.95
A16: KAB10000988 | B16: KAB10000988-0500 | C16: 5901181011616 | D16: DY 0,50 300/500 CZERWONY | E16: Przewód elektroinstalacyjny, jednodrutowy DY 0,50 300/500 CZERWONY | F16: km | H16: 1 | I16: =VLOOKUP(A16,'CET uproszczony 01 02 2026'!$B$4:$G$747,6,0) -> 611.00 zł | J16: PLN | K16: 23% | M16: 500 | N16: CET | O16: DYDYC | P16: 9.8 | Q16: 27.32.13.0 | R16: 85444995 | S16: EC000993 | T16: CZERWONY | U16: 7.95
A17: KAB10000988 | B17: KAB10000988-1000 | C17: 5903669494072 | D17: DY 0,50 300/500 CZERWONY | E17: Przewód elektroinstalacyjny, jednodrutowy DY 0,50 300/500 CZERWONY | F17: km | H17: 1 | I17: =VLOOKUP(A17,'CET uproszczony 01 02 2026'!$B$4:$G$747,6,0) -> 611.00 zł | J17: PLN | K17: 23% | M17: 1000 | N17: CET | O17: DYDYC | P17: 9.8 | Q17: 27.32.13.0 | R17: 85444995 | S17: EC000993 | T17: CZERWONY | U17: 7.95
A18: KAB10000988 | B18: KAB10000988-5000 | C18: 5903669494089 | D18: DY 0,50 300/500 CZERWONY | E18: Przewód elektroinstalacyjny, jednodrutowy DY 0,50 300/500 CZERWONY | F18: km | H18: 1 | I18: =VLOOKUP(A18,'CET uproszczony 01 02 2026'!$B$4:$G$747,6,0) -> 611.00 zł | J18: PLN | K18: 23% | M18: 5000 | N18: CET | O18: DYDYC | P18: 9.8 | Q18: 27.32.13.0 | R18: 85444995 | S18: EC000993 | T18: CZERWONY | U18: 7.95
A19: KAB10000989 | B19: KAB10000989-0100 | C19: 5901181016222 | D19: DY 0,50 300/500 NIEBIESKI | E19: Przewód elektroinstalacyjny, jednodrutowy DY 0,50 300/500 NIEBIESKI | F19: km | H19: 1 | I19: =VLOOKUP(A19,'CET uproszczony 01 02 2026'!$B$4:$G$747,6,0) -> 611.00 zł | J19: PLN | K19: 23% | M19: 100 | N19: CET | O19: DYDYC | P19: 9.8 | Q19: 27.32.13.0 | R19: 85444995 | S19: EC000993 | T19: NIEBIESKI | U19: 7.95
A20: KAB10000989 | B20: KAB10000989-0200 | C20: 5901181011623 | D20: DY 0,50 300/500 NIEBIESKI | E20: Przewód elektroinstalacyjny, jednodrutowy DY 0,50 300/500 NIEBIESKI | F20: km | H20: 1 | I20: =VLOOKUP(A20,'CET uproszczony 01 02 2026'!$B$4:$G$747,6,0) -> 611.00 zł | J20: PLN | K20: 23% | M20: 200 | N20: CET | O20: DYDYC | P20: 9.8 | Q20: 27.32.13.0 | R20: 85444995 | S20: EC000993 | T20: NIEBIESKI | U20: 7.95
A21: KAB10000989 | B21: KAB10000989-0500 | C21: 5901181011647 | D21: DY 0,50 300/500 NIEBIESKI | E21: Przewód elektroinstalacyjny, jednodrutowy DY 0,50 300/500 NIEBIESKI | F21: km | H21: 1 | I21: =VLOOKUP(A21,'CET uproszczony 01 02 2026'!$B$4:$G$747,6,0) -> 611.00 zł | J21: PLN | K21: 23% | M21: 500 | N21: CET | O21: DYDYC | P21: 9.8 | Q21: 27.32.13.0 | R21: 85444995 | S21: EC000993 | T21: NIEBIESKI | U21: 7.95
A22: KAB10000989 | B22: KAB10000989-1000 | C22: 5903669494096 | D22: DY 0,50 300/500 NIEBIESKI | E22: Przewód elektroinstalacyjny, jednodrutowy DY 0,50 300/500 NIEBIESKI | F22: km | H22: 1 | I22: =VLOOKUP(A22,'CET uproszczony 01 02 2026'!$B$4:$G$747,6,0) -> 611.00 zł | J22: PLN | K22: 23% | M22: 1000 | N22: CET | O22: DYDYC | P22: 9.8 | Q22: 27.32.13.0 | R22: 85444995 | S22: EC000993 | T22: NIEBIESKI | U22: 7.95
A23: KAB10000989 | B23: KAB10000989-5000 | C23: 5903669494102 | D23: DY 0,50 300/500 NIEBIESKI | E23: Przewód elektroinstalacyjny, jednodrutowy DY 0,50 300/500 NIEBIESKI | F23: km | H23: 1 | I23: =VLOOKUP(A23,'CET uproszczony 01 02 2026'!$B$4:$G$747,6,0) -> 611.00 zł | J23: PLN | K23: 23% | M23: 5000 | N23: CET | O23: DYDYC | P23: 9.8 | Q23: 27.32.13.0 | R23: 85444995 | S23: EC000993 | T23: NIEBIESKI | U23: 7.95
A24: KAB10000990 | B24: KAB10000990-0100 | C24: 5901181013405 | D24: DY 0,50 300/500 ŻÓŁTO-ZIELONY | E24: Przewód elektroinstalacyjny, jednodrutowy DY 0,50 300/500 ŻÓŁTO-ZIELONY | F24: km | H24: 1 | I24: =VLOOKUP(A24,'CET uproszczony 01 02 2026'!$B$4:$G$747,6,0) -> 611.00 zł | J24: PLN | K24: 23% | M24: 100 | N24: CET | O24: DYDYC | P24: 9.8 | Q24: 27.32.13.0 | R24: 85444995 | S24: EC000993 | T24: ŻÓŁTO-ZIELONY | U24: 7.95
A25: KAB10000990 | B25: KAB10000990-0500 | C25: 5903669494119 | D25: DY 0,50 300/500 ŻÓŁTO-ZIELONY | E25: Przewód elektroinstalacyjny, jednodrutowy DY 0,50 300/500 ŻÓŁTO-ZIELONY | F25: km | H25: 1 | I25: =VLOOKUP(A25,'CET uproszczony 01 02 2026'!$B$4:$G$747,6,0) -> 611.00 zł | J25: PLN | K25: 23% | M25: 500 | N25: CET | O25: DYDYC | P25: 9.8 | Q25: 27.32.13.0 | R25: 85444995 | S25: EC000993 | T25: ŻÓŁTO-ZIELONY | U25: 7.95
A26: KAB10000990 | B26: KAB10000990-1000 | C26: 5903669494126 | D26: DY 0,50 300/500 ŻÓŁTO-ZIELONY | E26: Przewód elektroinstalacyjny, jednodrutowy DY 0,50 300/500 ŻÓŁTO-ZIELONY | F26: km | H26: 1 | I26: =VLOOKUP(A26,'CET uproszczony 01 02 2026'!$B$4:$G$747,6,0) -> 611.00 zł | J26: PLN | K26: 23% | M26: 1000 | N26: CET | O26: DYDYC | P26: 9.8 | Q26: 27.32.13.0 | R26: 85444995 | S26: EC000993 | T26: ŻÓŁTO-ZIELONY | U26: 7.95
A27: KAB10000990 | B27: KAB10000990-5000 | C27: 5903669494133 | D27: DY 0,50 300/500 ŻÓŁTO-ZIELONY | E27: Przewód elektroinstalacyjny, jednodrutowy DY 0,50 300/500 ŻÓŁTO-ZIELONY | F27: km | H27: 1 | I27: =VLOOKUP(A27,'CET uproszczony 01 02 2026'!$B$4:$G$747,6,0) -> 611.00 zł | J27: PLN | K27: 23% | M27: 5000 | N27: CET | O27: DYDYC | P27: 9.8 | Q27: 27.32.13.0 | R27: 85444995 | S27: EC000993 | T27: ŻÓŁTO-ZIELONY | U27: 7.95
A28: KAB10000009 | B28: KAB10000009-0100 | C28: 5901181011678 | D28: DY 0,75 300/500 BIAŁY | E28: Przewód elektroinstalacyjny, jednodrutowy DY 0,75 300/500 BIAŁY | F28: km | H28: 1 | I28: =VLOOKUP(A28,'CET uproszczony 01 02 2026'!$B$4:$G$747,6,0) -> 879.00 zł | J28: PLN | K28: 23% | M28: 100 | N28: CET | O28: DYDYC | P28: 9.8 | Q28: 27.32.13.0 | R28: 85444995 | S28: EC000993 | T28: BIAŁY | U28: 10.79
A29: KAB10000009 | B29: KAB10000009-0200 | C29: 5901181029208 | D29: DY 0,75 300/500 BIAŁY | E29: Przewód elektroinstalacyjny, jednodrutowy DY 0,75 300/500 BIAŁY | F29: km | H29: 1 | I29: =VLOOKUP(A29,'CET uproszczony 01 02 2026'!$B$4:$G$747,6,0) -> 879.00 zł | J29: PLN | K29: 23% | M29: 200 | N29: CET | O29: DYDYC | P29: 9.8 | Q29: 27.32.13.0 | R29: 85444995 | S29: EC000993 | T29: BIAŁY | U29: 10.79
A30: KAB10000009 | B30: KAB10000009-0500 | C30: 5901181011685 | D30: DY 0,75 300/500 BIAŁY | E30: Przewód elektroinstalacyjny, jednodrutowy DY 0,75 300/500 BIAŁY | F30: km | H30: 1 | I30: =VLOOKUP(A30,'CET uproszczony 01 02 2026'!$B$4:$G$747,6,0) -> 879.00 zł | J30: PLN | K30: 23% | M30: 500 | N30: CET | O30: DYDYC | P30: 9.8 | Q30: 27.32.13.0 | R30: 85444995 | S30: EC000993 | T30: BIAŁY | U30: 10.79
A31: KAB10000009 | B31: KAB10000009-1000 | C31: 5903669492740 | D31: DY 0,75 300/500 BIAŁY | E31: Przewód elektroinstalacyjny, jednodrutowy DY 0,75 300/500 BIAŁY | F31: km | H31: 1 | I31: =VLOOKUP(A31,'CET uproszczony 01 02 2026'!$B$4:$G$747,6,0) -> 879.00 zł | J31: PLN | K31: 23% | M31: 1000 | N31: CET | O31: DYDYC | P31: 9.8 | Q31: 27.32.13.0 | R31: 85444995 | S31: EC000993 | T31: BIAŁY | U31: 10.79
A32: KAB10000010 | B32: KAB10000010-0100 | C32: 5901181013313 | D32: DY 0,75 300/500 BRĄZOWY | E32: Przewód elektroinstalacyjny, jednodrutowy DY 0,75 300/500 BRĄZOWY | F32: km | H32: 1 | I32: =VLOOKUP(A32,'CET uproszczony 01 02 2026'!$B$4:$G$747,6,0) -> 879.00 zł | J32: PLN | K32: 23% | M32: 100 | N32: CET | O32: DYDYC | P32: 9.8 | Q32: 27.32.13.0 | R32: 85444995 | S32: EC000993 | T32: BRĄZOWY | U32: 10.79
A33: KAB10000010 | B33: KAB10000010-5000 | C33: 5903669492771 | D33: DY 0,75 300/500 BRĄZOWY | E33: Przewód elektroinstalacyjny, jednodrutowy DY 0,75 300/500 BRĄZOWY | F33: km | H33: 1 | I33: =VLOOKUP(A33,'CET uproszczony 01 02 2026'!$B$4:$G$747,6,0) -> 879.00 zł | J33: PLN | K33: 23% | M33: 5000 | N33: CET | O33: DYDYC | P33: 9.8 | Q33: 27.32.13.0 | R33: 85444995 | S33: EC000993 | T33: BRĄZOWY | U33: 10.79
A34: KAB10000010 | B34: KAB10000010-0500 | C34: 5903669492757 | D34: DY 0,75 300/500 BRĄZOWY | E34: Przewód elektroinstalacyjny, jednodrutowy DY 0,75 300/500 BRĄZOWY | F34: km | H34: 1 | I34: =VLOOKUP(A34,'CET uproszczony 01 02 2026'!$B$4:$G$747,6,0) -> 879.00 zł | J34: PLN | K34: 23% | M34: 500 | N34: CET | O34: DYDYC | P34: 9.8 | Q34: 27.32.13.0 | R34: 85444995 | S34: EC000993 | T34: BRĄZOWY | U34: 10.79
A35: KAB10000010 | B35: KAB10000010-1000 | C35: 5903669492764 | D35: DY 0,75 300/500 BRĄZOWY | E35: Przewód elektroinstalacyjny, jednodrutowy DY 0,75 300/500 BRĄZOWY | F35: km | H35: 1 | I35: =VLOOKUP(A35,'CET uproszczony 01 02 2026'!$B$4:$G$747,6,0) -> 879.00 zł | J35: PLN | K35: 23% | M35: 1000 | N35: CET | O35: DYDYC | P35: 9.8 | Q35: 27.32.13.0 | R35: 85444995 | S35: EC000993 | T35: BRĄZOWY | U35: 10.79
A36: KAB10000011 | B36: KAB10000011-0100 | C36: 5901181012514 | D36: DY 0,75 300/500 CZARNY | E36: Przewód elektroinstalacyjny, jednodrutowy DY 0,75 300/500 CZARNY | F36: km | H36: 1 | I36: =VLOOKUP(A36,'CET uproszczony 01 02 2026'!$B$4:$G$747,6,0) -> 879.00 zł | J36: PLN | K36: 23% | M36: 100 | N36: CET | O36: DYDYC | P36: 9.8 | Q36: 27.32.13.0 | R36: 85444995 | S36: EC000993 | T36: CZARNY | U36: 10.79
A37: KAB10000011 | B37: KAB10000011-5000 | C37: 5903669492801 | D37: DY 0,75 300/500 CZARNY | E37: Przewód elektroinstalacyjny, jednodrutowy DY 0,75 300/500 CZARNY | F37: km | H37: 1 | I37: =VLOOKUP(A37,'CET uproszczony 01 02 2026'!$B$4:$G$747,6,0) -> 879.00 zł | J37: PLN | K37: 23% | M37: 5000 | N37: CET | O37: DYDYC | P37: 9.8 | Q37: 27.32.13.0 | R37: 85444995 | S37: EC000993 | T37: CZARNY | U37: 10.79
A38: KAB10000011 | B38: KAB10000011-0500 | C38: 5903669492788 | D38: DY 0,75 300/500 CZARNY | E38: Przewód elektroinstalacyjny, jednodrutowy DY 0,75 300/500 CZARNY | F38: km | H38: 1 | I38: =VLOOKUP(A38,'CET uproszczony 01 02 2026'!$B$4:$G$747,6,0) -> 879.00 zł | J38: PLN | K38: 23% | M38: 500 | N38: CET | O38: DYDYC | P38: 9.8 | Q38: 27.32.13.0 | R38: 85444995 | S38: EC000993 | T38: CZARNY | U38: 10.79
A39: KAB10000011 | B39: KAB10000011-1000 | C39: 5903669492795 | D39: DY 0,75 300/500 CZARNY | E39: Przewód elektroinstalacyjny, jednodrutowy DY 0,75 300/500 CZARNY | F39: km | H39: 1 | I39: =VLOOKUP(A39,'CET uproszczony 01 02 2026'!$B$4:$G$747,6,0) -> 879.00 zł | J39: PLN | K39: 23% | M39: 1000 | N39: CET | O39: DYDYC | P39: 9.8 | Q39: 27.32.13.0 | R39: 85444995 | S39: EC000993 | T39: CZARNY | U39: 10.79
A40: KAB10000012 | B40: KAB10000012-0100 | C40: 5901181024593 | D40: DY 0,75 300/500 CZERWONY | E40: Przewód elektroinstalacyjny, jednodrutowy DY 0,75 300/500 CZERWONY | F40: km | H40: 1 | I40: =VLOOKUP(A40,'CET uproszczony 01 02 2026'!$B$4:$G$747,6,0) -> 879.00 zł | J40: PLN | K40: 23% | M40: 100 | N40: CET | O40: DYDYC | P40: 9.8 | Q40: 27.32.13.0 | R40: 85444995 | S40: EC000993 | T40: CZERWONY | U40: 10.79
A41: KAB10000012 | B41: KAB10000012-1000 | C41: 5903669492825 | D41: DY 0,75 300/500 CZERWONY | E41: Przewód elektroinstalacyjny, jednodrutowy DY 0,75 300/500 CZERWONY | F41: km | H41: 1 | I41: =VLOOKUP(A41,'CET uproszczony 01 02 2026'!$B$4:$G$747,6,0) -> 879.00 zł | J41: PLN | K41: 23% | M41: 1000 | N41: CET | O41: DYDYC | P41: 9.8 | Q41: 27.32.13.0 | R41: 85444995 | S41: EC000993 | T41: CZERWONY | U41: 10.79
A42: KAB10000012 | B42: KAB10000012-0500 | C42: 5903669492818 | D42: DY 0,75 300/500 CZERWONY | E42: Przewód elektroinstalacyjny, jednodrutowy DY 0,75 300/500 CZERWONY | F42: km | H42: 1 | I42: =VLOOKUP(A42,'CET uproszczony 01 02 2026'!$B$4:$G$747,6,0) -> 879.00 zł | J42: PLN | K42: 23% | M42: 500 | N42: CET | O42: DYDYC | P42: 9.8 | Q42: 27.32.13.0 | R42: 85444995 | S42: EC000993 | T42: CZERWONY | U42: 10.79
A43: KAB10000013 | B43: KAB10000013-0100 | C43: 5901181012507 | D43: DY 0,75 300/500 NIEBIESKI | E43: Przewód elektroinstalacyjny, jednodrutowy DY 0,75 300/500 NIEBIESKI | F43: km | H43: 1 | I43: =VLOOKUP(A43,'CET uproszczony 01 02 2026'!$B$4:$G$747,6,0) -> 879.00 zł | J43: PLN | K43: 23% | M43: 100 | N43: CET | O43: DYDYC | P43: 9.8 | Q43: 27.32.13.0 | R43: 85444995 | S43: EC000993 | T43: NIEBIESKI | U43: 10.79
A44: KAB10000013 | B44: KAB10000013-5000 | C44: 5903669492856 | D44: DY 0,75 300/500 NIEBIESKI | E44: Przewód elektroinstalacyjny, jednodrutowy DY 0,75 300/500 NIEBIESKI | F44: km | H44: 1 | I44: =VLOOKUP(A44,'CET uproszczony 01 02 2026'!$B$4:$G$747,6,0) -> 879.00 zł | J44: PLN | K44: 23% | M44: 5000 | N44: CET | O44: DYDYC | P44: 9.8 | Q44: 27.32.13.0 | R44: 85444995 | S44: EC000993 | T44: NIEBIESKI | U44: 10.79
A45: KAB10000013 | B45: KAB10000013-0500 | C45: 5903669492832 | D45: DY 0,75 300/500 NIEBIESKI | E45: Przewód elektroinstalacyjny, jednodrutowy DY 0,75 300/500 NIEBIESKI | F45: km | H45: 1 | I45: =VLOOKUP(A45,'CET uproszczony 01 02 2026'!$B$4:$G$747,6,0) -> 879.00 zł | J45: PLN | K45: 23% | M45: 500 | N45: CET | O45: DYDYC | P45: 9.8 | Q45: 27.32.13.0 | R45: 85444995 | S45: EC000993 | T45: NIEBIESKI | U45: 10.79
A46: KAB10000013 | B46: KAB10000013-1000 | C46: 5903669492849 | D46: DY 0,75 300/500 NIEBIESKI | E46: Przewód elektroinstalacyjny, jednodrutowy DY 0,75 300/500 NIEBIESKI | F46: km | H46: 1 | I46: =VLOOKUP(A46,'CET uproszczony 01 02 2026'!$B$4:$G$747,6,0) -> 879.00 zł | J46: PLN | K46: 23% | M46: 1000 | N46: CET | O46: DYDYC | P46: 9.8 | Q46: 27.32.13.0 | R46: 85444995 | S46: EC000993 | T46: NIEBIESKI | U46: 10.79
A47: KAB10000014 | B47: KAB10000014-0100 | C47: 5901181013672 | D47: DY 0,75 300/500 ŻÓŁTO-ZIELONY | E47: Przewód elektroinstalacyjny, jednodrutowy DY 0,75 300/500 ŻÓŁTO-ZIELONY | F47: km | H47: 1 | I47: =VLOOKUP(A47,'CET uproszczony 01 02 2026'!$B$4:$G$747,6,0) -> 879.00 zł | J47: PLN | K47: 23% | M47: 100 | N47: CET | O47: DYDYC | P47: 9.8 | Q47: 27.32.13.0 | R47: 85444995 | S47: EC000993 | T47: ŻÓŁTO-ZIELONY | U47: 10.79
A48: KAB10000014 | B48: KAB10000014-5000 | C48: 5901181031966 | D48: DY 0,75 300/500 ŻÓŁTO-ZIELONY | E48: Przewód elektroinstalacyjny, jednodrutowy DY 0,75 300/500 ŻÓŁTO-ZIELONY | F48: km | H48: 1 | I48: =VLOOKUP(A48,'CET uproszczony 01 02 2026'!$B$4:$G$747,6,0) -> 879.00 zł | J48: PLN | K48: 23% | M48: 5000 | N48: CET | O48: DYDYC | P48: 9.8 | Q48: 27.32.13.0 | R48: 85444995 | S48: EC000993 | T48: ŻÓŁTO-ZIELONY | U48: 10.79
A49: KAB10000014 | B49: KAB10000014-0500 | C49: 5903669492863 | D49: DY 0,75 300/500 ŻÓŁTO-ZIELONY | E49: Przewód elektroinstalacyjny, jednodrutowy DY 0,75 300/500 ŻÓŁTO-ZIELONY | F49: km | H49: 1 | I49: =VLOOKUP(A49,'CET uproszczony 01 02 2026'!$B$4:$G$747,6,0) -> 879.00 zł | J49: PLN | K49: 23% | M49: 500 | N49: CET | O49: DYDYC | P49: 9.8 | Q49: 27.32.13.0 | R49: 85444995 | S49: EC000993 | T49: ŻÓŁTO-ZIELONY | U49: 10.79
A50: KAB10000014 | B50: KAB10000014-1000 | C50: 5903669492870 | D50: DY 0,75 300/500 ŻÓŁTO-ZIELONY | E50: Przewód elektroinstalacyjny, jednodrutowy DY 0,75 300/500 ŻÓŁTO-ZIELONY | F50: km | H50: 1 | I50: =VLOOKUP(A50,'CET uproszczony 01 02 2026'!$B$4:$G$747,6,0) -> 879.00 zł | J50: PLN | K50: 23% | M50: 1000 | N50: CET | O50: DYDYC | P50: 9.8 | Q50: 27.32.13.0 | R50: 85444995 | S50: EC000993 | T50: ŻÓŁTO-ZIELONY | U50: 10.79
A51: KAB10000015 | B51: KAB10000015-0100 | C51: 5901181013023 | D51: DY 1,00 300/500 BIAŁY | E51: Przewód elektroinstalacyjny, jednodrutowy DY 1,00 300/500 BIAŁY | F51: km | H51: 1 | I51: =VLOOKUP(A51,'CET uproszczony 01 02 2026'!$B$4:$G$747,6,0) -> 1,047.00 zł | J51: PLN | K51: 23% | M51: 100 | N51: CET | O51: DYDYC | P51: 9.8 | Q51: 27.32.13.0 | R51: 85444995 | S51: EC000993 | T51: BIAŁY | U51: 13.19
A52: KAB10000015 | B52: KAB10000015-0500 | C52: 5903669492887 | D52: DY 1,00 300/500 BIAŁY | E52: Przewód elektroinstalacyjny, jednodrutowy DY 1,00 300/500 BIAŁY | F52: km | H52: 1 | I52: =VLOOKUP(A52,'CET uproszczony 01 02 2026'!$B$4:$G$747,6,0) -> 1,047.00 zł | J52: PLN | K52: 23% | M52: 500 | N52: CET | O52: DYDYC | P52: 9.8 | Q52: 27.32.13.0 | R52: 85444995 | S52: EC000993 | T52: BIAŁY | U52: 13.19
A53: KAB10000015 | B53: KAB10000015-1000 | C53: 5903669492894 | D53: DY 1,00 300/500 BIAŁY | E53: Przewód elektroinstalacyjny, jednodrutowy DY 1,00 300/500 BIAŁY | F53: km | H53: 1 | I53: =VLOOKUP(A53,'CET uproszczony 01 02 2026'!$B$4:$G$747,6,0) -> 1,047.00 zł | J53: PLN | K53: 23% | M53: 1000 | N53: CET | O53: DYDYC | P53: 9.8 | Q53: 27.32.13.0 | R53: 85444995 | S53: EC000993 | T53: BIAŁY | U53: 13.19
A54: KAB10000016 | B54: KAB10000016-0100 | C54: 5901181013818 | D54: DY 1,00 300/500 BRĄZOWY | E54: Przewód elektroinstalacyjny, jednodrutowy DY 1,00 300/500 BRĄZOWY | F54: km | H54: 1 | I54: =VLOOKUP(A54,'CET uproszczony 01 02 2026'!$B$4:$G$747,6,0) -> 1,047.00 zł | J54: PLN | K54: 23% | M54: 100 | N54: CET | O54: DYDYC | P54: 9.8 | Q54: 27.32.13.0 | R54: 85444995 | S54: EC000993 | T54: BRĄZOWY | U54: 13.19
A55: KAB10000016 | B55: KAB10000016-0500 | C55: 5903669492900 | D55: DY 1,00 300/500 BRĄZOWY | E55: Przewód elektroinstalacyjny, jednodrutowy DY 1,00 300/500 BRĄZOWY | F55: km | H55: 1 | I55: =VLOOKUP(A55,'CET uproszczony 01 02 2026'!$B$4:$G$747,6,0) -> 1,047.00 zł | J55: PLN | K55: 23% | M55: 500 | N55: CET | O55: DYDYC | P55: 9.8 | Q55: 27.32.13.0 | R55: 85444995 | S55: EC000993 | T55: BRĄZOWY | U55: 13.19
A56: KAB10000016 | B56: KAB10000016-1000 | C56: 5903669492917 | D56: DY 1,00 300/500 BRĄZOWY | E56: Przewód elektroinstalacyjny, jednodrutowy DY 1,00 300/500 BRĄZOWY | F56: km | H56: 1 | I56: =VLOOKUP(A56,'CET uproszczony 01 02 2026'!$B$4:$G$747,6,0) -> 1,047.00 zł | J56: PLN | K56: 23% | M56: 1000 | N56: CET | O56: DYDYC | P56: 9.8 | Q56: 27.32.13.0 | R56: 85444995 | S56: EC000993 | T56: BRĄZOWY | U56: 13.19
A57: KAB10000017 | B57: KAB10000017-0100 | C57: 5901181013801 | D57: DY 1,00 300/500 CZARNY | E57: Przewód elektroinstalacyjny, jednodrutowy DY 1,00 300/500 CZARNY | F57: km | H57: 1 | I57: =VLOOKUP(A57,'CET uproszczony 01 02 2026'!$B$4:$G$747,6,0) -> 1,047.00 zł | J57: PLN | K57: 23% | M57: 100 | N57: CET | O57: DYDYC | P57: 9.8 | Q57: 27.32.13.0 | R57: 85444995 | S57: EC000993 | T57: CZARNY | U57: 13.19
A58: KAB10000017 | B58: KAB10000017-0500 | C58: 5901181023312 | D58: DY 1,00 300/500 CZARNY | E58: Przewód elektroinstalacyjny, jednodrutowy DY 1,00 300/500 CZARNY | F58: km | H58: 1 | I58: =VLOOKUP(A58,'CET uproszczony 01 02 2026'!$B$4:$G$747,6,0) -> 1,047.00 zł | J58: PLN | K58: 23% | M58: 500 | N58: CET | O58: DYDYC | P58: 9.8 | Q58: 27.32.13.0 | R58: 85444995 | S58: EC000993 | T58: CZARNY | U58: 13.19
A59: KAB10000017 | B59: KAB10000017-1000 | C59: 5903669492924 | D59: DY 1,00 300/500 CZARNY | E59: Przewód elektroinstalacyjny, jednodrutowy DY 1,00 300/500 CZARNY | F59: km | H59: 1 | I59: =VLOOKUP(A59,'CET uproszczony 01 02 2026'!$B$4:$G$747,6,0) -> 1,047.00 zł | J59: PLN | K59: 23% | M59: 1000 | N59: CET | O59: DYDYC | P59: 9.8 | Q59: 27.32.13.0 | R59: 85444995 | S59: EC000993 | T59: CZARNY | U59: 13.19
A60: KAB10000018 | B60: KAB10000018-0100 | C60: 5901181016284 | D60: DY 1,00 300/500 CZERWONY | E60: Przewód elektroinstalacyjny, jednodrutowy DY 1,00 300/500 CZERWONY | F60: km | H60: 1 | I60: =VLOOKUP(A60,'CET uproszczony 01 02 2026'!$B$4:$G$747,6,0) -> 1,047.00 zł | J60: PLN | K60: 23% | M60: 100 | N60: CET | O60: DYDYC | P60: 9.8 | Q60: 27.32.13.0 | R60: 85444995 | S60: EC000993 | T60: CZERWONY | U60: 13.19
A61: KAB10000018 | B61: KAB10000018-0500 | C61: 5903669492931 | D61: DY 1,00 300/500 CZERWONY | E61: Przewód elektroinstalacyjny, jednodrutowy DY 1,00 300/500 CZERWONY | F61: km | H61: 1 | I61: =VLOOKUP(A61,'CET uproszczony 01 02 2026'!$B$4:$G$747,6,0) -> 1,047.00 zł | J61: PLN | K61: 23% | M61: 500 | N61: CET | O61: DYDYC | P61: 9.8 | Q61: 27.32.13.0 | R61: 85444995 | S61: EC000993 | T61: CZERWONY | U61: 13.19
A62: KAB10000018 | B62: KAB10000018-1000 | C62: 5903669492948 | D62: DY 1,00 300/500 CZERWONY | E62: Przewód elektroinstalacyjny, jednodrutowy DY 1,00 300/500 CZERWONY | F62: km | H62: 1 | I62: =VLOOKUP(A62,'CET uproszczony 01 02 2026'!$B$4:$G$747,6,0) -> 1,047.00 zł | J62: PLN | K62: 23% | M62: 1000 | N62: CET | O62: DYDYC | P62: 9.8 | Q62: 27.32.13.0 | R62: 85444995 | S62: EC000993 | T62: CZERWONY | U62: 13.19
A63: KAB10000019 | B63: KAB10000019-0100 | C63: 5901181013153 | D63: DY 1,00 300/500 NIEBIESKI | E63: Przewód elektroinstalacyjny, jednodrutowy DY 1,00 300/500 NIEBIESKI | F63: km | H63: 1 | I63: =VLOOKUP(A63,'CET uproszczony 01 02 2026'!$B$4:$G$747,6,0) -> 1,047.00 zł | J63: PLN | K63: 23% | M63: 100 | N63: CET | O63: DYDYC | P63: 9.8 | Q63: 27.32.13.0 | R63: 85444995 | S63: EC000993 | T63: NIEBIESKI | U63: 13.19
A64: KAB10000019 | B64: KAB10000019-0500 | C64: 5903669492955 | D64: DY 1,00 300/500 NIEBIESKI | E64: Przewód elektroinstalacyjny, jednodrutowy DY 1,00 300/500 NIEBIESKI | F64: km | H64: 1 | I64: =VLOOKUP(A64,'CET uproszczony 01 02 2026'!$B$4:$G$747,6,0) -> 1,047.00 zł | J64: PLN | K64: 23% | M64: 500 | N64: CET | O64: DYDYC | P64: 9.8 | Q64: 27.32.13.0 | R64: 85444995 | S64: EC000993 | T64: NIEBIESKI | U64: 13.19
A65: KAB10000019 | B65: KAB10000019-1000 | C65: 5903669492962 | D65: DY 1,00 300/500 NIEBIESKI | E65: Przewód elektroinstalacyjny, jednodrutowy DY 1,00 300/500 NIEBIESKI | F65: km | H65: 1 | I65: =VLOOKUP(A65,'CET uproszczony 01 02 2026'!$B$4:$G$747,6,0) -> 1,047.00 zł | J65: PLN | K65: 23% | M65: 1000 | N65: CET | O65: DYDYC | P65: 9.8 | Q65: 27.32.13.0 | R65: 85444995 | S65: EC000993 | T65: NIEBIESKI | U65: 13.19
A66: KAB10000020 | B66: KAB10000020-0100 | C66: 5901181014822 | D66: DY 1,00 300/500 ŻÓŁTO-ZIELONY | E66: Przewód elektroinstalacyjny, jednodrutowy DY 1,00 300/500 ŻÓŁTO-ZIELONY | F66: km | H66: 1 | I66: =VLOOKUP(A66,'CET uproszczony 01 02 2026'!$B$4:$G$747,6,0) -> 1,047.00 zł | J66: PLN | K66: 23% | M66: 100 | N66: CET | O66: DYDYC | P66: 9.8 | Q66: 27.32.13.0 | R66: 85444995 | S66: EC000993 | T66: ŻÓŁTO-ZIELONY | U66: 13.19
A67: KAB10000020 | B67: KAB10000020-0500 | C67: 5903669492979 | D67: DY 1,00 300/500 ŻÓŁTO-ZIELONY | E67: Przewód elektroinstalacyjny, jednodrutowy DY 1,00 300/500 ŻÓŁTO-ZIELONY | F67: km | H67: 1 | I67: =VLOOKUP(A67,'CET uproszczony 01 02 2026'!$B$4:$G$747,6,0) -> 1,047.00 zł | J67: PLN | K67: 23% | M67: 500 | N67: CET | O67: DYDYC | P67: 9.8 | Q67: 27.32.13.0 | R67: 85444995 | S67: EC000993 | T67: ŻÓŁTO-ZIELONY | U67: 13.19
A68: KAB10000020 | B68: KAB10000020-1000 | C68: 5903669492986 | D68: DY 1,00 300/500 ŻÓŁTO-ZIELONY | E68: Przewód elektroinstalacyjny, jednodrutowy DY 1,00 300/500 ŻÓŁTO-ZIELONY | F68: km | H68: 1 | I68: =VLOOKUP(A68,'CET uproszczony 01 02 2026'!$B$4:$G$747,6,0) -> 1,047.00 zł | J68: PLN | K68: 23% | M68: 1000 | N68: CET | O68: DYDYC | P68: 9.8 | Q68: 27.32.13.0 | R68: 85444995 | S68: EC000993 | T68: ŻÓŁTO-ZIELONY | U68: 13.19
A69: KAB10000021 | B69: KAB10000021-0100 | C69: 5901181014013 | D69: DY 1,50 300/500 BIAŁY | E69: Przewód elektroinstalacyjny, jednodrutowy DY 1,50 300/500 BIAŁY | F69: km | H69: 1 | I69: =VLOOKUP(A69,'CET uproszczony 01 02 2026'!$B$4:$G$747,6,0) -> 1,500.00 zł | J69: PLN | K69: 23% | M69: 100 | N69: CET | O69: DYDYC | P69: 9.8 | Q69: 27.32.13.0 | R69: 85444995 | S69: EC000993 | T69: BIAŁY | U69: 18.22
A70: KAB10000021 | B70: KAB10000021-0500 | C70: 5903669492993 | D70: DY 1,50 300/500 BIAŁY | E70: Przewód elektroinstalacyjny, jednodrutowy DY 1,50 300/500 BIAŁY | F70: km | H70: 1 | I70: =VLOOKUP(A70,'CET uproszczony 01 02 2026'!$B$4:$G$747,6,0) -> 1,500.00 zł | J70: PLN | K70: 23% | M70: 500 | N70: CET | O70: DYDYC | P70: 9.8 | Q70: 27.32.13.0 | R70: 85444995 | S70: EC000993 | T70: BIAŁY | U70: 18.22
A71: KAB10000021 | B71: KAB10000021-1000 | C71: 5903669493006 | D71: DY 1,50 300/500 BIAŁY | E71: Przewód elektroinstalacyjny, jednodrutowy DY 1,50 300/500 BIAŁY | F71: km | H71: 1 | I71: =VLOOKUP(A71,'CET uproszczony 01 02 2026'!$B$4:$G$747,6,0) -> 1,500.00 zł | J71: PLN | K71: 23% | M71: 1000 | N71: CET | O71: DYDYC | P71: 9.8 | Q71: 27.32.13.0 | R71: 85444995 | S71: EC000993 | T71: BIAŁY | U71: 18.22
A72: KAB10000022 | B72: KAB10000022-0100 | C72: 5901181012910 | D72: DY 1,50 300/500 BRĄZOWY | E72: Przewód elektroinstalacyjny, jednodrutowy DY 1,50 300/500 BRĄZOWY | F72: km | H72: 1 | I72: =VLOOKUP(A72,'CET uproszczony 01 02 2026'!$B$4:$G$747,6,0) -> 1,500.00 zł | J72: PLN | K72: 23% | M72: 100 | N72: CET | O72: DYDYC | P72: 9.8 | Q72: 27.32.13.0 | R72: 85444995 | S72: EC000993 | T72: BRĄZOWY | U72: 18.22
A73: KAB10000022 | B73: KAB10000022-0500 | C73: 5903669493013 | D73: DY 1,50 300/500 BRĄZOWY | E73: Przewód elektroinstalacyjny, jednodrutowy DY 1,50 300/500 BRĄZOWY | F73: km | H73: 1 | I73: =VLOOKUP(A73,'CET uproszczony 01 02 2026'!$B$4:$G$747,6,0) -> 1,500.00 zł | J73: PLN | K73: 23% | M73: 500 | N73: CET | O73: DYDYC | P73: 9.8 | Q73: 27.32.13.0 | R73: 85444995 | S73: EC000993 | T73: BRĄZOWY | U73: 18.22
A74: KAB10000022 | B74: KAB10000022-1000 | C74: 5903669493020 | D74: DY 1,50 300/500 BRĄZOWY | E74: Przewód elektroinstalacyjny, jednodrutowy DY 1,50 300/500 BRĄZOWY | F74: km | H74: 1 | I74: =VLOOKUP(A74,'CET uproszczony 01 02 2026'!$B$4:$G$747,6,0) -> 1,500.00 zł | J74: PLN | K74: 23% | M74: 1000 | N74: CET | O74: DYDYC | P74: 9.8 | Q74: 27.32.13.0 | R74: 85444995 | S74: EC000993 | T74: BRĄZOWY | U74: 18.22
A75: KAB10000023 | B75: KAB10000023-0100 | C75: 5901181012903 | D75: DY 1,50 300/500 CZARNY | E75: Przewód elektroinstalacyjny, jednodrutowy DY 1,50 300/500 CZARNY | F75: km | H75: 1 | I75: =VLOOKUP(A75,'CET uproszczony 01 02 2026'!$B$4:$G$747,6,0) -> 1,500.00 zł | J75: PLN | K75: 23% | M75: 100 | N75: CET | O75: DYDYC | P75: 9.8 | Q75: 27.32.13.0 | R75: 85444995 | S75: EC000993 | T75: CZARNY | U75: 18.22
A76: KAB10000023 | B76: KAB10000023-0500 | C76: 5903669493037 | D76: DY 1,50 300/500 CZARNY | E76: Przewód elektroinstalacyjny, jednodrutowy DY 1,50 300/500 CZARNY | F76: km | H76: 1 | I76: =VLOOKUP(A76,'CET uproszczony 01 02 2026'!$B$4:$G$747,6,0) -> 1,500.00 zł | J76: PLN | K76: 23% | M76: 500 | N76: CET | O76: DYDYC | P76: 9.8 | Q76: 27.32.13.0 | R76: 85444995 | S76: EC000993 | T76: CZARNY | U76: 18.22
A77: KAB10000023 | B77: KAB10000023-1000 | C77: 5903669493044 | D77: DY 1,50 300/500 CZARNY | E77: Przewód elektroinstalacyjny, jednodrutowy DY 1,50 300/500 CZARNY | F77: km | H77: 1 | I77: =VLOOKUP(A77,'CET uproszczony 01 02 2026'!$B$4:$G$747,6,0) -> 1,500.00 zł | J77: PLN | K77: 23% | M77: 1000 | N77: CET | O77: DYDYC | P77: 9.8 | Q77: 27.32.13.0 | R77: 85444995 | S77: EC000993 | T77: CZARNY | U77: 18.22
A78: KAB10000024 | B78: KAB10000024-0100 | C78: 5901181012897 | D78: DY 1,50 300/500 CZERWONY | E78: Przewód elektroinstalacyjny, jednodrutowy DY 1,50 300/500 CZERWONY | F78: km | H78: 1 | I78: =VLOOKUP(A78,'CET uproszczony 01 02 2026'!$B$4:$G$747,6,0) -> 1,500.00 zł | J78: PLN | K78: 23% | M78: 100 | N78: CET | O78: DYDYC | P78: 9.8 | Q78: 27.32.13.0 | R78: 85444995 | S78: EC000993 | T78: CZERWONY | U78: 18.22
A79: KAB10000024 | B79: KAB10000024-0500 | C79: 5903669493051 | D79: DY 1,50 300/500 CZERWONY | E79: Przewód elektroinstalacyjny, jednodrutowy DY 1,50 300/500 CZERWONY | F79: km | H79: 1 | I79: =VLOOKUP(A79,'CET uproszczony 01 02 2026'!$B$4:$G$747,6,0) -> 1,500.00 zł | J79: PLN | K79: 23% | M79: 500 | N79: CET | O79: DYDYC | P79: 9.8 | Q79: 27.32.13.0 | R79: 85444995 | S79: EC000993 | T79: CZERWONY | U79: 18.22
A80: KAB10000024 | B80: KAB10000024-1000 | C80: 5903669493068 | D80: DY 1,50 300/500 CZERWONY | E80: Przewód elektroinstalacyjny, jednodrutowy DY 1,50 300/500 CZERWONY | F80: km | H80: 1 | I80: =VLOOKUP(A80,'CET uproszczony 01 02 2026'!$B$4:$G$747,6,0) -> 1,500.00 zł | J80: PLN | K80: 23% | M80: 1000 | N80: CET | O80: DYDYC | P80: 9.8 | Q80: 27.32.13.0 | R80: 85444995 | S80: EC000993 | T80: CZERWONY | U80: 18.22
A81: KAB10000025 | B81: KAB10000025-0100 | C81: 5901181012880 | D81: DY 1,50 300/500 NIEBIESKI | E81: Przewód elektroinstalacyjny, jednodrutowy DY 1,50 300/500 NIEBIESKI | F81: km | H81: 1 | I81: =VLOOKUP(A81,'CET uproszczony 01 02 2026'!$B$4:$G$747,6,0) -> 1,500.00 zł | J81: PLN | K81: 23% | M81: 100 | N81: CET | O81: DYDYC | P81: 9.8 | Q81: 27.32.13.0 | R81: 85444995 | S81: EC000993 | T81: NIEBIESKI | U81: 18.22
A82: KAB10000025 | B82: KAB10000025-0500 | C82: 5903669493075 | D82: DY 1,50 300/500 NIEBIESKI | E82: Przewód elektroinstalacyjny, jednodrutowy DY 1,50 300/500 NIEBIESKI | F82: km | H82: 1 | I82: =VLOOKUP(A82,'CET uproszczony 01 02 2026'!$B$4:$G$747,6,0) -> 1,500.00 zł | J82: PLN | K82: 23% | M82: 500 | N82: CET | O82: DYDYC | P82: 9.8 | Q82: 27.32.13.0 | R82: 85444995 | S82: EC000993 | T82: NIEBIESKI | U82: 18.22
A83: KAB10000025 | B83: KAB10000025-1000 | C83: 5903669493082 | D83: DY 1,50 300/500 NIEBIESKI | E83: Przewód elektroinstalacyjny, jednodrutowy DY 1,50 300/500 NIEBIESKI | F83: km | H83: 1 | I83: =VLOOKUP(A83,'CET uproszczony 01 02 2026'!$B$4:$G$747,6,0) -> 1,500.00 zł | J83: PLN | K83: 23% | M83: 1000 | N83: CET | O83: DYDYC | P83: 9.8 | Q83: 27.32.13.0 | R83: 85444995 | S83: EC000993 | T83: NIEBIESKI | U83: 18.22
A84: KAB10000027 | B84: KAB10000027-0100 | C84: 5901181012873 | D84: DY 1,50 300/500 ŻÓŁTO-ZIELONY | E84: Przewód elektroinstalacyjny, jednodrutowy DY 1,50 300/500 ŻÓŁTO-ZIELONY | F84: km | H84: 1 | I84: =VLOOKUP(A84,'CET uproszczony 01 02 2026'!$B$4:$G$747,6,0) -> 1,500.00 zł | J84: PLN | K84: 23% | M84: 100 | N84: CET | O84: DYDYC | P84: 9.8 | Q84: 27.32.13.0 | R84: 85444995 | S84: EC000993 | T84: ŻÓŁTO-ZIELONY | U84: 18.22
A85: KAB10000027 | B85: KAB10000027-0500 | C85: 5903669493099 | D85: DY 1,50 300/500 ŻÓŁTO-ZIELONY | E85: Przewód elektroinstalacyjny, jednodrutowy DY 1,50 300/500 ŻÓŁTO-ZIELONY | F85: km | H85: 1 | I85: =VLOOKUP(A85,'CET uproszczony 01 02 2026'!$B$4:$G$747,6,0) -> 1,500.00 zł | J85: PLN | K85: 23% | M85: 500 | N85: CET | O85: DYDYC | P85: 9.8 | Q85: 27.32.13.0 | R85: 85444995 | S85: EC000993 | T85: ŻÓŁTO-ZIELONY | U85: 18.22
A86: KAB10000027 | B86: KAB10000027-1000 | C86: 5903669493105 | D86: DY 1,50 300/500 ŻÓŁTO-ZIELONY | E86: Przewód elektroinstalacyjny, jednodrutowy DY 1,50 300/500 ŻÓŁTO-ZIELONY | F86: km | H86: 1 | I86: =VLOOKUP(A86,'CET uproszczony 01 02 2026'!$B$4:$G$747,6,0) -> 1,500.00 zł | J86: PLN | K86: 23% | M86: 1000 | N86: CET | O86: DYDYC | P86: 9.8 | Q86: 27.32.13.0 | R86: 85444995 | S86: EC000993 | T86: ŻÓŁTO-ZIELONY | U86: 18.22
A87: KAB10000032 | B87: KAB10000032-0100 | C87: 5901181015546 | D87: DY 2,50 300/500 BRĄZOWY | E87: Przewód elektroinstalacyjny, jednodrutowy DY 2,50 300/500 BRĄZOWY | F87: km | H87: 1 | I87: =VLOOKUP(A87,'CET uproszczony 01 02 2026'!$B$4:$G$747,6,0) -> 2,383.00 zł | J87: PLN | K87: 23% | M87: 100 | N87: CET | O87: DYDYC | P87: 9.8 | Q87: 27.32.13.0 | R87: 85444995 | S87: EC000993 | T87: BRĄZOWY | U87: 27.88
A88: KAB10000032 | B88: KAB10000032-0500 | C88: 5903669493112 | D88: DY 2,50 300/500 BRĄZOWY | E88: Przewód elektroinstalacyjny, jednodrutowy DY 2,50 300/500 BRĄZOWY | F88: km | H88: 1 | I88: =VLOOKUP(A88,'CET uproszczony 01 02 2026'!$B$4:$G$747,6,0) -> 2,383.00 zł | J88: PLN | K88: 23% | M88: 500 | N88: CET | O88: DYDYC | P88: 9.8 | Q88: 27.32.13.0 | R88: 85444995 | S88: EC000993 | T88: BRĄZOWY | U88: 27.88
A89: KAB10000032 | B89: KAB10000032-1000 | C89: 5903669493129 | D89: DY 2,50 300/500 BRĄZOWY | E89: Przewód elektroinstalacyjny, jednodrutowy DY 2,50 300/500 BRĄZOWY | F89: km | H89: 1 | I89: =VLOOKUP(A89,'CET uproszczony 01 02 2026'!$B$4:$G$747,6,0) -> 2,383.00 zł | J89: PLN | K89: 23% | M89: 1000 | N89: CET | O89: DYDYC | P89: 9.8 | Q89: 27.32.13.0 | R89: 85444995 | S89: EC000993 | T89: BRĄZOWY | U89: 27.88
A90: KAB10000033 | B90: KAB10000033-0100 | C90: 5901181015553 | D90: DY 2,50 300/500 CZARNY | E90: Przewód elektroinstalacyjny, jednodrutowy DY 2,50 300/500 CZARNY | F90: km | H90: 1 | I90: =VLOOKUP(A90,'CET uproszczony 01 02 2026'!$B$4:$G$747,6,0) -> 2,383.00 zł | J90: PLN | K90: 23% | M90: 100 | N90: CET | O90: DYDYC | P90: 9.8 | Q90: 27.32.13.0 | R90: 85444995 | S90: EC000993 | T90: CZARNY | U90: 27.88
A91: KAB10000033 | B91: KAB10000033-0500 | C91: 5903669493136 | D91: DY 2,50 300/500 CZARNY | E91: Przewód elektroinstalacyjny, jednodrutowy DY 2,50 300/500 CZARNY | F91: km | H91: 1 | I91: =VLOOKUP(A91,'CET uproszczony 01 02 2026'!$B$4:$G$747,6,0) -> 2,383.00 zł | J91: PLN | K91: 23% | M91: 500 | N91: CET | O91: DYDYC | P91: 9.8 | Q91: 27.32.13.0 | R91: 85444995 | S91: EC000993 | T91: CZARNY | U91: 27.88
A92: KAB10000033 | B92: KAB10000033-1000 | C92: 5903669493143 | D92: DY 2,50 300/500 CZARNY | E92: Przewód elektroinstalacyjny, jednodrutowy DY 2,50 300/500 CZARNY | F92: km | H92: 1 | I92: =VLOOKUP(A92,'CET uproszczony 01 02 2026'!$B$4:$G$747,6,0) -> 2,383.00 zł | J92: PLN | K92: 23% | M92: 1000 | N92: CET | O92: DYDYC | P92: 9.8 | Q92: 27.32.13.0 | R92: 85444995 | S92: EC000993 | T92: CZARNY | U92: 27.88
A93: KAB10000034 | B93: KAB10000034-0100 | C93: 5901181015560 | D93: DY 2,50 300/500 CZERWONY | E93: Przewód elektroinstalacyjny, jednodrutowy DY 2,50 300/500 CZERWONY | F93: km | H93: 1 | I93: =VLOOKUP(A93,'CET uproszczony 01 02 2026'!$B$4:$G$747,6,0) -> 2,383.00 zł | J93: PLN | K93: 23% | M93: 100 | N93: CET | O93: DYDYC | P93: 9.8 | Q93: 27.32.13.0 | R93: 85444995 | S93: EC000993 | T93: CZERWONY | U93: 27.88
A94: KAB10000034 | B94: KAB10000034-0500 | C94: 5903669493150 | D94: DY 2,50 300/500 CZERWONY | E94: Przewód elektroinstalacyjny, jednodrutowy DY 2,50 300/500 CZERWONY | F94: km | H94: 1 | I94: =VLOOKUP(A94,'CET uproszczony 01 02 2026'!$B$4:$G$747,6,0) -> 2,383.00 zł | J94: PLN | K94: 23% | M94: 500 | N94: CET | O94: DYDYC | P94: 9.8 | Q94: 27.32.13.0 | R94: 85444995 | S94: EC000993 | T94: CZERWONY | U94: 27.88
A95: KAB10000034 | B95: KAB10000034-1000 | C95: 5903669493167 | D95: DY 2,50 300/500 CZERWONY | E95: Przewód elektroinstalacyjny, jednodrutowy DY 2,50 300/500 CZERWONY | F95: km | H95: 1 | I95: =VLOOKUP(A95,'CET uproszczony 01 02 2026'!$B$4:$G$747,6,0) -> 2,383.00 zł | J95: PLN | K95: 23% | M95: 1000 | N95: CET | O95: DYDYC | P95: 9.8 | Q95: 27.32.13.0 | R95: 85444995 | S95: EC000993 | T95: CZERWONY | U95: 27.88
A96: KAB10000035 | B96: KAB10000035-0100 | C96: 5901181015577 | D96: DY 2,50 300/500 NIEBIESKI | E96: Przewód elektroinstalacyjny, jednodrutowy DY 2,50 300/500 NIEBIESKI | F96: km | H96: 1 | I96: =VLOOKUP(A96,'CET uproszczony 01 02 2026'!$B$4:$G$747,6,0) -> 2,383.00 zł | J96: PLN | K96: 23% | M96: 100 | N96: CET | O96: DYDYC | P96: 9.8 | Q96: 27.32.13.0 | R96: 85444995 | S96: EC000993 | T96: NIEBIESKI | U96: 27.88
A97: KAB10000035 | B97: KAB10000035-0500 | C97: 5903669493174 | D97: DY 2,50 300/500 NIEBIESKI | E97: Przewód elektroinstalacyjny, jednodrutowy DY 2,50 300/500 NIEBIESKI | F97: km | H97: 1 | I97: =VLOOKUP(A97,'CET uproszczony 01 02 2026'!$B$4:$G$747,6,0) -> 2,383.00 zł | J97: PLN | K97: 23% | M97: 500 | N97: CET | O97: DYDYC | P97: 9.8 | Q97: 27.32.13.0 | R97: 85444995 | S97: EC000993 | T97: NIEBIESKI | U97: 27.88
A98: KAB10000035 | B98: KAB10000035-1000 | C98: 5903669493181 | D98: DY 2,50 300/500 NIEBIESKI | E98: Przewód elektroinstalacyjny, jednodrutowy DY 2,50 300/500 NIEBIESKI | F98: km | H98: 1 | I98: =VLOOKUP(A98,'CET uproszczony 01 02 2026'!$B$4:$G$747,6,0) -> 2,383.00 zł | J98: PLN | K98: 23% | M98: 1000 | N98: CET | O98: DYDYC | P98: 9.8 | Q98: 27.32.13.0 | R98: 85444995 | S98: EC000993 | T98: NIEBIESKI | U98: 27.88
A99: KAB10000036 | B99: KAB10000036-0100 | C99: 5901181015584 | D99: DY 2,50 300/500 ŻÓŁTO-ZIELONY | E99: Przewód elektroinstalacyjny, jednodrutowy DY 2,50 300/500 ŻÓŁTO-ZIELONY | F99: km | H99: 1 | I99: =VLOOKUP(A99,'CET uproszczony 01 02 2026'!$B$4:$G$747,6,0) -> 2,383.00 zł | J99: PLN | K99: 23% | M99: 100 | N99: CET | O99: DYDYC | P99: 9.8 | Q99: 27.32.13.0 | R99: 85444995 | S99: EC000993 | T99: ŻÓŁTO-ZIELONY | U99: 27.88
A100: KAB10000036 | B100: KAB10000036-0500 | C100: 5903669493198 | D100: DY 2,50 300/500 ŻÓŁTO-ZIELONY | E100: Przewód elektroinstalacyjny, jednodrutowy DY 2,50 300/500 ŻÓŁTO-ZIELONY | F100: km | H100: 1 | I100: =VLOOKUP(A100,'CET uproszczony 01 02 2026'!$B$4:$G$747,6,0) -> 2,383.00 zł | J100: PLN | K100: 23% | M100: 500 | N100: CET | O100: DYDYC | P100: 9.8 | Q100: 27.32.13.0 | R100: 85444995 | S100: EC000993 | T100: ŻÓŁTO-ZIELONY | U100: 27.88
A101: KAB10000036 | B101: KAB10000036-1000 | C101: 5903669493204 | D101: DY 2,50 300/500 ŻÓŁTO-ZIELONY | E101: Przewód elektroinstalacyjny, jednodrutowy DY 2,50 300/500 ŻÓŁTO-ZIELONY | F101: km | H101: 1 | I101: =VLOOKUP(A101,'CET uproszczony 01 02 2026'!$B$4:$G$747,6,0) -> 2,383.00 zł | J101: PLN | K101: 23% | M101: 1000 | N101: CET | O101: DYDYC | P101: 9.8 | Q101: 27.32.13.0 | R101: 85444995 | S101: EC000993 | T101: ŻÓŁTO-ZIELONY | U101: 27.88
A102: KAB10000041 | B102: KAB10000041-0100 | C102: 5901181013696 | D102: DYc 0,50 300/500 BIAŁY | E102: Przewód elektroinstalacyjny, jednodrutowy ciepłoodporny DYc 0,50 300/500 BIAŁY | F102: km | H102: 1 | I102: =VLOOKUP(A102,'CET uproszczony 01 02 2026'!$B$4:$G$747,6,0) -> 643.00 zł | J102: PLN | K102: 23% | M102: 100 | N102: CET | O102: DYDYC | P102: 9.8 | Q102: 27.32.13.0 | R102: 85444995 | S102: EC000993 | T102: BIAŁY | U102: 7.86
A103: KAB10000041 | B103: KAB10000041-0500 | C103: 5901181029192 | D103: DYc 0,50 300/500 BIAŁY | E103: Przewód elektroinstalacyjny, jednodrutowy ciepłoodporny DYc 0,50 300/500 BIAŁY | F103: km | H103: 1 | I103: =VLOOKUP(A103,'CET uproszczony 01 02 2026'!$B$4:$G$747,6,0) -> 643.00 zł | J103: PLN | K103: 23% | M103: 500 | N103: CET | O103: DYDYC | P103: 9.8 | Q103: 27.32.13.0 | R103: 85444995 | S103: EC000993 | T103: BIAŁY | U103: 7.86
A104: KAB10000041 | B104: KAB10000041-1000 | C104: 5903669493211 | D104: DYc 0,50 300/500 BIAŁY | E104: Przewód elektroinstalacyjny, jednodrutowy ciepłoodporny DYc 0,50 300/500 BIAŁY | F104: km | H104: 1 | I104: =VLOOKUP(A104,'CET uproszczony 01 02 2026'!$B$4:$G$747,6,0) -> 643.00 zł | J104: PLN | K104: 23% | M104: 1000 | N104: CET | O104: DYDYC | P104: 9.8 | Q104: 27.32.13.0 | R104: 85444995 | S104: EC000993 | T104: BIAŁY | U104: 7.86
A105: KAB10000042 | B105: KAB10000042-0500 | C105: 5901181011876 | D105: DYc 0,50 300/500 CZARNY | E105: Przewód elektroinstalacyjny, jednodrutowy ciepłoodporny DYc 0,50 300/500 CZARNY | F105: km | H105: 1 | I105: =VLOOKUP(A105,'CET uproszczony 01 02 2026'!$B$4:$G$747,6,0) -> 643.00 zł | J105: PLN | K105: 23% | M105: 500 | N105: CET | O105: DYDYC | P105: 9.8 | Q105: 27.32.13.0 | R105: 85444995 | S105: EC000993 | T105: CZARNY | U105: 7.86
A106: KAB10000042 | B106: KAB10000042-0100 | C106: 5903669493228 | D106: DYc 0,50 300/500 CZARNY | E106: Przewód elektroinstalacyjny, jednodrutowy ciepłoodporny DYc 0,50 300/500 CZARNY | F106: km | H106: 1 | I106: =VLOOKUP(A106,'CET uproszczony 01 02 2026'!$B$4:$G$747,6,0) -> 643.00 zł | J106: PLN | K106: 23% | M106: 100 | N106: CET | O106: DYDYC | P106: 9.8 | Q106: 27.32.13.0 | R106: 85444995 | S106: EC000993 | T106: CZARNY | U106: 7.86
A107: KAB10000042 | B107: KAB10000042-1000 | C107: 5903669493235 | D107: DYc 0,50 300/500 CZARNY | E107: Przewód elektroinstalacyjny, jednodrutowy ciepłoodporny DYc 0,50 300/500 CZARNY | F107: km | H107: 1 | I107: =VLOOKUP(A107,'CET uproszczony 01 02 2026'!$B$4:$G$747,6,0) -> 643.00 zł | J107: PLN | K107: 23% | M107: 1000 | N107: CET | O107: DYDYC | P107: 9.8 | Q107: 27.32.13.0 | R107: 85444995 | S107: EC000993 | T107: CZARNY | U107: 7.86
A108: KAB10000043 | B108: KAB10000043-0500 | C108: 5901181011883 | D108: DYc 0,50 300/500 NIEBIESKI | E108: Przewód elektroinstalacyjny, jednodrutowy ciepłoodporny DYc 0,50 300/500 NIEBIESKI | F108: km | H108: 1 | I108: =VLOOKUP(A108,'CET uproszczony 01 02 2026'!$B$4:$G$747,6,0) -> 643.00 zł | J108: PLN | K108: 23% | M108: 500 | N108: CET | O108: DYDYC | P108: 9.8 | Q108: 27.32.13.0 | R108: 85444995 | S108: EC000993 | T108: NIEBIESKI | U108: 7.86
A109: KAB10000043 | B109: KAB10000043-0100 | C109: 5903669493242 | D109: DYc 0,50 300/500 NIEBIESKI | E109: Przewód elektroinstalacyjny, jednodrutowy ciepłoodporny DYc 0,50 300/500 NIEBIESKI | F109: km | H109: 1 | I109: =VLOOKUP(A109,'CET uproszczony 01 02 2026'!$B$4:$G$747,6,0) -> 643.00 zł | J109: PLN | K109: 23% | M109: 100 | N109: CET | O109: DYDYC | P109: 9.8 | Q109: 27.32.13.0 | R109: 85444995 | S109: EC000993 | T109: NIEBIESKI | U109: 7.86
A110: KAB10000043 | B110: KAB10000043-1000 | C110: 5903669493259 | D110: DYc 0,50 300/500 NIEBIESKI | E110: Przewód elektroinstalacyjny, jednodrutowy ciepłoodporny DYc 0,50 300/500 NIEBIESKI | F110: km | H110: 1 | I110: =VLOOKUP(A110,'CET uproszczony 01 02 2026'!$B$4:$G$747,6,0) -> 643.00 zł | J110: PLN | K110: 23% | M110: 1000 | N110: CET | O110: DYDYC | P110: 9.8 | Q110: 27.32.13.0 | R110: 85444995 | S110: EC000993 | T110: NIEBIESKI | U110: 7.86
A111: KAB10000046 | B111: KAB10000046-0100 | C111: 5901181017014 | D111: DYc 0,50 300/500 ŻÓŁTO-ZIELONY | E111: Przewód elektroinstalacyjny, jednodrutowy ciepłoodporny DYc 0,50 300/500 ŻÓŁTO-ZIELONY | F111: km | H111: 1 | I111: =VLOOKUP(A111,'CET uproszczony 01 02 2026'!$B$4:$G$747,6,0) -> 643.00 zł | J111: PLN | K111: 23% | M111: 100 | N111: CET | O111: DYDYC | P111: 9.8 | Q111: 27.32.13.0 | R111: 85444995 | S111: EC000993 | T111: ŻÓŁTO-ZIELONY | U111: 7.86
A112: KAB10000046 | B112: KAB10000046-0500 | C112: 5901181013924 | D112: DYc 0,50 300/500 ŻÓŁTO-ZIELONY | E112: Przewód elektroinstalacyjny, jednodrutowy ciepłoodporny DYc 0,50 300/500 ŻÓŁTO-ZIELONY | F112: km | H112: 1 | I112: =VLOOKUP(A112,'CET uproszczony 01 02 2026'!$B$4:$G$747,6,0) -> 643.00 zł | J112: PLN | K112: 23% | M112: 500 | N112: CET | O112: DYDYC | P112: 9.8 | Q112: 27.32.13.0 | R112: 85444995 | S112: EC000993 | T112: ŻÓŁTO-ZIELONY | U112: 7.86
A113: KAB10000046 | B113: KAB10000046-1000 | C113: 5903669493266 | D113: DYc 0,50 300/500 ŻÓŁTO-ZIELONY | E113: Przewód elektroinstalacyjny, jednodrutowy ciepłoodporny DYc 0,50 300/500 ŻÓŁTO-ZIELONY | F113: km | H113: 1 | I113: =VLOOKUP(A113,'CET uproszczony 01 02 2026'!$B$4:$G$747,6,0) -> 643.00 zł | J113: PLN | K113: 23% | M113: 1000 | N113: CET | O113: DYDYC | P113: 9.8 | Q113: 27.32.13.0 | R113: 85444995 | S113: EC000993 | T113: ŻÓŁTO-ZIELONY | U113: 7.86
A114: KAB10000047 | B114: KAB10000047-0100 | C114: 5901181011692 | D114: DYc 0,75 300/500 BIAŁY | E114: Przewód elektroinstalacyjny, jednodrutowy ciepłoodporny DYc 0,75 300/500 BIAŁY | F114: km | H114: 1 | I114: =VLOOKUP(A114,'CET uproszczony 01 02 2026'!$B$4:$G$747,6,0) -> 916.00 zł | J114: PLN | K114: 23% | M114: 100 | N114: CET | O114: DYDYC | P114: 9.8 | Q114: 27.32.13.0 | R114: 85444995 | S114: EC000993 | T114: BIAŁY | U114: 10.54
A115: KAB10000047 | B115: KAB10000047-0500 | C115: 5901181013979 | D115: DYc 0,75 300/500 BIAŁY | E115: Przewód elektroinstalacyjny, jednodrutowy ciepłoodporny DYc 0,75 300/500 BIAŁY | F115: km | H115: 1 | I115: =VLOOKUP(A115,'CET uproszczony 01 02 2026'!$B$4:$G$747,6,0) -> 916.00 zł | J115: PLN | K115: 23% | M115: 500 | N115: CET | O115: DYDYC | P115: 9.8 | Q115: 27.32.13.0 | R115: 85444995 | S115: EC000993 | T115: BIAŁY | U115: 10.54
A116: KAB10000047 | B116: KAB10000047-1000 | C116: 5903669493273 | D116: DYc 0,75 300/500 BIAŁY | E116: Przewód elektroinstalacyjny, jednodrutowy ciepłoodporny DYc 0,75 300/500 BIAŁY | F116: km | H116: 1 | I116: =VLOOKUP(A116,'CET uproszczony 01 02 2026'!$B$4:$G$747,6,0) -> 916.00 zł | J116: PLN | K116: 23% | M116: 1000 | N116: CET | O116: DYDYC | P116: 9.8 | Q116: 27.32.13.0 | R116: 85444995 | S116: EC000993 | T116: BIAŁY | U116: 10.54
A117: KAB10000048 | B117: KAB10000048-0100 | C117: 5901181015713 | D117: DYc 0,75 300/500 CZARNY | E117: Przewód elektroinstalacyjny, jednodrutowy ciepłoodporny DYc 0,75 300/500 CZARNY | F117: km | H117: 1 | I117: =VLOOKUP(A117,'CET uproszczony 01 02 2026'!$B$4:$G$747,6,0) -> 916.00 zł | J117: PLN | K117: 23% | M117: 100 | N117: CET | O117: DYDYC | P117: 9.8 | Q117: 27.32.13.0 | R117: 85444995 | S117: EC000993 | T117: CZARNY | U117: 10.54
A118: KAB10000048 | B118: KAB10000048-0200 | C118: 5901181012026 | D118: DYc 0,75 300/500 CZARNY | E118: Przewód elektroinstalacyjny, jednodrutowy ciepłoodporny DYc 0,75 300/500 CZARNY | F118: km | H118: 1 | I118: =VLOOKUP(A118,'CET uproszczony 01 02 2026'!$B$4:$G$747,6,0) -> 916.00 zł | J118: PLN | K118: 23% | M118: 200 | N118: CET | O118: DYDYC | P118: 9.8 | Q118: 27.32.13.0 | R118: 85444995 | S118: EC000993 | T118: CZARNY | U118: 10.54
A119: KAB10000048 | B119: KAB10000048-0500 | C119: 5901181013962 | D119: DYc 0,75 300/500 CZARNY | E119: Przewód elektroinstalacyjny, jednodrutowy ciepłoodporny DYc 0,75 300/500 CZARNY | F119: km | H119: 1 | I119: =VLOOKUP(A119,'CET uproszczony 01 02 2026'!$B$4:$G$747,6,0) -> 916.00 zł | J119: PLN | K119: 23% | M119: 500 | N119: CET | O119: DYDYC | P119: 9.8 | Q119: 27.32.13.0 | R119: 85444995 | S119: EC000993 | T119: CZARNY | U119: 10.54
A120: KAB10000048 | B120: KAB10000048-1000 | C120: 5903669493280 | D120: DYc 0,75 300/500 CZARNY | E120: Przewód elektroinstalacyjny, jednodrutowy ciepłoodporny DYc 0,75 300/500 CZARNY | F120: km | H120: 1 | I120: =VLOOKUP(A120,'CET uproszczony 01 02 2026'!$B$4:$G$747,6,0) -> 916.00 zł | J120: PLN | K120: 23% | M120: 1000 | N120: CET | O120: DYDYC | P120: 9.8 | Q120: 27.32.13.0 | R120: 85444995 | S120: EC000993 | T120: CZARNY | U120: 10.54
A121: KAB10000049 | B121: KAB10000049-0100 | C121: 5901181015720 | D121: DYc 0,75 300/500 CZERWONY | E121: Przewód elektroinstalacyjny, jednodrutowy ciepłoodporny DYc 0,75 300/500 CZERWONY | F121: km | H121: 1 | I121: =VLOOKUP(A121,'CET uproszczony 01 02 2026'!$B$4:$G$747,6,0) -> 916.00 zł | J121: PLN | K121: 23% | M121: 100 | N121: CET | O121: DYDYC | P121: 9.8 | Q121: 27.32.13.0 | R121: 85444995 | S121: EC000993 | T121: CZERWONY | U121: 10.54
A122: KAB10000049 | B122: KAB10000049-0200 | C122: 5901181012033 | D122: DYc 0,75 300/500 CZERWONY | E122: Przewód elektroinstalacyjny, jednodrutowy ciepłoodporny DYc 0,75 300/500 CZERWONY | F122: km | H122: 1 | I122: =VLOOKUP(A122,'CET uproszczony 01 02 2026'!$B$4:$G$747,6,0) -> 916.00 zł | J122: PLN | K122: 23% | M122: 200 | N122: CET | O122: DYDYC | P122: 9.8 | Q122: 27.32.13.0 | R122: 85444995 | S122: EC000993 | T122: CZERWONY | U122: 10.54
A123: KAB10000049 | B123: KAB10000049-0500 | C123: 5901181013986 | D123: DYc 0,75 300/500 CZERWONY | E123: Przewód elektroinstalacyjny, jednodrutowy ciepłoodporny DYc 0,75 300/500 CZERWONY | F123: km | H123: 1 | I123: =VLOOKUP(A123,'CET uproszczony 01 02 2026'!$B$4:$G$747,6,0) -> 916.00 zł | J123: PLN | K123: 23% | M123: 500 | N123: CET | O123: DYDYC | P123: 9.8 | Q123: 27.32.13.0 | R123: 85444995 | S123: EC000993 | T123: CZERWONY | U123: 10.54
A124: KAB10000049 | B124: KAB10000049-1000 | C124: 5903669493938 | D124: DYc 0,75 300/500 CZERWONY | E124: Przewód elektroinstalacyjny, jednodrutowy ciepłoodporny DYc 0,75 300/500 CZERWONY | F124: km | H124: 1 | I124: =VLOOKUP(A124,'CET uproszczony 01 02 2026'!$B$4:$G$747,6,0) -> 916.00 zł | J124: PLN | K124: 23% | M124: 1000 | N124: CET | O124: DYDYC | P124: 9.8 | Q124: 27.32.13.0 | R124: 85444995 | S124: EC000993 | T124: CZERWONY | U124: 10.54
A125: KAB10000050 | B125: KAB10000050-0100 | C125: 5901181015737 | D125: DYc 0,75 300/500 NIEBIESKI | E125: Przewód elektroinstalacyjny, jednodrutowy ciepłoodporny DYc 0,75 300/500 NIEBIESKI | F125: km | H125: 1 | I125: =VLOOKUP(A125,'CET uproszczony 01 02 2026'!$B$4:$G$747,6,0) -> 916.00 zł | J125: PLN | K125: 23% | M125: 100 | N125: CET | O125: DYDYC | P125: 9.8 | Q125: 27.32.13.0 | R125: 85444995 | S125: EC000993 | T125: NIEBIESKI | U125: 10.54
A126: KAB10000050 | B126: KAB10000050-0200 | C126: 5901181012040 | D126: DYc 0,75 300/500 NIEBIESKI | E126: Przewód elektroinstalacyjny, jednodrutowy ciepłoodporny DYc 0,75 300/500 NIEBIESKI | F126: km | H126: 1 | I126: =VLOOKUP(A126,'CET uproszczony 01 02 2026'!$B$4:$G$747,6,0) -> 916.00 zł | J126: PLN | K126: 23% | M126: 200 | N126: CET | O126: DYDYC | P126: 9.8 | Q126: 27.32.13.0 | R126: 85444995 | S126: EC000993 | T126: NIEBIESKI | U126: 10.54
A127: KAB10000050 | B127: KAB10000050-0500 | C127: 5901181013993 | D127: DYc 0,75 300/500 NIEBIESKI | E127: Przewód elektroinstalacyjny, jednodrutowy ciepłoodporny DYc 0,75 300/500 NIEBIESKI | F127: km | H127: 1 | I127: =VLOOKUP(A127,'CET uproszczony 01 02 2026'!$B$4:$G$747,6,0) -> 916.00 zł | J127: PLN | K127: 23% | M127: 500 | N127: CET | O127: DYDYC | P127: 9.8 | Q127: 27.32.13.0 | R127: 85444995 | S127: EC000993 | T127: NIEBIESKI | U127: 10.54
A128: KAB10000050 | B128: KAB10000050-1000 | C128: 5903669493945 | D128: DYc 0,75 300/500 NIEBIESKI | E128: Przewód elektroinstalacyjny, jednodrutowy ciepłoodporny DYc 0,75 300/500 NIEBIESKI | F128: km | H128: 1 | I128: =VLOOKUP(A128,'CET uproszczony 01 02 2026'!$B$4:$G$747,6,0) -> 916.00 zł | J128: PLN | K128: 23% | M128: 1000 | N128: CET | O128: DYDYC | P128: 9.8 | Q128: 27.32.13.0 | R128: 85444995 | S128: EC000993 | T128: NIEBIESKI | U128: 10.54
A129: KAB10000051 | B129: KAB10000051-0100 | C129: 5901181013009 | D129: DYc 1,00 300/500 BIAŁY | E129: Przewód elektroinstalacyjny, jednodrutowy ciepłoodporny DYc 1,00 300/500 BIAŁY | F129: km | H129: 1 | I129: =VLOOKUP(A129,'CET uproszczony 01 02 2026'!$B$4:$G$747,6,0) -> 1,087.00 zł | J129: PLN | K129: 23% | M129: 100 | N129: CET | O129: DYDYC | P129: 9.8 | Q129: 27.32.13.0 | R129: 85444995 | S129: EC000993 | T129: BIAŁY | U129: 12.92
A130: KAB10000051 | B130: KAB10000051-0500 | C130: 5903669493952 | D130: DYc 1,00 300/500 BIAŁY | E130: Przewód elektroinstalacyjny, jednodrutowy ciepłoodporny DYc 1,00 300/500 BIAŁY | F130: km | H130: 1 | I130: =VLOOKUP(A130,'CET uproszczony 01 02 2026'!$B$4:$G$747,6,0) -> 1,087.00 zł | J130: PLN | K130: 23% | M130: 500 | N130: CET | O130: DYDYC | P130: 9.8 | Q130: 27.32.13.0 | R130: 85444995 | S130: EC000993 | T130: BIAŁY | U130: 12.92
A131: KAB10000051 | B131: KAB10000051-1000 | C131: 5903669493969 | D131: DYc 1,00 300/500 BIAŁY | E131: Przewód elektroinstalacyjny, jednodrutowy ciepłoodporny DYc 1,00 300/500 BIAŁY | F131: km | H131: 1 | I131: =VLOOKUP(A131,'CET uproszczony 01 02 2026'!$B$4:$G$747,6,0) -> 1,087.00 zł | J131: PLN | K131: 23% | M131: 1000 | N131: CET | O131: DYDYC | P131: 9.8 | Q131: 27.32.13.0 | R131: 85444995 | S131: EC000993 | T131: BIAŁY | U131: 12.92
A132: KAB10000052 | B132: KAB10000052-0100 | C132: 5901181031638 | D132: DYc 1,50 300/500 BIAŁY | E132: Przewód elektroinstalacyjny, jednodrutowy ciepłoodporny DYc 1,50 300/500 BIAŁY | F132: km | H132: 1 | I132: =VLOOKUP(A132,'CET uproszczony 01 02 2026'!$B$4:$G$747,6,0) -> 1,551.00 zł | J132: PLN | K132: 23% | M132: 100 | N132: CET | O132: DYDYC | P132: 9.8 | Q132: 27.32.13.0 | R132: 85444995 | S132: EC000993 | T132: BIAŁY | U132: 18.19
A133: KAB10000052 | B133: KAB10000052-0500 | C133: 5901181031645 | D133: DYc 1,50 300/500 BIAŁY | E133: Przewód elektroinstalacyjny, jednodrutowy ciepłoodporny DYc 1,50 300/500 BIAŁY | F133: km | H133: 1 | I133: =VLOOKUP(A133,'CET uproszczony 01 02 2026'!$B$4:$G$747,6,0) -> 1,551.00 zł | J133: PLN | K133: 23% | M133: 500 | N133: CET | O133: DYDYC | P133: 9.8 | Q133: 27.32.13.0 | R133: 85444995 | S133: EC000993 | T133: BIAŁY | U133: 18.19
A134: KAB10000052 | B134: KAB10000052-1000 | C134: 5903669493976 | D134: DYc 1,50 300/500 BIAŁY | E134: Przewód elektroinstalacyjny, jednodrutowy ciepłoodporny DYc 1,50 300/500 BIAŁY | F134: km | H134: 1 | I134: =VLOOKUP(A134,'CET uproszczony 01 02 2026'!$B$4:$G$747,6,0) -> 1,551.00 zł | J134: PLN | K134: 23% | M134: 1000 | N134: CET | O134: DYDYC | P134: 9.8 | Q134: 27.32.13.0 | R134: 85444995 | S134: EC000993 | T134: BIAŁY | U134: 18.19
A135: KAB10000053 | B135: KAB10000053-0100 | C135: 5901181031621 | D135: DYc 1,50 300/500 ŻÓŁTO-ZIELONY | E135: Przewód elektroinstalacyjny, jednodrutowy ciepłoodporny DYc 1,50 300/500 ŻÓŁTO-ZIELONY | F135: km | H135: 1 | I135: =VLOOKUP(A135,'CET uproszczony 01 02 2026'!$B$4:$G$747,6,0) -> 1,551.00 zł | J135: PLN | K135: 23% | M135: 100 | N135: CET | O135: DYDYC | P135: 9.8 | Q135: 27.32.13.0 | R135: 85444995 | S135: EC000993 | T135: ŻÓŁTO-ZIELONY | U135: 18.19
A136: KAB10000053 | B136: KAB10000053-0500 | C136: 5901181031652 | D136: DYc 1,50 300/500 ŻÓŁTO-ZIELONY | E136: Przewód elektroinstalacyjny, jednodrutowy ciepłoodporny DYc 1,50 300/500 ŻÓŁTO-ZIELONY | F136: km | H136: 1 | I136: =VLOOKUP(A136,'CET uproszczony 01 02 2026'!$B$4:$G$747,6,0) -> 1,551.00 zł | J136: PLN | K136: 23% | M136: 500 | N136: CET | O136: DYDYC | P136: 9.8 | Q136: 27.32.13.0 | R136: 85444995 | S136: EC000993 | T136: ŻÓŁTO-ZIELONY | U136: 18.19
A137: KAB10000053 | B137: KAB10000053-1000 | C137: 5903669493983 | D137: DYc 1,50 300/500 ŻÓŁTO-ZIELONY | E137: Przewód elektroinstalacyjny, jednodrutowy ciepłoodporny DYc 1,50 300/500 ŻÓŁTO-ZIELONY | F137: km | H137: 1 | I137: =VLOOKUP(A137,'CET uproszczony 01 02 2026'!$B$4:$G$747,6,0) -> 1,551.00 zł | J137: PLN | K137: 23% | M137: 1000 | N137: CET | O137: DYDYC | P137: 9.8 | Q137: 27.32.13.0 | R137: 85444995 | S137: EC000993 | T137: ŻÓŁTO-ZIELONY | U137: 18.19
A138: KAB10000714 | B138: KAB10000714-0500 | C138: 5903669493990 | D138: DYc 1,50 300/500 CZARNY | E138: Przewód elektroinstalacyjny, jednodrutowy ciepłoodporny DYc 1,50 300/500 CZARNY | F138: km | H138: 1 | I138: =VLOOKUP(A138,'CET uproszczony 01 02 2026'!$B$4:$G$747,6,0) -> 1,551.00 zł | J138: PLN | K138: 23% | M138: 500 | N138: CET | O138: DYDYC | P138: 9.8 | Q138: 27.32.13.0 | R138: 85444995 | S138: EC000993 | T138: CZARNY | U138: 18.19
A139: KAB10000714 | B139: KAB10000714-1000 | C139: 5903669494003 | D139: DYc 1,50 300/500 CZARNY | E139: Przewód elektroinstalacyjny, jednodrutowy ciepłoodporny DYc 1,50 300/500 CZARNY | F139: km | H139: 1 | I139: =VLOOKUP(A139,'CET uproszczony 01 02 2026'!$B$4:$G$747,6,0) -> 1,551.00 zł | J139: PLN | K139: 23% | M139: 1000 | N139: CET | O139: DYDYC | P139: 9.8 | Q139: 27.32.13.0 | R139: 85444995 | S139: EC000993 | T139: CZARNY | U139: 18.19
A140: KAB10000714 | B140: KAB10000714-0100 | C140: 5901181031935 | D140: DYc 1,50 300/500 CZARNY | E140: Przewód elektroinstalacyjny, jednodrutowy ciepłoodporny DYc 1,50 300/500 CZARNY | F140: km | H140: 1 | I140: =VLOOKUP(A140,'CET uproszczony 01 02 2026'!$B$4:$G$747,6,0) -> 1,551.00 zł | J140: PLN | K140: 23% | M140: 100 | N140: CET | O140: DYDYC | P140: 9.8 | Q140: 27.32.13.0 | R140: 85444995 | S140: EC000993 | T140: CZARNY | U140: 18.19
A141: KAB10000139 | B141: KAB10000139-0100 | C141: 5901181000665 | D141: LgY 1x0,50 300/500 BIAŁY | E141: Przewód elektroenergetyczny, wielodrutowy Lgy 1x0,50 300/500 BIAŁY | F141: km | H141: 1 | I141: =VLOOKUP(A141,'CET uproszczony 01 02 2026'!$B$4:$G$747,6,0) -> 595.00 zł | J141: PLN | K141: 23% | M141: 100 | N141: CET | O141: EE | P141: 9.7 | Q141: 27.32.13.0 | R141: 85444995 | S141: EC000993 | T141: BIAŁY | U141: 8.32
A142: KAB10000139 | B142: KAB10000139-0500 | C142: 5901181000689 | D142: LgY 1x0,50 300/500 BIAŁY | E142: Przewód elektroenergetyczny, wielodrutowy Lgy 1x0,50 300/500 BIAŁY | F142: km | H142: 1 | I142: =VLOOKUP(A142,'CET uproszczony 01 02 2026'!$B$4:$G$747,6,0) -> 595.00 zł | J142: PLN | K142: 23% | M142: 500 | N142: CET | O142: EE | P142: 9.7 | Q142: 27.32.13.0 | R142: 85444995 | S142: EC000993 | T142: BIAŁY | U142: 8.32
A143: KAB10000139 | B143: KAB10000139-1000 | C143: 5903669494140 | D143: LgY 1x0,50 300/500 BIAŁY | E143: Przewód elektroenergetyczny, wielodrutowy Lgy 1x0,50 300/500 BIAŁY | F143: km | H143: 1 | I143: =VLOOKUP(A143,'CET uproszczony 01 02 2026'!$B$4:$G$747,6,0) -> 595.00 zł | J143: PLN | K143: 23% | M143: 1000 | N143: CET | O143: EE | P143: 9.7 | Q143: 27.32.13.0 | R143: 85444995 | S143: EC000993 | T143: BIAŁY | U143: 8.32
A144: KAB10000140 | B144: KAB10000140-0100 | C144: 5901181000696 | D144: LgY 1x0,50 300/500 BRĄZOWY | E144: Przewód elektroenergetyczny, wielodrutowy Lgy 1x0,50 300/500 BRĄZOWY | F144: km | H144: 1 | I144: =VLOOKUP(A144,'CET uproszczony 01 02 2026'!$B$4:$G$747,6,0) -> 595.00 zł | J144: PLN | K144: 23% | M144: 100 | N144: CET | O144: EE | P144: 9.7 | Q144: 27.32.13.0 | R144: 85444995 | S144: EC000993 | T144: BRĄZOWY | U144: 8.32
A145: KAB10000140 | B145: KAB10000140-0500 | C145: 5903669494157 | D145: LgY 1x0,50 300/500 BRĄZOWY | E145: Przewód elektroenergetyczny, wielodrutowy Lgy 1x0,50 300/500 BRĄZOWY | F145: km | H145: 1 | I145: =VLOOKUP(A145,'CET uproszczony 01 02 2026'!$B$4:$G$747,6,0) -> 595.00 zł | J145: PLN | K145: 23% | M145: 500 | N145: CET | O145: EE | P145: 9.7 | Q145: 27.32.13.0 | R145: 85444995 | S145: EC000993 | T145: BRĄZOWY | U145: 8.32
A146: KAB10000140 | B146: KAB10000140-1000 | C146: 5903669494164 | D146: LgY 1x0,50 300/500 BRĄZOWY | E146: Przewód elektroenergetyczny, wielodrutowy Lgy 1x0,50 300/500 BRĄZOWY | F146: km | H146: 1 | I146: =VLOOKUP(A146,'CET uproszczony 01 02 2026'!$B$4:$G$747,6,0) -> 595.00 zł | J146: PLN | K146: 23% | M146: 1000 | N146: CET | O146: EE | P146: 9.7 | Q146: 27.32.13.0 | R146: 85444995 | S146: EC000993 | T146: BRĄZOWY | U146: 8.32
A147: KAB10000142 | B147: KAB10000142-0100 | C147: 5901181000726 | D147: LgY 1x0,50 300/500 CZARNY | E147: Przewód elektroenergetyczny, wielodrutowy Lgy 1x0,50 300/500 CZARNY | F147: km | H147: 1 | I147: =VLOOKUP(A147,'CET uproszczony 01 02 2026'!$B$4:$G$747,6,0) -> 595.00 zł | J147: PLN | K147: 23% | M147: 100 | N147: CET | O147: EE | P147: 9.7 | Q147: 27.32.13.0 | R147: 85444995 | S147: EC000993 | T147: CZARNY | U147: 8.32
A148: KAB10000142 | B148: KAB10000142-0500 | C148: 5901181000733 | D148: LgY 1x0,50 300/500 CZARNY | E148: Przewód elektroenergetyczny, wielodrutowy Lgy 1x0,50 300/500 CZARNY | F148: km | H148: 1 | I148: =VLOOKUP(A148,'CET uproszczony 01 02 2026'!$B$4:$G$747,6,0) -> 595.00 zł | J148: PLN | K148: 23% | M148: 500 | N148: CET | O148: EE | P148: 9.7 | Q148: 27.32.13.0 | R148: 85444995 | S148: EC000993 | T148: CZARNY | U148: 8.32
A149: KAB10000142 | B149: KAB10000142-1000 | C149: 5903669494171 | D149: LgY 1x0,50 300/500 CZARNY | E149: Przewód elektroenergetyczny, wielodrutowy Lgy 1x0,50 300/500 CZARNY | F149: km | H149: 1 | I149: =VLOOKUP(A149,'CET uproszczony 01 02 2026'!$B$4:$G$747,6,0) -> 595.00 zł | J149: PLN | K149: 23% | M149: 1000 | N149: CET | O149: EE | P149: 9.7 | Q149: 27.32.13.0 | R149: 85444995 | S149: EC000993 | T149: CZARNY | U149: 8.32
A150: KAB10000143 | B150: KAB10000143-0100 | C150: 5901181000740 | D150: LgY 1x0,50 300/500 CZERWONY | E150: Przewód elektroenergetyczny, wielodrutowy Lgy 1x0,50 300/500 CZERWONY | F150: km | H150: 1 | I150: =VLOOKUP(A150,'CET uproszczony 01 02 2026'!$B$4:$G$747,6,0) -> 595.00 zł | J150: PLN | K150: 23% | M150: 100 | N150: CET | O150: EE | P150: 9.7 | Q150: 27.32.13.0 | R150: 85444995 | S150: EC000993 | T150: CZERWONY | U150: 8.32
A151: KAB10000143 | B151: KAB10000143-0500 | C151: 5903669494188 | D151: LgY 1x0,50 300/500 CZERWONY | E151: Przewód elektroenergetyczny, wielodrutowy Lgy 1x0,50 300/500 CZERWONY | F151: km | H151: 1 | I151: =VLOOKUP(A151,'CET uproszczony 01 02 2026'!$B$4:$G$747,6,0) -> 595.00 zł | J151: PLN | K151: 23% | M151: 500 | N151: CET | O151: EE | P151: 9.7 | Q151: 27.32.13.0 | R151: 85444995 | S151: EC000993 | T151: CZERWONY | U151: 8.32
A152: KAB10000143 | B152: KAB10000143-1000 | C152: 5903669494195 | D152: LgY 1x0,50 300/500 CZERWONY | E152: Przewód elektroenergetyczny, wielodrutowy Lgy 1x0,50 300/500 CZERWONY | F152: km | H152: 1 | I152: =VLOOKUP(A152,'CET uproszczony 01 02 2026'!$B$4:$G$747,6,0) -> 595.00 zł | J152: PLN | K152: 23% | M152: 1000 | N152: CET | O152: EE | P152: 9.7 | Q152: 27.32.13.0 | R152: 85444995 | S152: EC000993 | T152: CZERWONY | U152: 8.32
A153: KAB10000143 | B153: KAB10000143-5000 | C153: 5903669494201 | D153: LgY 1x0,50 300/500 CZERWONY | E153: Przewód elektroenergetyczny, wielodrutowy Lgy 1x0,50 300/500 CZERWONY | F153: km | H153: 1 | I153: =VLOOKUP(A153,'CET uproszczony 01 02 2026'!$B$4:$G$747,6,0) -> 595.00 zł | J153: PLN | K153: 23% | M153: 5000 | N153: CET | O153: EE | P153: 9.7 | Q153: 27.32.13.0 | R153: 85444995 | S153: EC000993 | T153: CZERWONY | U153: 8.32
A154: KAB10000144 | B154: KAB10000144-0100 | C154: 5901181000757 | D154: LgY 1x0,50 300/500 NIEBIESKI | E154: Przewód elektroenergetyczny, wielodrutowy Lgy 1x0,50 300/500 NIEBIESKI | F154: km | H154: 1 | I154: =VLOOKUP(A154,'CET uproszczony 01 02 2026'!$B$4:$G$747,6,0) -> 595.00 zł | J154: PLN | K154: 23% | M154: 100 | N154: CET | O154: EE | P154: 9.7 | Q154: 27.32.13.0 | R154: 85444995 | S154: EC000993 | T154: NIEBIESKI | U154: 8.32
A155: KAB10000144 | B155: KAB10000144-0500 | C155: 5901181023541 | D155: LgY 1x0,50 300/500 NIEBIESKI | E155: Przewód elektroenergetyczny, wielodrutowy Lgy 1x0,50 300/500 NIEBIESKI | F155: km | H155: 1 | I155: =VLOOKUP(A155,'CET uproszczony 01 02 2026'!$B$4:$G$747,6,0) -> 595.00 zł | J155: PLN | K155: 23% | M155: 500 | N155: CET | O155: EE | P155: 9.7 | Q155: 27.32.13.0 | R155: 85444995 | S155: EC000993 | T155: NIEBIESKI | U155: 8.32
A156: KAB10000144 | B156: KAB10000144-1000 | C156: 5903669494218 | D156: LgY 1x0,50 300/500 NIEBIESKI | E156: Przewód elektroenergetyczny, wielodrutowy Lgy 1x0,50 300/500 NIEBIESKI | F156: km | H156: 1 | I156: =VLOOKUP(A156,'CET uproszczony 01 02 2026'!$B$4:$G$747,6,0) -> 595.00 zł | J156: PLN | K156: 23% | M156: 1000 | N156: CET | O156: EE | P156: 9.7 | Q156: 27.32.13.0 | R156: 85444995 | S156: EC000993 | T156: NIEBIESKI | U156: 8.32
A157: KAB10000144 | B157: KAB10000144-5000 | C157: 5901181015904 | D157: LgY 1x0,50 300/500 NIEBIESKI | E157: Przewód elektroenergetyczny, wielodrutowy Lgy 1x0,50 300/500 NIEBIESKI | F157: km | H157: 1 | I157: =VLOOKUP(A157,'CET uproszczony 01 02 2026'!$B$4:$G$747,6,0) -> 595.00 zł | J157: PLN | K157: 23% | M157: 5000 | N157: CET | O157: EE | P157: 9.7 | Q157: 27.32.13.0 | R157: 85444995 | S157: EC000993 | T157: NIEBIESKI | U157: 8.32
A158: KAB10000146 | B158: KAB10000146-0100 | C158: 5901181000801 | D158: LgY 1x0,50 300/500 ŻÓŁTO-ZIELONY | E158: Przewód elektroenergetyczny, wielodrutowy Lgy 1x0,50 300/500 ŻÓŁTO-ZIELONY | F158: km | H158: 1 | I158: =VLOOKUP(A158,'CET uproszczony 01 02 2026'!$B$4:$G$747,6,0) -> 595.00 zł | J158: PLN | K158: 23% | M158: 100 | N158: CET | O158: EE | P158: 9.7 | Q158: 27.32.13.0 | R158: 85444995 | S158: EC000993 | T158: ŻÓŁTO-ZIELONY | U158: 8.32
A159: KAB10000146 | B159: KAB10000146-0500 | C159: 5903669494225 | D159: LgY 1x0,50 300/500 ŻÓŁTO-ZIELONY | E159: Przewód elektroenergetyczny, wielodrutowy Lgy 1x0,50 300/500 ŻÓŁTO-ZIELONY | F159: km | H159: 1 | I159: =VLOOKUP(A159,'CET uproszczony 01 02 2026'!$B$4:$G$747,6,0) -> 595.00 zł | J159: PLN | K159: 23% | M159: 500 | N159: CET | O159: EE | P159: 9.7 | Q159: 27.32.13.0 | R159: 85444995 | S159: EC000993 | T159: ŻÓŁTO-ZIELONY | U159: 8.32
A160: KAB10000146 | B160: KAB10000146-1000 | C160: 5903669494232 | D160: LgY 1x0,50 300/500 ŻÓŁTO-ZIELONY | E160: Przewód elektroenergetyczny, wielodrutowy Lgy 1x0,50 300/500 ŻÓŁTO-ZIELONY | F160: km | H160: 1 | I160: =VLOOKUP(A160,'CET uproszczony 01 02 2026'!$B$4:$G$747,6,0) -> 595.00 zł | J160: PLN | K160: 23% | M160: 1000 | N160: CET | O160: EE | P160: 9.7 | Q160: 27.32.13.0 | R160: 85444995 | S160: EC000993 | T160: ŻÓŁTO-ZIELONY | U160: 8.32
A161: KAB10000146 | B161: KAB10000146-5000 | C161: 5903669494249 | D161: LgY 1x0,50 300/500 ŻÓŁTO-ZIELONY | E161: Przewód elektroenergetyczny, wielodrutowy Lgy 1x0,50 300/500 ŻÓŁTO-ZIELONY | F161: km | H161: 1 | I161: =VLOOKUP(A161,'CET uproszczony 01 02 2026'!$B$4:$G$747,6,0) -> 595.00 zł | J161: PLN | K161: 23% | M161: 5000 | N161: CET | O161: EE | P161: 9.7 | Q161: 27.32.13.0 | R161: 85444995 | S161: EC000993 | T161: ŻÓŁTO-ZIELONY | U161: 8.32
A162: KAB10000147 | B162: KAB10000147-0100 | C162: 5901181000818 | D162: LgY 1x0,75 300/500 BIAŁY | E162: Przewód elektroenergetyczny, wielodrutowy Lgy 1x0,75 300/500 BIAŁY | F162: km | H162: 1 | I162: =VLOOKUP(A162,'CET uproszczony 01 02 2026'!$B$4:$G$747,6,0) -> 787.00 zł | J162: PLN | K162: 23% | M162: 100 | N162: CET | O162: EE | P162: 9.7 | Q162: 27.32.13.0 | R162: 85444995 | S162: EC000993 | T162: BIAŁY | U162: 11.14
A163: KAB10000147 | B163: KAB10000147-0500 | C163: 5903669494256 | D163: LgY 1x0,75 300/500 BIAŁY | E163: Przewód elektroenergetyczny, wielodrutowy Lgy 1x0,75 300/500 BIAŁY | F163: km | H163: 1 | I163: =VLOOKUP(A163,'CET uproszczony 01 02 2026'!$B$4:$G$747,6,0) -> 787.00 zł | J163: PLN | K163: 23% | M163: 500 | N163: CET | O163: EE | P163: 9.7 | Q163: 27.32.13.0 | R163: 85444995 | S163: EC000993 | T163: BIAŁY | U163: 11.14
A164: KAB10000147 | B164: KAB10000147-1000 | C164: 5903669494263 | D164: LgY 1x0,75 300/500 BIAŁY | E164: Przewód elektroenergetyczny, wielodrutowy Lgy 1x0,75 300/500 BIAŁY | F164: km | H164: 1 | I164: =VLOOKUP(A164,'CET uproszczony 01 02 2026'!$B$4:$G$747,6,0) -> 787.00 zł | J164: PLN | K164: 23% | M164: 1000 | N164: CET | O164: EE | P164: 9.7 | Q164: 27.32.13.0 | R164: 85444995 | S164: EC000993 | T164: BIAŁY | U164: 11.14
A165: KAB10000148 | B165: KAB10000148-0100 | C165: 5901181000825 | D165: LgY 1x0,75 300/500 BRĄZOWY | E165: Przewód elektroenergetyczny, wielodrutowy Lgy 1x0,75 300/500 BRĄZOWY | F165: km | H165: 1 | I165: =VLOOKUP(A165,'CET uproszczony 01 02 2026'!$B$4:$G$747,6,0) -> 787.00 zł | J165: PLN | K165: 23% | M165: 100 | N165: CET | O165: EE | P165: 9.7 | Q165: 27.32.13.0 | R165: 85444995 | S165: EC000993 | T165: BRĄZOWY | U165: 11.14
A166: KAB10000148 | B166: KAB10000148-0500 | C166: 5901181023183 | D166: LgY 1x0,75 300/500 BRĄZOWY | E166: Przewód elektroenergetyczny, wielodrutowy Lgy 1x0,75 300/500 BRĄZOWY | F166: km | H166: 1 | I166: =VLOOKUP(A166,'CET uproszczony 01 02 2026'!$B$4:$G$747,6,0) -> 787.00 zł | J166: PLN | K166: 23% | M166: 500 | N166: CET | O166: EE | P166: 9.7 | Q166: 27.32.13.0 | R166: 85444995 | S166: EC000993 | T166: BRĄZOWY | U166: 11.14
A167: KAB10000148 | B167: KAB10000148-1000 | C167: 5903669494270 | D167: LgY 1x0,75 300/500 BRĄZOWY | E167: Przewód elektroenergetyczny, wielodrutowy Lgy 1x0,75 300/500 BRĄZOWY | F167: km | H167: 1 | I167: =VLOOKUP(A167,'CET uproszczony 01 02 2026'!$B$4:$G$747,6,0) -> 787.00 zł | J167: PLN | K167: 23% | M167: 1000 | N167: CET | O167: EE | P167: 9.7 | Q167: 27.32.13.0 | R167: 85444995 | S167: EC000993 | T167: BRĄZOWY | U167: 11.14
A168: KAB10000149 | B168: KAB10000149-0100 | C168: 5901181000832 | D168: LgY 1x0,75 300/500 CZARNY | E168: Przewód elektroenergetyczny, wielodrutowy Lgy 1x0,75 300/500 CZARNY | F168: km | H168: 1 | I168: =VLOOKUP(A168,'CET uproszczony 01 02 2026'!$B$4:$G$747,6,0) -> 787.00 zł | J168: PLN | K168: 23% | M168: 100 | N168: CET | O168: EE | P168: 9.7 | Q168: 27.32.13.0 | R168: 85444995 | S168: EC000993 | T168: CZARNY | U168: 11.14
A169: KAB10000149 | B169: KAB10000149-0500 | C169: 5903669494287 | D169: LgY 1x0,75 300/500 CZARNY | E169: Przewód elektroenergetyczny, wielodrutowy Lgy 1x0,75 300/500 CZARNY | F169: km | H169: 1 | I169: =VLOOKUP(A169,'CET uproszczony 01 02 2026'!$B$4:$G$747,6,0) -> 787.00 zł | J169: PLN | K169: 23% | M169: 500 | N169: CET | O169: EE | P169: 9.7 | Q169: 27.32.13.0 | R169: 85444995 | S169: EC000993 | T169: CZARNY | U169: 11.14
A170: KAB10000149 | B170: KAB10000149-1000 | C170: 5903669494294 | D170: LgY 1x0,75 300/500 CZARNY | E170: Przewód elektroenergetyczny, wielodrutowy Lgy 1x0,75 300/500 CZARNY | F170: km | H170: 1 | I170: =VLOOKUP(A170,'CET uproszczony 01 02 2026'!$B$4:$G$747,6,0) -> 787.00 zł | J170: PLN | K170: 23% | M170: 1000 | N170: CET | O170: EE | P170: 9.7 | Q170: 27.32.13.0 | R170: 85444995 | S170: EC000993 | T170: CZARNY | U170: 11.14
A171: KAB10000150 | B171: KAB10000150-0100 | C171: 5901181000849 | D171: LgY 1x0,75 300/500 CZERWONY | E171: Przewód elektroenergetyczny, wielodrutowy Lgy 1x0,75 300/500 CZERWONY | F171: km | H171: 1 | I171: =VLOOKUP(A171,'CET uproszczony 01 02 2026'!$B$4:$G$747,6,0) -> 787.00 zł | J171: PLN | K171: 23% | M171: 100 | N171: CET | O171: EE | P171: 9.7 | Q171: 27.32.13.0 | R171: 85444995 | S171: EC000993 | T171: CZERWONY | U171: 11.14
A172: KAB10000150 | B172: KAB10000150-0500 | C172: 5901181000856 | D172: LgY 1x0,75 300/500 CZERWONY | E172: Przewód elektroenergetyczny, wielodrutowy Lgy 1x0,75 300/500 CZERWONY | F172: km | H172: 1 | I172: =VLOOKUP(A172,'CET uproszczony 01 02 2026'!$B$4:$G$747,6,0) -> 787.00 zł | J172: PLN | K172: 23% | M172: 500 | N172: CET | O172: EE | P172: 9.7 | Q172: 27.32.13.0 | R172: 85444995 | S172: EC000993 | T172: CZERWONY | U172: 11.14
A173: KAB10000150 | B173: KAB10000150-1000 | C173: 5903669494300 | D173: LgY 1x0,75 300/500 CZERWONY | E173: Przewód elektroenergetyczny, wielodrutowy Lgy 1x0,75 300/500 CZERWONY | F173: km | H173: 1 | I173: =VLOOKUP(A173,'CET uproszczony 01 02 2026'!$B$4:$G$747,6,0) -> 787.00 zł | J173: PLN | K173: 23% | M173: 1000 | N173: CET | O173: EE | P173: 9.7 | Q173: 27.32.13.0 | R173: 85444995 | S173: EC000993 | T173: CZERWONY | U173: 11.14
A174: KAB10000150 | B174: KAB10000150-5000 | C174: 5903669494317 | D174: LgY 1x0,75 300/500 CZERWONY | E174: Przewód elektroenergetyczny, wielodrutowy Lgy 1x0,75 300/500 CZERWONY | F174: km | H174: 1 | I174: =VLOOKUP(A174,'CET uproszczony 01 02 2026'!$B$4:$G$747,6,0) -> 787.00 zł | J174: PLN | K174: 23% | M174: 5000 | N174: CET | O174: EE | P174: 9.7 | Q174: 27.32.13.0 | R174: 85444995 | S174: EC000993 | T174: CZERWONY | U174: 11.14
A175: KAB10000151 | B175: KAB10000151-0100 | C175: 5901181000863 | D175: LgY 1x0,75 300/500 NIEBIESKI | E175: Przewód elektroenergetyczny, wielodrutowy Lgy 1x0,75 300/500 NIEBIESKI | F175: km | H175: 1 | I175: =VLOOKUP(A175,'CET uproszczony 01 02 2026'!$B$4:$G$747,6,0) -> 787.00 zł | J175: PLN | K175: 23% | M175: 100 | N175: CET | O175: EE | P175: 9.7 | Q175: 27.32.13.0 | R175: 85444995 | S175: EC000993 | T175: NIEBIESKI | U175: 11.14
A176: KAB10000151 | B176: KAB10000151-0500 | C176: 5901181000870 | D176: LgY 1x0,75 300/500 NIEBIESKI | E176: Przewód elektroenergetyczny, wielodrutowy Lgy 1x0,75 300/500 NIEBIESKI | F176: km | H176: 1 | I176: =VLOOKUP(A176,'CET uproszczony 01 02 2026'!$B$4:$G$747,6,0) -> 787.00 zł | J176: PLN | K176: 23% | M176: 500 | N176: CET | O176: EE | P176: 9.7 | Q176: 27.32.13.0 | R176: 85444995 | S176: EC000993 | T176: NIEBIESKI | U176: 11.14
A177: KAB10000151 | B177: KAB10000151-1000 | C177: 5903669494324 | D177: LgY 1x0,75 300/500 NIEBIESKI | E177: Przewód elektroenergetyczny, wielodrutowy Lgy 1x0,75 300/500 NIEBIESKI | F177: km | H177: 1 | I177: =VLOOKUP(A177,'CET uproszczony 01 02 2026'!$B$4:$G$747,6,0) -> 787.00 zł | J177: PLN | K177: 23% | M177: 1000 | N177: CET | O177: EE | P177: 9.7 | Q177: 27.32.13.0 | R177: 85444995 | S177: EC000993 | T177: NIEBIESKI | U177: 11.14
A178: KAB10000153 | B178: KAB10000153-0100 | C178: 5901181000887 | D178: LgY 1x0,75 300/500 ŻÓŁTY | E178: Przewód elektroenergetyczny, wielodrutowy Lgy 1x0,75 300/500 ŻÓŁTY | F178: km | H178: 1 | I178: =VLOOKUP(A178,'CET uproszczony 01 02 2026'!$B$4:$G$747,6,0) -> 787.00 zł | J178: PLN | K178: 23% | M178: 100 | N178: CET | O178: EE | P178: 9.7 | Q178: 27.32.13.0 | R178: 85444995 | S178: EC000993 | T178: ŻÓŁTY | U178: 11.14
A179: KAB10000153 | B179: KAB10000153-0500 | C179: 5903669494331 | D179: LgY 1x0,75 300/500 ŻÓŁTY | E179: Przewód elektroenergetyczny, wielodrutowy Lgy 1x0,75 300/500 ŻÓŁTY | F179: km | H179: 1 | I179: =VLOOKUP(A179,'CET uproszczony 01 02 2026'!$B$4:$G$747,6,0) -> 787.00 zł | J179: PLN | K179: 23% | M179: 500 | N179: CET | O179: EE | P179: 9.7 | Q179: 27.32.13.0 | R179: 85444995 | S179: EC000993 | T179: ŻÓŁTY | U179: 11.14
A180: KAB10000153 | B180: KAB10000153-1000 | C180: 5903669494348 | D180: LgY 1x0,75 300/500 ŻÓŁTY | E180: Przewód elektroenergetyczny, wielodrutowy Lgy 1x0,75 300/500 ŻÓŁTY | F180: km | H180: 1 | I180: =VLOOKUP(A180,'CET uproszczony 01 02 2026'!$B$4:$G$747,6,0) -> 787.00 zł | J180: PLN | K180: 23% | M180: 1000 | N180: CET | O180: EE | P180: 9.7 | Q180: 27.32.13.0 | R180: 85444995 | S180: EC000993 | T180: ŻÓŁTY | U180: 11.14
A181: KAB10000154 | B181: KAB10000154-0100 | C181: 5901181000894 | D181: LgY 1x0,75 300/500 ŻÓŁTO-ZIELONY | E181: Przewód elektroenergetyczny, wielodrutowy Lgy 1x0,75 300/500 ŻÓŁTO-ZIELONY | F181: km | H181: 1 | I181: =VLOOKUP(A181,'CET uproszczony 01 02 2026'!$B$4:$G$747,6,0) -> 787.00 zł | J181: PLN | K181: 23% | M181: 100 | N181: CET | O181: EE | P181: 9.7 | Q181: 27.32.13.0 | R181: 85444995 | S181: EC000993 | T181: ŻÓŁTO-ZIELONY | U181: 11.14
A182: KAB10000154 | B182: KAB10000154-0500 | C182: 5903669494355 | D182: LgY 1x0,75 300/500 ŻÓŁTO-ZIELONY | E182: Przewód elektroenergetyczny, wielodrutowy Lgy 1x0,75 300/500 ŻÓŁTO-ZIELONY | F182: km | H182: 1 | I182: =VLOOKUP(A182,'CET uproszczony 01 02 2026'!$B$4:$G$747,6,0) -> 787.00 zł | J182: PLN | K182: 23% | M182: 500 | N182: CET | O182: EE | P182: 9.7 | Q182: 27.32.13.0 | R182: 85444995 | S182: EC000993 | T182: ŻÓŁTO-ZIELONY | U182: 11.14
A183: KAB10000154 | B183: KAB10000154-1000 | C183: 5903669494362 | D183: LgY 1x0,75 300/500 ŻÓŁTO-ZIELONY | E183: Przewód elektroenergetyczny, wielodrutowy Lgy 1x0,75 300/500 ŻÓŁTO-ZIELONY | F183: km | H183: 1 | I183: =VLOOKUP(A183,'CET uproszczony 01 02 2026'!$B$4:$G$747,6,0) -> 787.00 zł | J183: PLN | K183: 23% | M183: 1000 | N183: CET | O183: EE | P183: 9.7 | Q183: 27.32.13.0 | R183: 85444995 | S183: EC000993 | T183: ŻÓŁTO-ZIELONY | U183: 11.14
A184: KAB10000154 | B184: KAB10000154-5000 | C184: 5901181032499 | D184: LgY 1x0,75 300/500 ŻÓŁTO-ZIELONY | E184: Przewód elektroenergetyczny, wielodrutowy Lgy 1x0,75 300/500 ŻÓŁTO-ZIELONY | F184: km | H184: 1 | I184: =VLOOKUP(A184,'CET uproszczony 01 02 2026'!$B$4:$G$747,6,0) -> 787.00 zł | J184: PLN | K184: 23% | M184: 5000 | N184: CET | O184: EE | P184: 9.7 | Q184: 27.32.13.0 | R184: 85444995 | S184: EC000993 | T184: ŻÓŁTO-ZIELONY | U184: 11.14
A185: KAB10000155 | B185: KAB10000155-0100 | C185: 5901181000948 | D185: LgY 1x0,75 450/750 NIEBIESKI | E185: Przewód elektroenergetyczny, wielodrutowy Lgy 1x0,75 450/750 NIEBIESKI | F185: km | H185: 1 | I185: =VLOOKUP(A185,'CET uproszczony 01 02 2026'!$B$4:$G$747,6,0) -> 787.00 zł | J185: PLN | K185: 23% | M185: 100 | N185: CET | O185: EE | P185: 9.7 | Q185: 27.32.13.0 | R185: 85444995 | S185: EC000993 | T185: NIEBIESKI | U185: 10.94
A186: KAB10000155 | B186: KAB10000155-0500 | C186: 5903669494669 | D186: LgY 1x0,75 450/750 NIEBIESKI | E186: Przewód elektroenergetyczny, wielodrutowy Lgy 1x0,75 450/750 NIEBIESKI | F186: km | H186: 1 | I186: =VLOOKUP(A186,'CET uproszczony 01 02 2026'!$B$4:$G$747,6,0) -> 787.00 zł | J186: PLN | K186: 23% | M186: 500 | N186: CET | O186: EE | P186: 9.7 | Q186: 27.32.13.0 | R186: 85444995 | S186: EC000993 | T186: NIEBIESKI | U186: 10.94
A187: KAB10000155 | B187: KAB10000155-1000 | C187: 5903669494676 | D187: LgY 1x0,75 450/750 NIEBIESKI | E187: Przewód elektroenergetyczny, wielodrutowy Lgy 1x0,75 450/750 NIEBIESKI | F187: km | H187: 1 | I187: =VLOOKUP(A187,'CET uproszczony 01 02 2026'!$B$4:$G$747,6,0) -> 787.00 zł | J187: PLN | K187: 23% | M187: 1000 | N187: CET | O187: EE | P187: 9.7 | Q187: 27.32.13.0 | R187: 85444995 | S187: EC000993 | T187: NIEBIESKI | U187: 10.94
A188: KAB10000156 | B188: KAB10000156-0100 | C188: 5901181012866 | D188: LgY 1x1,00 300/500 BIAŁY | E188: Przewód elektroenergetyczny, wielodrutowy Lgy 1x1,00 300/500 BIAŁY | F188: km | H188: 1 | I188: =VLOOKUP(A188,'CET uproszczony 01 02 2026'!$B$4:$G$747,6,0) -> 1,003.00 zł | J188: PLN | K188: 23% | M188: 100 | N188: CET | O188: EE | P188: 9.7 | Q188: 27.32.13.0 | R188: 85444995 | S188: EC000993 | T188: BIAŁY | U188: 13.46
A189: KAB10000156 | B189: KAB10000156-0500 | C189: 5903669494683 | D189: LgY 1x1,00 300/500 BIAŁY | E189: Przewód elektroenergetyczny, wielodrutowy Lgy 1x1,00 300/500 BIAŁY | F189: km | H189: 1 | I189: =VLOOKUP(A189,'CET uproszczony 01 02 2026'!$B$4:$G$747,6,0) -> 1,003.00 zł | J189: PLN | K189: 23% | M189: 500 | N189: CET | O189: EE | P189: 9.7 | Q189: 27.32.13.0 | R189: 85444995 | S189: EC000993 | T189: BIAŁY | U189: 13.46
A190: KAB10000156 | B190: KAB10000156-1000 | C190: 5903669494690 | D190: LgY 1x1,00 300/500 BIAŁY | E190: Przewód elektroenergetyczny, wielodrutowy Lgy 1x1,00 300/500 BIAŁY | F190: km | H190: 1 | I190: =VLOOKUP(A190,'CET uproszczony 01 02 2026'!$B$4:$G$747,6,0) -> 1,003.00 zł | J190: PLN | K190: 23% | M190: 1000 | N190: CET | O190: EE | P190: 9.7 | Q190: 27.32.13.0 | R190: 85444995 | S190: EC000993 | T190: BIAŁY | U190: 13.46
A191: KAB10000157 | B191: KAB10000157-0100 | C191: 5901181000955 | D191: LgY 1x1,00 300/500 BRĄZOWY | E191: Przewód elektroenergetyczny, wielodrutowy Lgy 1x1,00 300/500 BRĄZOWY | F191: km | H191: 1 | I191: =VLOOKUP(A191,'CET uproszczony 01 02 2026'!$B$4:$G$747,6,0) -> 1,003.00 zł | J191: PLN | K191: 23% | M191: 100 | N191: CET | O191: EE | P191: 9.7 | Q191: 27.32.13.0 | R191: 85444995 | S191: EC000993 | T191: BRĄZOWY | U191: 13.46
A192: KAB10000157 | B192: KAB10000157-0500 | C192: 5901181023114 | D192: LgY 1x1,00 300/500 BRĄZOWY | E192: Przewód elektroenergetyczny, wielodrutowy Lgy 1x1,00 300/500 BRĄZOWY | F192: km | H192: 1 | I192: =VLOOKUP(A192,'CET uproszczony 01 02 2026'!$B$4:$G$747,6,0) -> 1,003.00 zł | J192: PLN | K192: 23% | M192: 500 | N192: CET | O192: EE | P192: 9.7 | Q192: 27.32.13.0 | R192: 85444995 | S192: EC000993 | T192: BRĄZOWY | U192: 13.46
A193: KAB10000157 | B193: KAB10000157-1000 | C193: 5903669494706 | D193: LgY 1x1,00 300/500 BRĄZOWY | E193: Przewód elektroenergetyczny, wielodrutowy Lgy 1x1,00 300/500 BRĄZOWY | F193: km | H193: 1 | I193: =VLOOKUP(A193,'CET uproszczony 01 02 2026'!$B$4:$G$747,6,0) -> 1,003.00 zł | J193: PLN | K193: 23% | M193: 1000 | N193: CET | O193: EE | P193: 9.7 | Q193: 27.32.13.0 | R193: 85444995 | S193: EC000993 | T193: BRĄZOWY | U193: 13.46
A194: KAB10000158 | B194: KAB10000158-0100 | C194: 5901181000962 | D194: LgY 1x1,00 300/500 CZARNY | E194: Przewód elektroenergetyczny, wielodrutowy Lgy 1x1,00 300/500 CZARNY | F194: km | H194: 1 | I194: =VLOOKUP(A194,'CET uproszczony 01 02 2026'!$B$4:$G$747,6,0) -> 1,003.00 zł | J194: PLN | K194: 23% | M194: 100 | N194: CET | O194: EE | P194: 9.7 | Q194: 27.32.13.0 | R194: 85444995 | S194: EC000993 | T194: CZARNY | U194: 13.46
A195: KAB10000158 | B195: KAB10000158-0500 | C195: 5901181023121 | D195: LgY 1x1,00 300/500 CZARNY | E195: Przewód elektroenergetyczny, wielodrutowy Lgy 1x1,00 300/500 CZARNY | F195: km | H195: 1 | I195: =VLOOKUP(A195,'CET uproszczony 01 02 2026'!$B$4:$G$747,6,0) -> 1,003.00 zł | J195: PLN | K195: 23% | M195: 500 | N195: CET | O195: EE | P195: 9.7 | Q195: 27.32.13.0 | R195: 85444995 | S195: EC000993 | T195: CZARNY | U195: 13.46
A196: KAB10000158 | B196: KAB10000158-1000 | C196: 5903669494713 | D196: LgY 1x1,00 300/500 CZARNY | E196: Przewód elektroenergetyczny, wielodrutowy Lgy 1x1,00 300/500 CZARNY | F196: km | H196: 1 | I196: =VLOOKUP(A196,'CET uproszczony 01 02 2026'!$B$4:$G$747,6,0) -> 1,003.00 zł | J196: PLN | K196: 23% | M196: 1000 | N196: CET | O196: EE | P196: 9.7 | Q196: 27.32.13.0 | R196: 85444995 | S196: EC000993 | T196: CZARNY | U196: 13.46
A197: KAB10000159 | B197: KAB10000159-0100 | C197: 5901181000979 | D197: LgY 1x1,00 300/500 CZERWONY | E197: Przewód elektroenergetyczny, wielodrutowy Lgy 1x1,00 300/500 CZERWONY | F197: km | H197: 1 | I197: =VLOOKUP(A197,'CET uproszczony 01 02 2026'!$B$4:$G$747,6,0) -> 1,003.00 zł | J197: PLN | K197: 23% | M197: 100 | N197: CET | O197: EE | P197: 9.7 | Q197: 27.32.13.0 | R197: 85444995 | S197: EC000993 | T197: CZERWONY | U197: 13.46
A198: KAB10000159 | B198: KAB10000159-0500 | C198: 5901181023138 | D198: LgY 1x1,00 300/500 CZERWONY | E198: Przewód elektroenergetyczny, wielodrutowy Lgy 1x1,00 300/500 CZERWONY | F198: km | H198: 1 | I198: =VLOOKUP(A198,'CET uproszczony 01 02 2026'!$B$4:$G$747,6,0) -> 1,003.00 zł | J198: PLN | K198: 23% | M198: 500 | N198: CET | O198: EE | P198: 9.7 | Q198: 27.32.13.0 | R198: 85444995 | S198: EC000993 | T198: CZERWONY | U198: 13.46
A199: KAB10000159 | B199: KAB10000159-1000 | C199: 5903669494720 | D199: LgY 1x1,00 300/500 CZERWONY | E199: Przewód elektroenergetyczny, wielodrutowy Lgy 1x1,00 300/500 CZERWONY | F199: km | H199: 1 | I199: =VLOOKUP(A199,'CET uproszczony 01 02 2026'!$B$4:$G$747,6,0) -> 1,003.00 zł | J199: PLN | K199: 23% | M199: 1000 | N199: CET | O199: EE | P199: 9.7 | Q199: 27.32.13.0 | R199: 85444995 | S199: EC000993 | T199: CZERWONY | U199: 13.46
A200: KAB10000160 | B200: KAB10000160-0100 | C200: 5901181000986 | D200: LgY 1x1,00 300/500 NIEBIESKI | E200: Przewód elektroenergetyczny, wielodrutowy Lgy 1x1,00 300/500 NIEBIESKI | F200: km | H200: 1 | I200: =VLOOKUP(A200,'CET uproszczony 01 02 2026'!$B$4:$G$747,6,0) -> 1,003.00 zł | J200: PLN | K200: 23% | M200: 100 | N200: CET | O200: EE | P200: 9.7 | Q200: 27.32.13.0 | R200: 85444995 | S200: EC000993 | T200: NIEBIESKI | U200: 13.46
... 1379 more rows

Sheet CET uproszczony 01 02 2026
M1: SUMA wartość
B2: INDEKS | C2: SYMBOL | D2: GRUPA RABAT | E2: NAZWA WYROBU | F2: JM | G2: CENNIK ważny od: 01.02.2026 | H2: DODATKOWE INFORMACJE | I2: RABAT | J2: CENA ZAKUPU | K2: ILOŚĆ | L2: WARTOŚĆ | M2: =SUM(L4:L747) -> 0
B3: ID | C3: SYMBOL | D3: KC | E3: Przewody koncentryczne CESAT UHD (4K) | G3: =G2 -> CENNIK ważny od: 01.02.2026 | H3: DODATKOWE INFORMACJE | J3: CENA ZAKUPU | K3: ILOŚĆ | L3: WARTOŚĆ
B4: KAB10000773 | C4: XWDXpek 75 1,0/4,8; czarny; CESAT | D4: KC | E4: Przewód koncentryczny XWDXpek 75 1,0/4,8; czarny UV; (UHD-4K); CESAT | F4: km | G4: 2,407.00 zł | I4: =$I$3 -> 0% | J4: =G4-G4*I4 -> 2,407.00 zł | L4: =K4*J4 -> 0
B5: KAB10000774 | C5: YWDXpek 75 1,0/4,8; CESAT | D5: KC | E5: Przewód koncentryczny YWDXpek 75 1,0/4,8; Eca; (UHD-4K); CESAT | F5: km | G5: 2,320.00 zł | I5: 0% | J5: 2,320.00 zł | L5: =K5*J5 -> 0
B6: KAB10000775 | C6: YWDXpek 75 1,0/4,8 kl.A, Eca; CESAT | D6: KC | E6: Przewód koncentryczny YWDXpek 75 1,0/4,8 (77% CuSn) Eca; (UHD-4K); CESAT | F6: km | G6: 3,053.00 zł | H6: Na zamówienie poprzedzone zapytaniem ofertowym | I6: 0% | J6: 3,053.00 zł | L6: 0
B7: KAB10000785 | C7: HWDXpek 75 1,0/4,8; CESAT | D7: KC | E7: Przewód koncentryczny HWDXpek 75 1,0/4,8; Eca; (UHD-4K); bezhalogen. CESAT | F7: km | G7: 2,472.00 zł | H7: Na zamówienie poprzedzone zapytaniem ofertowym | I7: 0% | J7: 2,472.00 zł | L7: 0
B8: KAB10000977 | C8: YWDXpek 75 1,1/4,8; Eca; (UHD-4K); CESAT | D8: KC | E8: Przewód koncentryczny YWDXpek 75 1,1/4,8; Eca; (UHD-4K); CESAT | G8: 2,498.00 zł | I8: 0% | J8: =G8-G8*I8 -> 2,498.00 zł | L8: =K8*J8 -> 0
B9: KAB10002037-0100 | C9: YWDXpek 75 1,13/4,8 (77% AL.+AL./PET) CESAT NOWOŚĆ | D9: KC | E9: Przewód koncentryczny YWDXpek 75 1,13/4,8 (77% AL.) Eca; (UHD-4K); CESAT | G9: 1,790.00 zł | I9: 0% | J9: =G9-G9*I9 -> 1,790.00 zł | L9: =K9*J9 -> 0
B10: KAB10002037-0300 | C10: YWDXpek 75 1,13/4,8 (77% AL.+AL./PET) CESAT karton 300m NOWOŚĆ | D10: KC | E10: Przewód koncentryczny YWDXpek 75 1,13/4,8 (77% AL.) Eca; (UHD-4K); CESAT karton | G10: 1,825.00 zł | I10: 0% | J10: 1,825.00 zł | L10: 0
B11: KAB10000793 | C11: YWDXpek 75 1,0/4,8 TRISHIELD, CESAT | D11: KC | E11: Przewód koncentryczny YWDXpek 75 1,0/4,8 TRISHIELD, ekran AL./PET + oplot 33% + ekran AL./PET; Eca; (UHD-4K); CESAT | F11: km | G11: 2,431.00 zł | H11: Na zamówienie poprzedzone zapytaniem ofertowym | I11: 0% | J11: 2,431.00 zł | L11: 0
B12: KAB10000811 | C12: HWDXpek 75 1,0/4,8 TRISHIELD, CESAT | D12: KC | E12: Przewód koncentryczny HWDXpek 75 1,0/4,8 TRISHIELD, ekran AL./PET + oplot 33% + ekran AL./PET; Eca; (UHD-4K); bezhalogen. CESAT | F12: km | G12: 2,579.00 zł | H12: Na zamówienie poprzedzone zapytaniem ofertowym | I12: 0% | J12: 2,579.00 zł | L12: 0
B13: KAB10000814 | C13: YWDXpek 75 1,0/4,8 TRISHIELD kl.A, CESAT | D13: KC | E13: Przewód koncentryczny YWDXpek 75 1,0/4,8 TRISHIELD kl.A ekran AL./PET + oplot 77% + ekran AL./PET; Eca; (UHD-4K); CESAT | F13: km | G13: 3,159.00 zł | H13: Na zamówienie poprzedzone zapytaniem ofertowym | I13: 0% | J13: 3,159.00 zł | L13: 0
B14: KAB10000817 | C14: HWDXpek 75 1,0/4,8 TRISHIELD kl.A, CESAT | D14: KC | E14: Przewód koncentryczny HWDXpek 75 1,0/4,8 TRISHIELD kl.A ekran AL./PET + oplot 77% + ekran AL./PET; Eca; (UHD-4K); bezhalogen. CESAT | F14: km | G14: 3,305.00 zł | H14: Na zamówienie poprzedzone zapytaniem ofertowym | I14: 0% | J14: 3,305.00 zł | L14: 0
B15: KAB10000826 | C15: YWDXpek 75 1,13/4,8 , CESAT | D15: KC | E15: Przewód koncentryczny YWDXpek 75 1,13/4,8 ; ekran AL./PET + oplot 33%; Eca; (UHD-4K); CESAT | F15: km | G15: 2,554.00 zł | I15: 0% | J15: 2,554.00 zł | L15: 0
B16: KAB10000827 | C16: HWDXpek 75 1,13/4,8 , CESAT | D16: KC | E16: Przewód koncentryczny HWDXpek 75 1,13/4,8 ; ekran AL./PET + oplot 33%; Eca; (UHD-4K); bezhalogen. CESAT | F16: km | G16: 2,689.00 zł | H16: Na zamówienie poprzedzone zapytaniem ofertowym | I16: 0% | J16: 2,689.00 zł | L16: 0
B17: KAB10000836 | C17: YWDXpek 75 1,13/4,8 kl.A, CESAT | D17: KC | E17: Przewód koncentryczny YWDXpek 75 1,13/4,8 kl.A ekran AL./PET + oplot 77%; Eca; (UHD-4K); CESAT | F17: km | G17: 3,354.00 zł | I17: 0% | J17: 3,354.00 zł | L17: 0
B18: KAB10000889 | C18: HWDXpek 75 1,13/4,8 kl.A | D18: KC | E18: Przewód koncentryczny HWDXpek 75 1,13/4,8 kl.A ekran AL./PET + oplot 77%; Eca;(UHD-4K); bezhalogen. CESAT | F18: km | G18: 3,519.00 zł | H18: Na zamówienie poprzedzone zapytaniem ofertowym | I18: 0% | J18: 3,519.00 zł | L18: 0
B19: KAB10000914 | C19: YWDXpek 75 1,15/5,0 CESAT | D19: KC | E19: Przewód koncentryczny YWDXpek 75 1,15/5,0; Eca; (UHD-4K); CESAT | F19: km | G19: 2,612.00 zł | I19: 0% | J19: 2,612.00 zł | L19: 0
B20: KAB10000915 | C20: XzWDXpekw 75 1,0/4,8 CESAT | D20: KC | E20: Przewód koncentryczny XzWDXpekw 75 1,0/4,8 czarny (wypełnienie żelem); (UHD-4K); CESAT | F20: km | G20: 2,700.00 zł | I20: 0% | J20: 2,700.00 zł | L20: 0
B21: KAB10000918 | C21: XzWDXpekw 75 1,13/4,8 CESAT | D21: KC | E21: Przewód koncentryczny XzWDXpekw 75 1,13/4,8 czarny (wypełnienie żelem); (UHD-4K); CESAT | F21: km | G21: 2,920.00 zł | H21: Na zamówienie poprzedzone zapytaniem ofertowym | I21: 0% | J21: =G21-G21*I21 -> 2,920.00 zł | L21: 0
B22: KAB10001013 | C22: YWD 75 0,59/3,7 + OMY 2x0,50 | D22: KC | E22: Przewód koncentryczny z zasilaniem (w jednym) YWD 75 0,59/3,7 + OMY 2x0,50 | F22: km | G22: 4,385.00 zł | I22: 0% | J22: =G22-G22*I22 -> 4,385.00 zł | L22: 0
B23: KAB10000950 | C23: YWD 75 0,59/3,7+OMY 2x0,50; CZARNY UV | D23: KC | E23: Przewód koncentryczny z zasilaniem (w jednym) YWD 75 0,59/3,7 + OMY 2x0,50; CZARNY UV | F23: km | G23: 4,390.00 zł | H23: Na zamówienie poprzedzone zapytaniem ofertowym | I23: 0% | J23: =G23-G23*I23 -> 4,390.00 zł | L23: 0
B24: KAB10000953 | C24: YWDXpek 75 1,0/4,8+OMY 2x1,0; CESAT | D24: KC | E24: Przewód koncentryczny z zasilaniem (w jednym) YWDXpek 75 1,0/4,8 + OMY 2x1,0; CESAT | F24: km | G24: 4,412.00 zł | I24: 0% | J24: =G24-G24*I24 -> 4,412.00 zł | L24: 0
B25: KAB10000963 | C25: YWDXpek 75 1,0/4,8+OMY 2x1,0; CESAT; CZARNY UV | D25: KC | E25: Przewód koncentryczny z zasilaniem (w jednym) YWDXpek 75 1,0/4,8 + OMY 2x1,0; CESAT; CZARNY UV | F25: km | G25: 4,416.00 zł | H25: Na zamówienie poprzedzone zapytaniem ofertowym | I25: 0% | J25: =G25-G25*I25 -> 4,416.00 zł | L25: 0
B26: KAB10001015 | C26: YWDek 75 0,59/3,7+OMY 2X0,50 | D26: KC | E26: Przewód koncentryczny z zasilaniem (w jednym) YWDek 75 0,59/3,7 + OMY 2X0,50 | F26: km | G26: 3,667.00 zł | I26: 0% | J26: 3,667.00 zł | L26: 0
B27: KAB10000981 | C27: YWDek 75 0,59/3,7 +OMY 2X0,5; CZARNY UV | D27: KC | E27: Przewód koncentryczny z zasilaniem (w jednym) YWDek 75 0,59/3,7 + OMY 2X0,5; CZARNY UV | F27: km | G27: 3,673.00 zł | H27: Na zamówienie poprzedzone zapytaniem ofertowym | I27: 0% | J27: 3,673.00 zł | L27: 0
B28: KAB10000391 | C28: RG 59 B/U | D28: KC | E28: Przewód koncentryczny RG 59 B/U, biały | F28: km | G28: 2,531.00 zł | I28: 0% | J28: 2,531.00 zł | L28: 0
B29: KAB10000392 | C29: RG 59 B/U | D29: KC | E29: Przewód koncentryczny RG 59 B/U, czarny | F29: km | G29: 2,533.00 zł | H29: Na zamówienie poprzedzone zapytaniem ofertowym | I29: 0% | J29: 2,533.00 zł | L29: 0
B30: ID | C30: SYMBOL | D30: TI | E30: Przewody teleinformatyczne | G30: =G2 -> CENNIK ważny od: 01.02.2026 | H30: DODATKOWE INFORMACJE | J30: CENA ZAKUPU | K30: ILOŚĆ | L30: WARTOŚĆ
B31: KAB10000462 | C31: UTP KAT. 5e 4x2x0,50 SZR | D31: TI | E31: Przewód teleinformatyczny UTP KAT 5e 4x2x0,50 | G31: 2,334.00 zł | I31: =$I$30 -> 0% | J31: =G31-G31*I31 -> 2,334.00 zł | L31: 0
B32: KAB10001008 | C32: UTP KAT. 6 4x2x0,60 SZR | D32: TI | E32: Przewód teleinformatyczny UTP KAT 6 4x2x0,60 (szpule 500m, 1000m) | G32: 3,639.00 zł | H32: Na zamówienie poprzedzone zapytaniem ofertowym | I32: =$I$30 -> 0% | J32: 3,639.00 zł | L32: 0
B33: KAB10011076 | C33: ZAMEL UTP KAT. 6 4x2x0,60 SZR | D33: TI | E33: Przewód teleinformatyczny ZAMEL UTP kat.6 4x2x0,6 szary (karton 305m) | G33: 2,200.00 zł | I33: 0% | J33: 2,200.00 zł | L33: 0
B34: KAB10000758 | C34: UTPz KAT. 5e 4x2x0,50 CZR | D34: TI | E34: Przewód teleinformatyczny UTPz KAT 5e 4x2x0,5; czarny UV | G34: 2,544.00 zł | I34: 0% | J34: 2,544.00 zł | L34: 0
B35: KAB10000727 | C35: UTPw KAT. 5e 4x2x0,50 CZN | D35: TI | E35: Przewód teleinformatyczny UTPw KAT 5e 4x2x0,5; (wypełnienie żelem) | G35: 2,640.00 zł | I35: 0% | J35: 2,640.00 zł | L35: 0
B36: KAB10000870 | C36: UTP KAT. 5e 4x2x0,50 LSOH | D36: TI | E36: Przewód teleinformatyczny UTP KAT 5e 4x2x0,5 LSOH | G36: 2,353.00 zł | I36: 0% | J36: 2,353.00 zł | L36: 0
B37: KAB10000872 | C37: UTP KAT. 6 4x2x0,60 LSOH | D37: TI | E37: Przewód teleinformatyczny UTP KAT 6 4x2x0,60 LSOH | G37: 3,688.00 zł | H37: Na zamówienie poprzedzone zapytaniem ofertowym | I37: 0% | J37: 3,688.00 zł | L37: 0
B38: KAB10000054 | C38: FTP KAT. 5e 4x2x0,50 SZR | D38: TI | E38: Przewód teleinformatyczny FTP KAT 5e 4x2x0,5 | G38: 2,703.00 zł | I38: 0% | J38: 2,703.00 zł | L38: 0
B39: KAB10011077 | C39: ZAMEL FTP KAT. 6 4x2x0,50 SZR | D39: TI | E39: Przewód teleinformatyczny ZAMEL FTP KAT 6; 4x2x0,60 szary. (szpulka 305m) | G39: 2,450.00 zł | I39: 0% | J39: 2,450.00 zł | L39: 0
B40: KAB10000759 | C40: FTPz KAT. 5e 4x2x0,50 CZR | D40: TI | E40: Przewód teleinformatyczny FTPz KAT 5e 4x2x0,5; czarny UV | G40: 2,797.00 zł | I40: 0% | J40: 2,797.00 zł | L40: 0
B41: KAB10000715 | C41: FTPw KAT. 5e 4x2x0,50 CZN | D41: TI | E41: Przewód teleinformatyczny FTPw KAT 5e 4x2x0,5; (wypełnienie żelem) | G41: 3,200.00 zł | I41: 0% | J41: 3,200.00 zł | L41: 0
B42: KAB10000871 | C42: FTP KAT. 5e 4x2x0,50 LSOH | D42: TI | E42: Przewód teleinformatyczny FTP KAT 5e 4x2x0,50 LSOH | G42: 2,805.00 zł | H42: Na zamówienie poprzedzone zapytaniem ofertowym | I42: 0% | J42: 2,805.00 zł | L42: 0
B43: ID | C43: SYMBOL | D43: SOL | E43: Kable fotowoltaiczne SOLARCET | G43: =G2 -> CENNIK ważny od: 01.02.2026 | H43: DODATKOWE INFORMACJE | J43: CENA ZAKUPU | K43: ILOŚĆ | L43: WARTOŚĆ
B44: KAB10002016 | C44: H1Z2Z2-K 1x2,5 SOLARCET | D44: SOL | E44: Kabel fotowoltaiczny H1Z2Z2-K 1x2,5 1,0/1KV SOLARCET, czarny | G44: 2,240.00 zł | H44: Na zamówienie poprzedzone zapytaniem ofertowym | I44: =$I$43 -> 0% | J44: 2,240.00 zł | L44: 0
B45: KAB10002017 | C45: H1Z2Z2-K 1x2,5 SOLARCET | D45: SOL | E45: Kabel fotowoltaiczny H1Z2Z2-K 1x2,5 1,0/1KV SOLARCET, czerwony | G45: 2,240.00 zł | H45: Na zamówienie poprzedzone zapytaniem ofertowym | I45: =$I$43 -> 0% | J45: 2,240.00 zł | L45: 0
B46: KAB10002018 | C46: H1Z2Z2-K 1x2,5 SOLARCET | D46: SOL | E46: Kabel fotowoltaiczny H1Z2Z2-K 1x2,5 1,0/1KV SOLARCET, niebieski | G46: 2,240.00 zł | H46: Na zamówienie poprzedzone zapytaniem ofertowym | I46: 0% | J46: 2,240.00 zł | L46: 0
B47: KAB10002019 | C47: H1Z2Z2-K 1x4,0 SOLARCET | D47: SOL | E47: Kabel fotowoltaiczny H1Z2Z2-K 1x4,0 1,0/1KV SOLARCET, czarny | G47: 3,744.00 zł | I47: 0% | J47: 3,744.00 zł | L47: 0
B48: KAB10002020 | C48: H1Z2Z2-K 1x4,0 SOLARCET | D48: SOL | E48: Kabel fotowoltaiczny H1Z2Z2-K 1x4,0 1,0/1KV SOLARCET, czerwony | G48: 3,744.00 zł | I48: 0% | J48: 3,744.00 zł | L48: 0
B49: KAB10002021 | C49: H1Z2Z2-K 1x4,0 SOLARCET | D49: SOL | E49: Kabel fotowoltaiczny H1Z2Z2-K 1x4,0 1,0/1KV SOLARCET, niebieski | G49: 3,744.00 zł | I49: 0% | J49: 3,744.00 zł | L49: 0
B50: KAB10002022 | C50: H1Z2Z2-K 1x6,0 SOLARCET | D50: SOL | E50: Kabel fotowoltaiczny H1Z2Z2-K 1x6,0 1,0/1KV SOLARCET, czarny | G50: 5,113.00 zł | I50: 0% | J50: 5,113.00 zł | L50: 0
B51: KAB10002023 | C51: H1Z2Z2-K 1x6,0 SOLARCET | D51: SOL | E51: Kabel fotowoltaiczny H1Z2Z2-K 1x6,0 1,0/1KV SOLARCET, czerwony | G51: 5,113.00 zł | I51: 0% | J51: 5,113.00 zł | L51: 0
B52: KAB10002024 | C52: H1Z2Z2-K 1x6,0 SOLARCET | D52: SOL | E52: Kabel fotowoltaiczny H1Z2Z2-K 1x6,0 1,0/1KV SOLARCET, niebieski | G52: 5,113.00 zł | I52: 0% | J52: 5,113.00 zł | L52: 0
B53: ID | C53: SYMBOL | D53: TK0,5 | E53: Kable telekomunikacyjne stacyjne z żyłami o średnicy 0,5 mm | G53: =G2 -> CENNIK ważny od: 01.02.2026 | H53: DODATKOWE INFORMACJE | J53: CENA ZAKUPU | K53: ILOŚĆ | L53: WARTOŚĆ
B54: KAB10000660 | C54: YTKSY 1x2x0,50 BIA | D54: TK0,5 | E54: Kabel telekomunikacyjny, stacyjny YTKSY 1x2x0,50 Biały | G54: 628.00 zł | I54: =$I$53 -> 0% | J54: =G54-G54*I54 -> 628.00 zł | L54: 0
B55: KAB10000662 | C55: YTKSY 1x4x0,50 BIA | D55: TK0,5 | E55: Kabel telekomunikacyjny, stacyjny YTKSY 1x4x0,50 Biały | G55: 1,103.00 zł | I55: =$I$53 -> 0% | J55: =G55-G55*I55 -> 1,103.00 zł | L55: 0
B56: KAB10000665 | C56: YTKSY 2x2x0,50 BIA | D56: TK0,5 | E56: Kabel telekomunikacyjny, stacyjny YTKSY 2x2x0,50 Biały | G56: 1,116.00 zł | I56: 0% | J56: 1,116.00 zł | L56: 0
B57: KAB10000668 | C57: YTKSY 3x2x0,50 BIA | D57: TK0,5 | E57: Kabel telekomunikacyjny, stacyjny YTKSY 3x2x0,50 Biały | G57: 1,628.00 zł | I57: 0% | J57: 1,628.00 zł | L57: 0
B58: KAB10000669 | C58: YTKSY 4x2x0,50 BIA | D58: TK0,5 | E58: Kabel telekomunikacyjny, stacyjny YTKSY 4x2x0,50 Biały | G58: 1,996.00 zł | I58: 0% | J58: 1,996.00 zł | L58: 0
B59: KAB10000670 | C59: YTKSY 5x2x0,50 BIA | D59: TK0,5 | E59: Kabel telekomunikacyjny, stacyjny YTKSY 5x2x0,50 Biały | G59: 2,425.00 zł | I59: 0% | J59: 2,425.00 zł | L59: 0
B60: KAB10000671 | C60: YTKSY 6x2x0,50 BIA | D60: TK0,5 | E60: Kabel telekomunikacyjny, stacyjny YTKSY 6x2x0,50 Biały | G60: 2,858.00 zł | I60: 0% | J60: 2,858.00 zł | L60: 0
B61: KAB10000672 | C61: YTKSY 7x2x0,50 BIA | D61: TK0,5 | E61: Kabel telekomunikacyjny, stacyjny YTKSY 7x2x0,50 Biały | G61: 3,205.00 zł | I61: 0% | J61: 3,205.00 zł | L61: 0
B62: KAB10000673 | C62: YTKSY 8x2x0,50 BIA | D62: TK0,5 | E62: Kabel telekomunikacyjny, stacyjny YTKSY 8x2x0,50 Biały | G62: 3,637.00 zł | I62: 0% | J62: 3,637.00 zł | L62: 0
B63: KAB10000657 | C63: YTKSY 10x2x0,50 BIA | D63: TK0,5 | E63: Kabel telekomunikacyjny, stacyjny YTKSY 10x2x0,50 Biały | G63: 4,429.00 zł | I63: 0% | J63: 4,429.00 zł | L63: 0
B64: KAB10000677 | C64: YTKSYekw 1x2x0,50 BIA | D64: TK0,5 | E64: Kabel telekomunikacyjny, stacyjny YTKSYekw 1x2x0,50 Biały | G64: 836.00 zł | I64: 0% | J64: 836.00 zł | L64: 0
B65: KAB10000678 | C65: YTKSYekw 1x4x0,50 BIA | D65: TK0,5 | E65: Kabel telekomunikacyjny, stacyjny YTKSYekw 1x4x0,50 Biały | G65: 1,248.00 zł | H65: Jeśli brak na stanie obowiązuje minimum 5km | I65: 0% | J65: 1,248.00 zł | L65: 0
B66: KAB10000682 | C66: YTKSYekw 2x2x0,50 BIA | D66: TK0,5 | E66: Kabel telekomunikacyjny, stacyjny YTKSYekw 2x2x0,50 Biały | G66: 1,295.00 zł | H66: Jeśli brak na stanie obowiązuje minimum 5km | I66: 0% | J66: 1,295.00 zł | L66: 0
B67: KAB10000685 | C67: YTKSYekw 3x2x0,50 BIA | D67: TK0,5 | E67: Kabel telekomunikacyjny, stacyjny YTKSYekw 3x2x0,50 Biały | G67: 1,729.00 zł | H67: Jeśli brak na stanie obowiązuje minimum 5km | I67: 0% | J67: 1,729.00 zł | L67: 0
B68: KAB10000686 | C68: YTKSYekw 4x2x0,50 BIA | D68: TK0,5 | E68: Kabel telekomunikacyjny, stacyjny YTKSYekw 4x2x0,50 Biały | G68: 2,161.00 zł | H68: Jeśli brak na stanie obowiązuje minimum 5km | I68: 0% | J68: 2,161.00 zł | L68: 0
B69: KAB10000687 | C69: YTKSYekw 5x2x0,50 BIA | D69: TK0,5 | E69: Kabel telekomunikacyjny, stacyjny YTKSYekw 5x2x0,50 Biały | G69: 2,621.00 zł | H69: Jeśli brak na stanie obowiązuje minimum 5km | I69: 0% | J69: 2,621.00 zł | L69: 0
B70: KAB10000689 | C70: YTKSYekw 6x2x0,50 BIA | D70: TK0,5 | E70: Kabel telekomunikacyjny, stacyjny YTKSYekw 6x2x0,50 Biały | G70: 3,064.00 zł | H70: Jeśli brak na stanie obowiązuje minimum 5km | I70: 0% | J70: 3,064.00 zł | L70: 0
B71: KAB10000690 | C71: YTKSYekw 7x2x0,50 BIA | D71: TK0,5 | E71: Kabel telekomunikacyjny, stacyjny YTKSYekw 7x2x0,50 Biały | G71: 3,480.00 zł | H71: Jeśli brak na stanie obowiązuje minimum 5km | I71: 0% | J71: 3,480.00 zł | L71: 0
B72: KAB10000691 | C72: YTKSYekw 8x2x0,50 BIA | D72: TK0,5 | E72: Kabel telekomunikacyjny, stacyjny YTKSYekw 8x2x0,50 Biały | G72: 3,938.00 zł | H72: Jeśli brak na stanie obowiązuje minimum 5km | I72: 0% | J72: 3,938.00 zł | L72: 0
B73: KAB10000674 | C73: YTKSYekw 10x2x0,50 BIA | D73: TK0,5 | E73: Kabel telekomunikacyjny, stacyjny YTKSYekw 10x2x0,50 Biały | G73: 4,679.00 zł | H73: Jeśli brak na stanie obowiązuje minimum 5km | I73: 0% | J73: 4,679.00 zł | L73: 0
B74: ID | C74: SYMBOL | D74: TK0,8 | E74: Kable telekomunikacyjne stacyjne z żyłami o średnicy 0,8 mm | G74: =G2 -> CENNIK ważny od: 01.02.2026 | H74: DODATKOWE INFORMACJE | J74: CENA ZAKUPU | K74: ILOŚĆ | L74: WARTOŚĆ
B75: KAB10000661 | C75: YTKSY 1x2x0,80 BIA | D75: TK0,8 | E75: Stacyjny kabel telekomunikacyjny YTKSY 1x2x0,80 | G75: 1,232.00 zł | I75: =$I$74 -> 0% | J75: 1,232.00 zł | L75: =K75*J75 -> 0
B76: KAB10000879 | C76: YTKSY 1x4x0,80 BIA | D76: TK0,8 | E76: Stacyjny kabel telekomunikacyjny YTKSY 1x4x0,80 | G76: 2,183.00 zł | I76: =$I$74 -> 0% | J76: 2,183.00 zł | L76: 0
B77: KAB10000666 | C77: YTKSY 2x2x0,80 BIA | D77: TK0,8 | E77: Stacyjny kabel telekomunikacyjny YTKSY 2x2x0,80 | G77: 2,257.00 zł | I77: 0% | J77: 2,257.00 zł | L77: 0
B78: KAB10000880 | C78: YTKSY 3x2x0,80 BIA | D78: TK0,8 | E78: Stacyjny kabel telekomunikacyjny YTKSY 3x2x0,80 | G78: 3,244.00 zł | H78: Jeśli brak na stanie obowiązuje minimum 5km | I78: 0% | J78: 3,244.00 zł | L78: 0
B79: KAB10000730 | C79: YTKSY 5x2x0,80 BIA | D79: TK0,8 | E79: Stacyjny kabel telekomunikacyjny YTKSY 5x2x0,80 | G79: 5,202.00 zł | H79: Jeśli brak na stanie obowiązuje minimum 5km | I79: 0% | J79: 5,202.00 zł | L79: 0
B80: KAB10000874 | C80: YTKSYekw 1x2x0,80 BIA | D80: TK0,8 | E80: Stacyjny kabel telekomunikacyjny YTKSYekw 1x2x0,80 | G80: 1,479.00 zł | I80: 0% | J80: 1,479.00 zł | L80: 0
B81: KAB10000679 | C81: YTKSYekw 1x4x0,80 BIA | D81: TK0,8 | E81: Stacyjny kabel telekomunikacyjny YTKSYekw 1x4x0,80 | G81: 2,386.00 zł | H81: Jeśli brak na stanie obowiązuje minimum 5km | I81: 0% | J81: 2,386.00 zł | L81: 0
B82: KAB10000683 | C82: YTKSYekw 2x2x0,80 BIA | D82: TK0,8 | E82: Stacyjny kabel telekomunikacyjny YTKSYekw 2x2x0,80 | G82: 2,477.00 zł | I82: 0% | J82: 2,477.00 zł | L82: 0
B83: KAB10000881 | C83: YTKSYekw 3x2x0,80 BIA | D83: TK0,8 | E83: Stacyjny kabel telekomunikacyjny YTKSYekw 3x2x0,80 | G83: 3,468.00 zł | H83: Jeśli brak na stanie obowiązuje minimum 5km | I83: 0% | J83: 3,468.00 zł | L83: 0
B84: KAB10000688 | C84: YTKSYekw 5x2x0,80 BIA | D84: TK0,8 | E84: Stacyjny kabel telekomunikacyjny YTKSYekw 5x2x0,80 | G84: 5,459.00 zł | H84: Jeśli brak na stanie obowiązuje minimum 5km | I84: 0% | J84: 5,459.00 zł | L84: 0
B85: ID | C85: SYMBOL | D85: TKn | E85: Kable telekomunikacyjne stacyjne nierozprzestrzeniające ognia | G85: =G2 -> CENNIK ważny od: 01.02.2026 | H85: DODATKOWE INFORMACJE | J85: CENA ZAKUPU | K85: ILOŚĆ | L85: WARTOŚĆ
B86: KAB10000490 | C86: YnTKSY 1x2x0,80 CZE | D86: TKn | E86: Stacyjny kabel telekomunikacyjny nierozprzestrzenniający ognia YnTKSY 1x2x0,80 | G86: 1,332.00 zł | I86: =$I$85 -> 0% | J86: 1,332.00 zł | L86: 0
B87: KAB10000491 | C87: YnTKSY 1x2x1,00 CZE | D87: TKn | E87: Stacyjny kabel telekomunikacyjny nierozprzestrzenniający ognia YnTKSY 1x2x1,0 | G87: 1,884.00 zł | I87: =$I$85 -> 0% | J87: 1,884.00 zł | L87: 0
B88: KAB10000493 | C88: YnTKSY 1x4x0,80 CZE | D88: TKn | E88: Stacyjny kabel telekomunikacyjny nierozprzestrzenniający ognia YnTKSY 1x4x0,80 | G88: 2,352.00 zł | I88: 0% | J88: 2,352.00 zł | L88: 0
B89: KAB10000494 | C89: YnTKSY 2x2x0,80 CZE | D89: TKn | E89: Stacyjny kabel telekomunikacyjny nierozprzestrzenniający ognia YnTKSY 2x2x0,80 | G89: 2,425.00 zł | I89: 0% | J89: 2,425.00 zł | L89: 0
B90: KAB10000882 | C90: YnTKSY 3x2x0,80 CZE | D90: TKn | E90: Stacyjny kabel telekomunikacyjny nierozprzestrzenniający ognia YnTKSY 3x2x0,80 | G90: 3,448.00 zł | H90: Jeśli brak na stanie obowiązuje minimum 5km | I90: 0% | J90: 3,448.00 zł | L90: 0
B91: KAB10000495 | C91: YnTKSY 4x2x0,80 CZE | D91: TKn | E91: Stacyjny kabel telekomunikacyjny nierozprzestrzenniający ognia YnTKSY 4x2x0,80 | G91: 4,606.00 zł | H91: Jeśli brak na stanie obowiązuje minimum 5km | I91: 0% | J91: 4,606.00 zł | L91: 0
B92: KAB10001010 | C92: YnTKSYekw 1x2x0,80 CZE | D92: TKn | E92: Stacyjny kabel telekomunikacyjny nierozprzestrzenniający ognia YnTKSYekw 1x2x0,80 | G92: 1,582.00 zł | I92: 0% | J92: 1,582.00 zł | L92: 0
B93: KAB10000497 | C93: YnTKSYekw 1x2x1,00 CZE | D93: TKn | E93: Stacyjny kabel telekomunikacyjny nierozprzestrzenniający ognia YnTKSYekw 1x2x1,00 | G93: 2,077.00 zł | I93: 0% | J93: 2,077.00 zł | L93: 0
B94: KAB10000883 | C94: YnTKSYekw 1x4x0,80 CZE | D94: TKn | E94: Stacyjny kabel telekomunikacyjny nierozprzestrzenniający ognia YnTKSYekw 1x4x0,80 | G94: 2,562.00 zł | I94: 0% | J94: 2,562.00 zł | L94: 0
B95: KAB10001011 | C95: YnTKSYekw 2x2x0,80 CZE | D95: TKn | E95: Stacyjny kabel telekomunikacyjny nierozprzestrzenniający ognia YnTKSYekw 2x2x0,80 | G95: 2,696.00 zł | I95: 0% | J95: 2,696.00 zł | L95: 0
B96: KAB10000500 | C96: YnTKSYekw 3x2x0,80 CZE | D96: TKn | E96: Stacyjny kabel telekomunikacyjny nierozprzestrzenniający ognia YnTKSYekw 3x2x0,80 | G96: 3,858.00 zł | H96: Jeśli brak na stanie obowiązuje minimum 5km | I96: 0% | J96: 3,858.00 zł | L96: 0
B97: KAB10000501 | C97: YnTKSYekw 4x2x0,80 CZE | D97: TKn | E97: Stacyjny kabel telekomunikacyjny nierozprzestrzenniający ognia YnTKSYekw 4x2x0,80 | G97: 4,911.00 zł | H97: Jeśli brak na stanie obowiązuje minimum 5km | I97: 0% | J97: 4,911.00 zł | L97: 0
B98: ID | C98: SYMBOL | D98: TD | E98: Przewody telekomunikacyjne montażowe (alarmowe) | G98: =G2 -> CENNIK ważny od: 01.02.2026 | H98: DODATKOWE INFORMACJE | J98: CENA ZAKUPU | K98: ILOŚĆ | L98: WARTOŚĆ
B99: KAB10000394 | C99: TDY 1x0,50 BIA | D99: TD | E99: Przewód telekomunikacyjny – montażowy TDY 1x0,50 BIA | G99: 380.00 zł | H99: Na zamówienie z określonym w ofercie minimum produkcyjnym. | I99: =$I$98 -> 0% | J99: 380.00 zł | L99: 0
B100: KAB10000396 | C100: TDY 1x0,50 CZN | D100: TD | E100: Przewód telekomunikacyjny – montażowy TDY 1x0,50 CZN | G100: 380.00 zł | H100: Na zamówienie z określonym w ofercie minimum produkcyjnym. | I100: =$I$98 -> 0% | J100: 380.00 zł | L100: 0
B101: KAB10000399 | C101: TDY 1x0,50 NIE | D101: TD | E101: Przewód telekomunikacyjny – montażowy TDY 1x0,50 NIE | G101: 380.00 zł | H101: Na zamówienie z określonym w ofercie minimum produkcyjnym. | I101: 0% | J101: 380.00 zł | L101: 0
B102: KAB10000646 | C102: YTDY 10x0,50 BIA | D102: TD | E102: Przewód telekomunikacyjny – montażowy YTDY 10x0,50 BIA | G102: 2,589.00 zł | I102: 0% | J102: 2,589.00 zł | L102: 0
B103: KAB10000647 | C103: YTDY 12x0,50 BIA | D103: TD | E103: Przewód telekomunikacyjny – montażowy YTDY 12x0,50 BIA | G103: 2,993.00 zł | I103: 0% | J103: 2,993.00 zł | L103: 0
B104: KAB10000648 | C104: YTDY 2x0,50 BIA | D104: TD | E104: Przewód telekomunikacyjny – montażowy YTDY 2x0,50 BIA | G104: 667.00 zł | I104: 0% | J104: 667.00 zł | L104: 0
B105: KAB10000649 | C105: YTDY 4x0,50 BIA | D105: TD | E105: Przewód telekomunikacyjny – montażowy YTDY 4x0,50 BIA | G105: 1,169.00 zł | I105: 0% | J105: 1,169.00 zł | L105: 0
B106: KAB10000650 | C106: YTDY 6x0,50 BIA | D106: TD | E106: Przewód telekomunikacyjny – montażowy YTDY 6x0,50 BIA | G106: 1,570.00 zł | I106: 0% | J106: 1,570.00 zł | L106: 0
B107: KAB10000651 | C107: YTDY 7x0,50 BIA | D107: TD | E107: Przewód telekomunikacyjny – montażowy YTDY 7x0,50 BIA | G107: 1,841.00 zł | I107: 0% | J107: =G107-G107*I107 -> 1,841.00 zł | L107: 0
B108: KAB10000652 | C108: YTDY 8x0,50 BIA | D108: TD | E108: Przewód telekomunikacyjny – montażowy YTDY 8x0,50 BIA | G108: 2,064.00 zł | I108: 0% | J108: 2,064.00 zł | L108: 0
B109: KAB10000653 | C109: YTDYekw 10x0,50 BIA | D109: TD | E109: Przewód telekomunikacyjny – montażowy YTDYekw 10x0,50 BIA | G109: 2,952.00 zł | H109: Na zamówienie z określonym w ofercie minimum produkcyjnym. | I109: 0% | J109: 2,952.00 zł | L109: 0
B110: KAB10000654 | C110: YTDYekw 4x0,50 BIA | D110: TD | E110: Przewód telekomunikacyjny – montażowy YTDYekw 4x0,50 BIA | G110: 1,576.00 zł | H110: Na zamówienie z określonym w ofercie minimum produkcyjnym. | I110: 0% | J110: 1,576.00 zł | L110: 0
B111: KAB10000655 | C111: YTDYekw 6x0,50 BIA | D111: TD | E111: Przewód telekomunikacyjny – montażowy YTDYekw 6x0,50 BIA | G111: 1,997.00 zł | H111: Na zamówienie z określonym w ofercie minimum produkcyjnym. | I111: 0% | J111: 1,997.00 zł | L111: 0
B112: KAB10000656 | C112: YTDYekw 8x0,50 BIA | D112: TD | E112: Przewód telekomunikacyjny – montażowy YTDYekw 8x0,50 BIA | G112: 2,432.00 zł | H112: Na zamówienie z określonym w ofercie minimum produkcyjnym. | I112: 0% | J112: 2,432.00 zł | L112: 0
B113: KAB10000692 | C113: YTLY 2x0,15 BIA | D113: TD | E113: Przewód telekomunikacyjny – montażowy YTLY 2x0,15 BIA | G113: 1,505.00 zł | H113: Na zamówienie z określonym w ofercie minimum produkcyjnym. | I113: 0% | J113: 1,505.00 zł | L113: 0
B114: ID | C114: SYMBOL | D114: GŁ | E114: Przewody głośnikowe | G114: =G2 -> CENNIK ważny od: 01.02.2026 | H114: DODATKOWE INFORMACJE | J114: CENA ZAKUPU | K114: ILOŚĆ | L114: WARTOŚĆ
B115: KAB10000415 | C115: TLgYp 2x0,75 BEZBARWNY | D115: GŁ | E115: Przewód głośnikowy TLgYp 2x0,75 BEZBARWNY | G115: 1,908.00 zł | I115: =$I$114 -> 0% | J115: 1,908.00 zł | L115: 0
B116: KAB10000416 | C116: TLgYp 2x1,00 BEZBARWNY | D116: GŁ | E116: Przewód głośnikowy TLgYp 2x1,00 BEZBARWNY | G116: 2,381.00 zł | I116: =$I$114 -> 0% | J116: 2,381.00 zł | L116: 0
B117: KAB10000417 | C117: TLgYp 2x1,50 BEZBARWNY | D117: GŁ | E117: Przewód głośnikowy TLgYp 2x1,50 BEZBARWNY | G117: 3,422.00 zł | I117: 0% | J117: 3,422.00 zł | L117: 0
B118: KAB10000418 | C118: TLgYp 2x2,50 BEZBARWNY | D118: GŁ | E118: Przewód głośnikowy TLgYp 2x2,50 BEZBARWNY | G118: 5,161.00 zł | I118: 0% | J118: 5,161.00 zł | L118: 0
B119: KAB10000456 | C119: TLYp 2x0,50 BIAŁY | D119: GŁ | E119: Przewód głośnikowy TLYp 2x0,50 BIAŁY | G119: 1,245.00 zł | I119: 0% | J119: 1,245.00 zł | L119: 0
B120: KAB10000457 | C120: TLYp 2x0,50 CZARNY | D120: GŁ | E120: Przewód głośnikowy TLYp 2x0,50 CZARNY | G120: 1,245.00 zł | I120: 0% | J120: 1,245.00 zł | L120: 0
B121: KAB10000458 | C121: TLYp 2x0,75 BIAŁY | D121: GŁ | E121: Przewód głośnikowy TLYp 2x0,75 BIAŁY | G121: 1,678.00 zł | I121: 0% | J121: 1,678.00 zł | L121: 0
B122: KAB10000459 | C122: TLYp 2x0,75 CZARNY | D122: GŁ | E122: Przewód głośnikowy TLYp 2x0,75 CZARNY | G122: 1,678.00 zł | I122: 0% | J122: 1,678.00 zł | L122: 0
B123: KAB10000460 | C123: TLYp 2x1,00 BIAŁY | D123: GŁ | E123: Przewód głośnikowy TLYp 2x1,00 BIAŁY | G123: 2,101.00 zł | I123: 0% | J123: 2,101.00 zł | L123: 0
B124: KAB10000461 | C124: TLYp 2x1,00 CZARNY | D124: GŁ | E124: Przewód głośnikowy TLYp 2x1,00 CZARNY | G124: 2,101.00 zł | I124: 0% | J124: =G124-G124*I124 -> 2,101.00 zł | L124: =K124*J124 -> 0
B125: KAB10002039 | C125: TLYp 2x1,50 BIAŁY | D125: GŁ | E125: Przewód głośnikowy TLYp 2x1,50 BIAŁY | G125: 2,932.00 zł | H125: NOWOŚĆ w ofercie | I125: 0% | J125: 2,932.00 zł | L125: 0
B126: KAB10002040 | C126: TLYp 2x1,50 CZARNY | D126: GŁ | E126: Przewód głośnikowy TLYp 2x1,50 CZARNY | G126: 2,932.00 zł | H126: NOWOŚĆ w ofercie | I126: 0% | J126: 2,932.00 zł | L126: 0
B127: KAB10002041 | C127: TLYp 2x2,50 BIAŁY | D127: GŁ | E127: Przewód głośnikowy TLYp 2x2,50 BIAŁY | G127: 4,708.00 zł | H127: NOWOŚĆ w ofercie | I127: 0% | J127: 4,708.00 zł | L127: 0
B128: KAB10002042 | C128: TLYp 2x2,50 CZARNY | D128: GŁ | E128: Przewód głośnikowy TLYp 2x2,50 CZARNY | G128: 4,708.00 zł | H128: NOWOŚĆ w ofercie | I128: 0% | J128: 4,708.00 zł | L128: 0
B129: ID | C129: SYMBOL | D129: EE | E129: Przewody elektroenergetyczne jednożyłowe, wielodrutowe | G129: =G2 -> CENNIK ważny od: 01.02.2026 | H129: DODATKOWE INFORMACJE | J129: CENA ZAKUPU | K129: ILOŚĆ | L129: WARTOŚĆ
B130: KAB10000139 | C130: LgY 1x0,50 300/500 BIA | D130: EE | E130: Przewód elektroenergetyczny LgY 1x0,50 300/500 BIAŁY | G130: 595.00 zł | H130: W przypadku braku na magazynie obowiązuje min. produkcyjne określane na bieżąco w ofercie | I130: =$I$129 -> 0% | J130: =G130-G130*I130 -> 595.00 zł | L130: 0
B131: KAB10000140 | C131: LgY 1x0,50 300/500 BRĄ | D131: EE | E131: Przewód elektroenergetyczny LgY 1x0,50 300/500 BRĄZOWY | G131: 595.00 zł | H131: W przypadku braku na magazynie obowiązuje min. produkcyjne określane na bieżąco w ofercie | I131: 0% | J131: 595.00 zł | L131: 0
B132: KAB10000142 | C132: LgY 1x0,50 300/500 CZN | D132: EE | E132: Przewód elektroenergetyczny LgY 1x0,50 300/500 CZARNY | G132: 595.00 zł | H132: W przypadku braku na magazynie obowiązuje min. produkcyjne określane na bieżąco w ofercie | I132: 0% | J132: 595.00 zł | L132: 0
B133: KAB10000143 | C133: LgY 1x0,50 300/500 CZE | D133: EE | E133: Przewód elektroenergetyczny LgY 1x0,50 300/500 CZERWONY | G133: 595.00 zł | H133: W przypadku braku na magazynie obowiązuje min. produkcyjne określane na bieżąco w ofercie | I133: 0% | J133: 595.00 zł | L133: 0
B134: KAB10000144 | C134: LgY 1x0,50 300/500 NIE | D134: EE | E134: Przewód elektroenergetyczny LgY 1x0,50 300/500 NIEBIESKI | G134: 595.00 zł | H134: W przypadku braku na magazynie obowiązuje min. produkcyjne określane na bieżąco w ofercie | I134: 0% | J134: 595.00 zł | L134: 0
B135: KAB10000146 | C135: LgY 1x0,50 300/500 ŻÓŁ-ZIE | D135: EE | E135: Przewód elektroenergetyczny LgY 1x0,50 300/500 ŻO | G135: 595.00 zł | H135: W przypadku braku na magazynie obowiązuje min. produkcyjne określane na bieżąco w ofercie | I135: 0% | J135: 595.00 zł | L135: 0
B136: KAB10000147 | C136: LgY 1x0,75 300/500 BIA | D136: EE | E136: Przewód elektroenergetyczny LgY 1x0,75 300/500 BIAŁY | G136: 787.00 zł | H136: W przypadku braku na magazynie obowiązuje min. produkcyjne określane na bieżąco w ofercie | I136: 0% | J136: 787.00 zł | L136: 0
B137: KAB10000148 | C137: LgY 1x0,75 300/500 BRĄ | D137: EE | E137: Przewód elektroenergetyczny LgY 1x0,75 300/500 BRĄZOWY | G137: 787.00 zł | H137: W przypadku braku na magazynie obowiązuje min. produkcyjne określane na bieżąco w ofercie | I137: 0% | J137: 787.00 zł | L137: 0
B138: KAB10000149 | C138: LgY 1x0,75 300/500 CZN | D138: EE | E138: Przewód elektroenergetyczny LgY 1x0,75 300/500 CZARNY | G138: 787.00 zł | H138: W przypadku braku na magazynie obowiązuje min. produkcyjne określane na bieżąco w ofercie | I138: 0% | J138: 787.00 zł | L138: 0
B139: KAB10000150 | C139: LgY 1x0,75 300/500 CZE | D139: EE | E139: Przewód elektroenergetyczny LgY 1x0,75 300/500 CZERWONY | G139: 787.00 zł | H139: W przypadku braku na magazynie obowiązuje min. produkcyjne określane na bieżąco w ofercie | I139: 0% | J139: 787.00 zł | L139: 0
B140: KAB10000151 | C140: LgY 1x0,75 300/500 NIE | D140: EE | E140: Przewód elektroenergetyczny LgY 1x0,75 300/500 NIEBIESKI | G140: 787.00 zł | H140: W przypadku braku na magazynie obowiązuje min. produkcyjne określane na bieżąco w ofercie | I140: 0% | J140: 787.00 zł | L140: 0
B141: KAB10000153 | C141: LgY 1x0,75 300/500 ZÓŁ | D141: EE | E141: Przewód elektroenergetyczny LgY 1x0,75 300/500 ZÓŁ | G141: 787.00 zł | H141: W przypadku braku na magazynie obowiązuje min. produkcyjne określane na bieżąco w ofercie | I141: 0% | J141: 787.00 zł | L141: 0
B142: KAB10000154 | C142: LgY 1x0,75 300/500 ŻÓŁ-ZIE | D142: EE | E142: Przewód elektroenergetyczny LgY 1x0,75 300/500 ŻO | G142: 787.00 zł | H142: W przypadku braku na magazynie obowiązuje min. produkcyjne określane na bieżąco w ofercie | I142: 0% | J142: 787.00 zł | L142: =K142*J142 -> 0
B143: KAB10000155 | C143: LgY 1x0,75 300/500 NIE | D143: EE | E143: Przewód elektroenergetyczny LgY 1x0,75 300/500 NIEBIESKI | G143: 787.00 zł | H143: W przypadku braku na magazynie obowiązuje min. produkcyjne określane na bieżąco w ofercie | I143: 0% | J143: 787.00 zł | L143: 0
B144: KAB10000156 | C144: LgY 1x1,00 300/500 BIA | D144: EE | E144: Przewód elektroenergetyczny LgY 1x1,00 300/500 BIAŁY | G144: 1,003.00 zł | H144: W przypadku braku na magazynie obowiązuje min. produkcyjne określane na bieżąco w ofercie | I144: 0% | J144: 1,003.00 zł | L144: 0
B145: KAB10000157 | C145: LgY 1x1,00 300/500 BRĄ | D145: EE | E145: Przewód elektroenergetyczny LgY 1x1,00 300/500 BRĄZOWY | G145: 1,003.00 zł | H145: W przypadku braku na magazynie obowiązuje min. produkcyjne określane na bieżąco w ofercie | I145: 0% | J145: 1,003.00 zł | L145: 0
B146: KAB10000158 | C146: LgY 1x1,00 300/500 CZN | D146: EE | E146: Przewód elektroenergetyczny LgY 1x1,00 300/500 CZARNY | G146: 1,003.00 zł | H146: W przypadku braku na magazynie obowiązuje min. produkcyjne określane na bieżąco w ofercie | I146: 0% | J146: 1,003.00 zł | L146: 0
B147: KAB10000159 | C147: LgY 1x1,00 300/500 CZE | D147: EE | E147: Przewód elektroenergetyczny LgY 1x1,00 300/500 CZERWONY | G147: 1,003.00 zł | H147: W przypadku braku na magazynie obowiązuje min. produkcyjne określane na bieżąco w ofercie | I147: 0% | J147: 1,003.00 zł | L147: 0
B148: KAB10000160 | C148: LgY 1x1,00 300/500 NIE | D148: EE | E148: Przewód elektroenergetyczny LgY 1x1,00 300/500 NIEBIESKI | G148: 1,003.00 zł | H148: W przypadku braku na magazynie obowiązuje min. produkcyjne określane na bieżąco w ofercie | I148: 0% | J148: 1,003.00 zł | L148: 0
B149: KAB10000162 | C149: LgY 1x1,00 300/500 ZÓŁ | D149: EE | E149: Przewód elektroenergetyczny LgY 1x1,00 300/500 ZÓŁ | G149: 1,003.00 zł | H149: W przypadku braku na magazynie obowiązuje min. produkcyjne określane na bieżąco w ofercie | I149: 0% | J149: 1,003.00 zł | L149: 0
B150: KAB10000163 | C150: LgY 1x1,00 300/500 ŻÓŁ-ZIE | D150: EE | E150: Przewód elektroenergetyczny LgY 1x1,00 300/500 ŻO | G150: 1,003.00 zł | H150: W przypadku braku na magazynie obowiązuje min. produkcyjne określane na bieżąco w ofercie | I150: 0% | J150: 1,003.00 zł | L150: 0
B151: KAB10000168 | C151: LgY 1x1,50 300/500 BIA | D151: EE | E151: Przewód elektroenergetyczny LgY 1x1,50 300/500 BIAŁY | G151: 1,421.00 zł | H151: W przypadku braku na magazynie obowiązuje min. produkcyjne określane na bieżąco w ofercie | I151: 0% | J151: 1,421.00 zł | L151: 0
B152: KAB10000169 | C152: LgY 1x1,50 300/500 BRĄ | D152: EE | E152: Przewód elektroenergetyczny LgY 1x1,50 300/500 BRĄZOWY | G152: 1,421.00 zł | H152: W przypadku braku na magazynie obowiązuje min. produkcyjne określane na bieżąco w ofercie | I152: 0% | J152: 1,421.00 zł | L152: 0
B153: KAB10000170 | C153: LgY 1x1,50 300/500 CZN | D153: EE | E153: Przewód elektroenergetyczny LgY 1x1,50 300/500 CZARNY | G153: 1,421.00 zł | H153: W przypadku braku na magazynie obowiązuje min. produkcyjne określane na bieżąco w ofercie | I153: 0% | J153: 1,421.00 zł | L153: 0
B154: KAB10000171 | C154: LgY 1x1,50 300/500 CZE | D154: EE | E154: Przewód elektroenergetyczny LgY 1x1,50 300/500 CZERWONY | G154: 1,421.00 zł | H154: W przypadku braku na magazynie obowiązuje min. produkcyjne określane na bieżąco w ofercie | I154: 0% | J154: 1,421.00 zł | L154: 0
B155: KAB10000172 | C155: LgY 1x1,50 300/500 NIE | D155: EE | E155: Przewód elektroenergetyczny LgY 1x1,50 300/500 NIEBIESKI | G155: 1,421.00 zł | H155: W przypadku braku na magazynie obowiązuje min. produkcyjne określane na bieżąco w ofercie | I155: 0% | J155: 1,421.00 zł | L155: 0
B156: KAB10000173 | C156: LgY 1x1,50 300/500 SZR | D156: EE | E156: Przewód elektroenergetyczny LgY 1x1,50 300/500 SZR | G156: 1,421.00 zł | H156: W przypadku braku na magazynie obowiązuje min. produkcyjne określane na bieżąco w ofercie | I156: 0% | J156: 1,421.00 zł | L156: 0
B157: KAB10000175 | C157: LgY 1x1,50 300/500 ŻÓŁ-ZIE | D157: EE | E157: Przewód elektroenergetyczny LgY 1x1,50 300/500 ŻO | G157: 1,421.00 zł | H157: W przypadku braku na magazynie obowiązuje min. produkcyjne określane na bieżąco w ofercie | I157: 0% | J157: 1,421.00 zł | L157: 0
B158: KAB10000183 | C158: LgY 1x2,50 300/500 BIA | D158: EE | E158: Przewód elektroenergetyczny LgY 1x2,50 300/500 BIAŁY | G158: 2,380.00 zł | H158: W przypadku braku na magazynie obowiązuje min. produkcyjne określane na bieżąco w ofercie | I158: 0% | J158: 2,380.00 zł | L158: 0
B159: KAB10000184 | C159: LgY 1x2,50 300/500 BRĄ | D159: EE | E159: Przewód elektroenergetyczny LgY 1x2,50 300/500 BRĄZOWY | G159: 2,380.00 zł | H159: W przypadku braku na magazynie obowiązuje min. produkcyjne określane na bieżąco w ofercie | I159: 0% | J159: 2,380.00 zł | L159: 0
B160: KAB10000185 | C160: LgY 1x2,50 300/500 CZN | D160: EE | E160: Przewód elektroenergetyczny LgY 1x2,50 300/500 CZARNY | G160: 2,380.00 zł | H160: W przypadku braku na magazynie obowiązuje min. produkcyjne określane na bieżąco w ofercie | I160: 0% | J160: 2,380.00 zł | L160: 0
B161: KAB10000186 | C161: LgY 1x2,50 300/500 CZE | D161: EE | E161: Przewód elektroenergetyczny LgY 1x2,50 300/500 CZERWONY | G161: 2,380.00 zł | H161: W przypadku braku na magazynie obowiązuje min. produkcyjne określane na bieżąco w ofercie | I161: 0% | J161: 2,380.00 zł | L161: 0
B162: KAB10000187 | C162: LgY 1x2,50 300/500 NIE | D162: EE | E162: Przewód elektroenergetyczny LgY 1x2,50 300/500 NIEBIESKI | G162: 2,380.00 zł | H162: W przypadku braku na magazynie obowiązuje min. produkcyjne określane na bieżąco w ofercie | I162: 0% | J162: 2,380.00 zł | L162: 0
B163: KAB10000189 | C163: LgY 1x2,50 300/500 ŻÓŁ-ZIE | D163: EE | E163: Przewód elektroenergetyczny LgY 1x2,50 300/500 ŻO | G163: 2,380.00 zł | H163: W przypadku braku na magazynie obowiązuje min. produkcyjne określane na bieżąco w ofercie | I163: 0% | J163: 2,380.00 zł | L163: 0
B164: KAB10000164 | C164: LgY 1x1,00 450/750 BRĄ | D164: EE | E164: Przewód elektroenergetyczny LgY 1x1,00 450/750 BRĄZOWY | G164: 1,023.00 zł | H164: W przypadku braku na magazynie obowiązuje min. produkcyjne określane na bieżąco w ofercie | I164: 0% | J164: =G164-G164*I164 -> 1,023.00 zł | L164: 0
B165: KAB10000165 | C165: LgY 1x1,00 450/750 CZN | D165: EE | E165: Przewód elektroenergetyczny LgY 1x1,00 450/750 CZARNY | G165: 1,023.00 zł | H165: W przypadku braku na magazynie obowiązuje min. produkcyjne określane na bieżąco w ofercie | I165: 0% | J165: =G165-G165*I165 -> 1,023.00 zł | L165: 0
B166: KAB10000166 | C166: LgY 1x1,00 450/750 CZE | D166: EE | E166: Przewód elektroenergetyczny LgY 1x1,00 450/750 CZERWONY | G166: 1,023.00 zł | H166: W przypadku braku na magazynie obowiązuje min. produkcyjne określane na bieżąco w ofercie | I166: 0% | J166: =G166-G166*I166 -> 1,023.00 zł | L166: 0
B167: KAB10000167 | C167: LgY 1x1,00 450/750 NIE | D167: EE | E167: Przewód elektroenergetyczny LgY 1x1,00 450/750 NIEBIESKI | G167: 1,023.00 zł | H167: W przypadku braku na magazynie obowiązuje min. produkcyjne określane na bieżąco w ofercie | I167: 0% | J167: =G167-G167*I167 -> 1,023.00 zł | L167: 0
B168: KAB10000176 | C168: LgY 1x1,50 450/750 BRĄ | D168: EE | E168: Przewód elektroenergetyczny LgY 1x1,50 450/750 BRĄZOWY | G168: 1,443.00 zł | H168: W przypadku braku na magazynie obowiązuje min. produkcyjne określane na bieżąco w ofercie | I168: 0% | J168: 1,443.00 zł | L168: 0
B169: KAB10000177 | C169: LgY 1x1,50 450/750 CZN | D169: EE | E169: Przewód elektroenergetyczny LgY 1x1,50 450/750 CZARNY | G169: 1,443.00 zł | H169: W przypadku braku na magazynie obowiązuje min. produkcyjne określane na bieżąco w ofercie | I169: 0% | J169: 1,443.00 zł | L169: 0
B170: KAB10000178 | C170: LgY 1x1,50 450/750 CZE | D170: EE | E170: Przewód elektroenergetyczny LgY 1x1,50 450/750 CZERWONY | G170: 1,443.00 zł | H170: W przypadku braku na magazynie obowiązuje min. produkcyjne określane na bieżąco w ofercie | I170: 0% | J170: 1,443.00 zł | L170: 0
B171: KAB10000179 | C171: LgY 1x1,50 450/750 NIE | D171: EE | E171: Przewód elektroenergetyczny LgY 1x1,50 450/750 NIEBIESKI | G171: 1,443.00 zł | H171: W przypadku braku na magazynie obowiązuje min. produkcyjne określane na bieżąco w ofercie | I171: 0% | J171: 1,443.00 zł | L171: 0
B172: KAB10000182 | C172: LgY 1x1,50 450/750 ŻÓŁ-ZIE | D172: EE | E172: Przewód elektroenergetyczny LgY 1x1,50 450/750 ŻO | G172: 1,443.00 zł | H172: W przypadku braku na magazynie obowiązuje min. produkcyjne określane na bieżąco w ofercie | I172: 0% | J172: 1,443.00 zł | L172: 0
B173: KAB10000190 | C173: LgY 1x2,50 450/750 BIA | D173: EE | E173: Przewód elektroenergetyczny LgY 1x2,50 450/750 BIAŁY | G173: 2,406.00 zł | H173: W przypadku braku na magazynie obowiązuje min. produkcyjne określane na bieżąco w ofercie | I173: 0% | J173: 2,406.00 zł | L173: 0
B174: KAB10000191 | C174: LgY 1x2,50 450/750 BRĄ | D174: EE | E174: Przewód elektroenergetyczny LgY 1x2,50 450/750 BRĄZOWY | G174: 2,406.00 zł | H174: W przypadku braku na magazynie obowiązuje min. produkcyjne określane na bieżąco w ofercie | I174: 0% | J174: 2,406.00 zł | L174: 0
B175: KAB10000192 | C175: LgY 1x2,50 450/750 CZN | D175: EE | E175: Przewód elektroenergetyczny LgY 1x2,50 450/750 CZARNY | G175: 2,406.00 zł | H175: W przypadku braku na magazynie obowiązuje min. produkcyjne określane na bieżąco w ofercie | I175: 0% | J175: 2,406.00 zł | L175: 0
B176: KAB10000193 | C176: LgY 1x2,50 450/750 CZE | D176: EE | E176: Przewód elektroenergetyczny LgY 1x2,50 450/750 CZERWONY | G176: 2,406.00 zł | H176: W przypadku braku na magazynie obowiązuje min. produkcyjne określane na bieżąco w ofercie | I176: 0% | J176: 2,406.00 zł | L176: 0
B177: KAB10000194 | C177: LgY 1x2,50 450/750 NIE | D177: EE | E177: Przewód elektroenergetyczny LgY 1x2,50 450/750 NIEBIESKI | G177: 2,406.00 zł | H177: W przypadku braku na magazynie obowiązuje min. produkcyjne określane na bieżąco w ofercie | I177: 0% | J177: 2,406.00 zł | L177: 0
B178: KAB10000195 | C178: LgY 1x2,50 450/750 ŻÓŁ-ZIE | D178: EE | E178: Przewód elektroenergetyczny LgY 1x2,50 450/750 ŻO | G178: 2,406.00 zł | H178: W przypadku braku na magazynie obowiązuje min. produkcyjne określane na bieżąco w ofercie | I178: 0% | J178: 2,406.00 zł | L178: 0
E179: Przewody elektroenergetyczne jednożyłowe, wielodrutowe, ciepłoodporne | G179: =G2 -> CENNIK ważny od: 01.02.2026 | H179: DODATKOWE INFORMACJE
B180: KAB10000197 | C180: LgYc 1x0,5 300/500 BIA | D180: EE | E180: Przewód elektroenergetyczny, ciepłoodporny LgYc 1x0,5 300/500 BIAŁY | G180: 632.00 zł | H180: W przypadku braku na magazynie obowiązuje min. produkcyjne określane na bieżąco w ofercie | I180: 0% | J180: 632.00 zł | L180: 0
B181: KAB10000198 | C181: LgYc 1x0,5 300/500 BRA | D181: EE | E181: Przewód elektroenergetyczny, ciepłoodporny LgYc 1x0,5 300/500 BRĄZOWYZOWY | G181: 632.00 zł | H181: W przypadku braku na magazynie obowiązuje min. produkcyjne określane na bieżąco w ofercie | I181: 0% | J181: 632.00 zł | L181: 0
B182: KAB10000199 | C182: LgYc 1x0,5 300/500 CZN | D182: EE | E182: Przewód elektroenergetyczny, ciepłoodporny LgYc 1x0,5 300/500 CZARNY | G182: 632.00 zł | H182: W przypadku braku na magazynie obowiązuje min. produkcyjne określane na bieżąco w ofercie | I182: 0% | J182: 632.00 zł | L182: 0
B183: KAB10000200 | C183: LgYc 1x0,5 300/500 CZE | D183: EE | E183: Przewód elektroenergetyczny, ciepłoodporny LgYc 1x0,5 300/500 CZERWONY | G183: 632.00 zł | H183: W przypadku braku na magazynie obowiązuje min. produkcyjne określane na bieżąco w ofercie | I183: 0% | J183: 632.00 zł | L183: 0
B184: KAB10000201 | C184: LgYc 1x0,5 300/500 NIE | D184: EE | E184: Przewód elektroenergetyczny, ciepłoodporny LgYc 1x0,5 300/500 NIEBIESKI | G184: 632.00 zł | H184: W przypadku braku na magazynie obowiązuje min. produkcyjne określane na bieżąco w ofercie | I184: 0% | J184: 632.00 zł | L184: 0
B185: KAB10000205 | C185: LgYc 1x0,75 300/500 CZN | D185: EE | E185: Przewód elektroenergetyczny, ciepłoodporny LgYc 1x0,75 300/500 CZARNY | G185: 830.00 zł | H185: W przypadku braku na magazynie obowiązuje min. produkcyjne określane na bieżąco w ofercie | I185: 0% | J185: 830.00 zł | L185: 0
B186: KAB10000206 | C186: LgYc 1x0,75 300/500 CZE | D186: EE | E186: Przewód elektroenergetyczny, ciepłoodporny LgYc 1x0,75 300/500 CZERWONY | G186: 830.00 zł | H186: W przypadku braku na magazynie obowiązuje min. produkcyjne określane na bieżąco w ofercie | I186: 0% | J186: 830.00 zł | L186: 0
B187: KAB10000207 | C187: LgYc 1x0,75 300/500 NIE | D187: EE | E187: Przewód elektroenergetyczny, ciepłoodporny LgYc 1x0,75 300/500 NIEBIESKI | G187: 830.00 zł | H187: W przypadku braku na magazynie obowiązuje min. produkcyjne określane na bieżąco w ofercie | I187: 0% | J187: 830.00 zł | L187: 0
B188: KAB10000208 | C188: LgYc 1x0,75 300/500 ŻÓŁ-ZIE | D188: EE | E188: Przewód elektroenergetyczny, ciepłoodporny LgYc 1x0,75 300/500 ŻO | G188: 830.00 zł | H188: W przypadku braku na magazynie obowiązuje min. produkcyjne określane na bieżąco w ofercie | I188: 0% | J188: 830.00 zł | L188: 0
B189: KAB10000213 | C189: LgYc 1x1,00 300/500 BIA | D189: EE | E189: Przewód elektroenergetyczny, ciepłoodporny LgYc 1x1,00 300/500 BIAŁY | G189: 1,050.00 zł | H189: W przypadku braku na magazynie obowiązuje min. produkcyjne określane na bieżąco w ofercie | I189: 0% | J189: 1,050.00 zł | L189: 0
B190: KAB10000214 | C190: LgYc 1x1,00 300/500 CZN | D190: EE | E190: Przewód elektroenergetyczny, ciepłoodporny LgYc 1x1,00 300/500 CZARNY | G190: 1,050.00 zł | H190: W przypadku braku na magazynie obowiązuje min. produkcyjne określane na bieżąco w ofercie | I190: 0% | J190: =G190-G190*I190 -> 1,050.00 zł | L190: 0
B191: KAB10000215 | C191: LgYc 1x1,00 300/500 NIE | D191: EE | E191: Przewód elektroenergetyczny, ciepłoodporny LgYc 1x1,00 300/500 NIEBIESKI | G191: 1,050.00 zł | H191: W przypadku braku na magazynie obowiązuje min. produkcyjne określane na bieżąco w ofercie | I191: =$I$129 -> 0% | J191: 1,050.00 zł | L191: 0
B192: KAB10000216 | C192: LgYc 1x1,00 300/500 ŻÓŁ-ZIE | D192: EE | E192: Przewód elektroenergetyczny, ciepłoodporny LgYc 1x1,00 300/500 ŻO | G192: 1,050.00 zł | H192: W przypadku braku na magazynie obowiązuje min. produkcyjne określane na bieżąco w ofercie | I192: 0% | J192: 1,050.00 zł | L192: 0
B193: KAB10000885 | C193: LgYc 1x1,50 300/500 BIAŁY | D193: EE | E193: Przewód elektroenergetyczny, ciepłoodporny LgYc 1x1,50 300/500 BIAŁY | G193: 1,475.00 zł | H193: W przypadku braku na magazynie obowiązuje min. produkcyjne określane na bieżąco w ofercie | I193: 0% | J193: 1,475.00 zł | L193: 0
B194: KAB10000933 | C194: LgYc 1x1,50 300/500 CZARNY | D194: EE | E194: Przewód elektroenergetyczny, ciepłoodporny LgYc 1x1,50 300/500 CZARNY | G194: 1,475.00 zł | H194: W przypadku braku na magazynie obowiązuje min. produkcyjne określane na bieżąco w ofercie | I194: 0% | J194: 1,475.00 zł | L194: 0
B195: KAB10000934 | C195: LgYc 1x1,50 300/500 BRĄZOWY | D195: EE | E195: Przewód elektroenergetyczny, ciepłoodporny LgYc 1x1,50 300/500 BRĄZOWYZOWY | G195: 1,475.00 zł | H195: W przypadku braku na magazynie obowiązuje min. produkcyjne określane na bieżąco w ofercie | I195: 0% | J195: 1,475.00 zł | L195: 0
B196: KAB10000935 | C196: LgYc 1x1,50 300/500 NIEBIESKI | D196: EE | E196: Przewód elektroenergetyczny, ciepłoodporny LgYc 1x1,50 300/500 NIEBIESKI | G196: 1,475.00 zł | H196: W przypadku braku na magazynie obowiązuje min. produkcyjne określane na bieżąco w ofercie | I196: 0% | J196: 1,475.00 zł | L196: 0
B197: KAB10000936 | C197: LgYc 1x1,50 300/500 CZERWONY | D197: EE | E197: Przewód elektroenergetyczny, ciepłoodporny LgYc 1x1,50 300/500 CZERWONY | G197: 1,475.00 zł | H197: W przypadku braku na magazynie obowiązuje min. produkcyjne określane na bieżąco w ofercie | I197: 0% | J197: =G197-G197*I197 -> 1,475.00 zł | L197: 0
B198: KAB10000937 | C198: LgYc 1x1,50 300/500 ŻÓŁTO-ZIEL | D198: EE | E198: Przewód elektroenergetyczny, ciepłoodporny LgYc 1x1,50 300/500 ŻÓŁTO-ZIEL | G198: 1,475.00 zł | H198: W przypadku braku na magazynie obowiązuje min. produkcyjne określane na bieżąco w ofercie | I198: 0% | J198: 1,475.00 zł | L198: 0
B199: KAB10000225 | C199: LgYc 1x2,50 300/500 BIA | D199: EE | E199: Przewód elektroenergetyczny, ciepłoodporny LgYc 1x2,50 300/500 BIAŁY | G199: 2,444.00 zł | H199: W przypadku braku na magazynie obowiązuje min. produkcyjne określane na bieżąco w ofercie | I199: 0% | J199: 2,444.00 zł | L199: 0
B200: KAB10000226 | C200: LgYc 1x2,50 300/500 CZN | D200: EE | E200: Przewód elektroenergetyczny, ciepłoodporny LgYc 1x2,50 300/500 CZARNY | G200: 2,444.00 zł | H200: W przypadku braku na magazynie obowiązuje min. produkcyjne określane na bieżąco w ofercie | I200: 0% | J200: 2,444.00 zł | L200: 0
... 557 more rows

Sheet MATEC uproszczony 12 05 2025
L1: SUMA wartość
B2: INDEKS | C2: SYMBOL | D2: NAZWA WYROBU | E2: JM | F2: Cennik ważny od: 12.05.2025 | G2: DODATKOWE INFORMACJE | H2: RABAT | I2: CENA ZAKUPU | J2: ILOŚĆ | K2: WARTOŚĆ | L2: =SUM(K4:K138) -> 0
D3: Elektryczne ogrzewanie podłogowe | F3: CENNIK natto 12.05.2025 | G3: DODATKOWE INFORMACJE | I3: CENA ZAKUPU | J3: ILOŚĆ | K3: WARTOŚĆ
A4: 1. | B4: MTC10000201-WUN | C4: MOD-10 | D4: Mata grzejna dwustronnie zasilana 150W/m2 TYP: MOD-10 | E4: szt | F4: 330.00 zł | H4: =$H$3 -> 0% | I4: =F4-F4*H4 -> 330.00 zł | K4: =J4*I4 -> 0
A5: 2. | B5: MTC10000202-WUN | C5: MOD-15 | D5: Mata grzejna dwustronnie zasilana 150W/m2 TYP: MOD-15 | E5: szt | F5: 375.00 zł | H5: =$H$3 -> 0% | I5: =F5-F5*H5 -> 375.00 zł | K5: =J5*I5 -> 0
A6: 3. | B6: MTC10000203-WUN | C6: MOD-20 | D6: Mata grzejna dwustronnie zasilana 150W/m2 TYP: MOD-20 | E6: szt | F6: 445.00 zł | H6: 0% | I6: 445.00 zł | K6: 0
A7: 4. | B7: MTC10000204-WUN | C7: MOD-25 | D7: Mata grzejna dwustronnie zasilana 150W/m2 TYP: MOD-25 | E7: szt | F7: 540.00 zł | H7: 0% | I7: 540.00 zł | K7: 0
A8: 5. | B8: MTC10000205-WUN | C8: MOD-30 | D8: Mata grzejna dwustronnie zasilana 150W/m2 TYP: MOD-30 | E8: szt | F8: 590.00 zł | H8: 0% | I8: 590.00 zł | K8: 0
A9: 6. | B9: MTC10000206-WUN | C9: MOD-40 | D9: Mata grzejna dwustronnie zasilana 150W/m2 TYP: MOD-40 | E9: szt | F9: 699.00 zł | H9: 0% | I9: 699.00 zł | K9: 0
A10: 7. | B10: MTC10000207-WUN | C10: MOD-50 | D10: Mata grzejna dwustronnie zasilana 150W/m2 TYP: MOD-50 | E10: szt | F10: 810.00 zł | H10: 0% | I10: 810.00 zł | K10: 0
A11: 8. | B11: MTC10000208-WUN | C11: MOJ-10 | D11: Mata grzejna jednostronnie zasilana 150W/m2 TYP: MOJ-10 (1,0 m²) | E11: szt | F11: 360.00 zł | H11: 0% | I11: 360.00 zł | K11: 0
A12: 9. | B12: MTC10000209-WUN | C12: MOJ-15 | D12: Mata grzejna jednostronnie zasilana 150W/m2 TYP: MOJ-15 (1,5 m²) | E12: szt | F12: 445.00 zł | H12: 0% | I12: 445.00 zł | K12: 0
A13: 10. | B13: MTC10000210-WUN | C13: MOJ-20 | D13: Mata grzejna jednostronnie zasilana 150W/m2 TYP: MOJ-20 (2,0 m²) | E13: szt | F13: 550.00 zł | H13: 0% | I13: 550.00 zł | K13: 0
A14: 11. | B14: MTC10000211-WUN | C14: MOJ-25 | D14: Mata grzejna jednostronnie zasilana 150W/m2 TYP: MOJ-25 (2,5 m²) | E14: szt | F14: 620.00 zł | H14: 0% | I14: 620.00 zł | K14: 0
A15: 12. | B15: MTC10000212-WUN | C15: MOJ-30 | D15: Mata grzejna jednostronnie zasilana 150W/m2 TYP: MOJ-30 (3,0 m²) | E15: szt | F15: 720.00 zł | H15: 0% | I15: 720.00 zł | K15: 0
A16: 13. | B16: MTC10000425-WUN | C16: MOJ-35 | D16: Mata grzejna jednostronnie zasilana 150W/m2 TYP: MOJ-35 (3,5 m²) | E16: szt | F16: 790.00 zł | H16: 0% | I16: =F16-F16*H16 -> 790.00 zł | K16: =J16*I16 -> 0
A17: 14. | B17: MTC10000213-WUN | C17: MOJ-40 | D17: Mata grzejna jednostronnie zasilana 150W/m2 TYP: MOJ-40 (4,0 m²) | E17: szt | F17: 820.00 zł | H17: 0% | I17: 820.00 zł | K17: 0
A18: 15. | B18: MTC10000214-WUN | C18: MOJ-50 | D18: Mata grzejna jednostronnie zasilana 150W/m2 TYP: MOJ-50 (5,0 m²) | E18: szt | F18: 990.00 zł | H18: 0% | I18: 990.00 zł | K18: 0
A19: 16. | B19: MTC10000351-WUN | C19: MOJ-60 | D19: Mata grzejna jednostronnie zasilana 150W/m2 TYP: MOJ-60 (6,0 m²) | E19: szt | F19: 1,080.00 zł | H19: 0% | I19: 1,080.00 zł | K19: 0
A20: 17. | B20: MTC10000352-WUN | C20: MOJ-70 | D20: Mata grzejna jednostronnie zasilana 150W/m2 TYP: MOJ-70 (7,0 m²) | E20: szt | F20: 1,160.00 zł | H20: 0% | I20: 1,160.00 zł | K20: 0
A21: 18. | B21: MTC10000353-WUN | C21: MOJ-80 | D21: Mata grzejna jednostronnie zasilana 150W/m2 TYP: MOJ-80 (8,0 m²) | E21: szt | F21: 1,250.00 zł | H21: 0% | I21: 1,250.00 zł | K21: 0
A22: 19. | B22: MTC10000354-WUN | C22: MOJ-105 | D22: Mata grzejna jednostronnie zasilana 150W/m2 TYP: MOJ-105 (10,5 m²) | E22: szt | F22: 1,590.00 zł | H22: 0% | I22: 1,590.00 zł | K22: 0
A23: 20. | B23: MTC10000355-WUN | C23: MOJ-125 | D23: Mata grzejna jednostronnie zasilana 150W/m2 TYP: MOJ-125 (12,5 m²) | E23: szt | F23: 1,790.00 zł | H23: 0% | I23: 1,790.00 zł | K23: 0
A24: 21. | B24: MTC10000356-WUN | C24: MOJ-150 | D24: Mata grzejna jednostronnie zasilana 150W/m2 TYP: MOJ-150 (15,0 m²) | E24: szt | F24: 2,100.00 zł | H24: 0% | I24: 2,100.00 zł | K24: 0
A25: 22. | B25: MTC10000215-WUN | C25: ZOD-10 | D25: Zestaw grzejny dwustronnie zasilany STANDARD 150W/m2 TYP: ZOD-10 | E25: szt | F25: 530.00 zł | H25: 0% | I25: 530.00 zł | K25: 0
A26: 23. | B26: MTC10000216-WUN | C26: ZOD-15 | D26: Zestaw grzejny dwustronnie zasilany STANDARD 150W/m2 TYP: ZOD-15 | E26: szt | F26: 575.00 zł | H26: 0% | I26: 575.00 zł | K26: 0
A27: 24. | B27: MTC10000217-WUN | C27: ZOD-20 | D27: Zestaw grzejny dwustronnie zasilany STANDARD 150W/m2 TYP: ZOD-20 | E27: szt | F27: 600.00 zł | H27: 0% | I27: 600.00 zł | K27: 0
A28: 25. | B28: MTC10000218-WUN | C28: ZOD-25 | D28: Zestaw grzejny dwustronnie zasilany STANDARD 150W/m2 TYP: ZOD-25 | E28: szt | F28: 660.00 zł | H28: 0% | I28: 660.00 zł | K28: 0
A29: 26. | B29: MTC10000219-WUN | C29: ZOD-30 | D29: Zestaw grzejny dwustronnie zasilany STANDARD 150W/m2 TYP: ZOD-30 | E29: szt | F29: 690.00 zł | H29: 0% | I29: 690.00 zł | K29: 0
A30: 27. | B30: MTC10000220-WUN | C30: ZOD-40 | D30: Zestaw grzejny dwustronnie zasilany STANDARD 150W/m2 TYP: ZOD-40 | E30: szt | F30: 840.00 zł | H30: 0% | I30: 840.00 zł | K30: 0
A31: 28. | B31: MTC10000221-WUN | C31: ZOD-50 | D31: Zestaw grzejny dwustronnie zasilany STANDARD 150W/m2 TYP: ZOD-50 | E31: szt | F31: 950.00 zł | H31: 0% | I31: 950.00 zł | K31: 0
A32: 29. | B32: MTC10000222-WUN | C32: ZOJ-10 | D32: Zestaw grzejny jednostronnie zasilany STANDARD-PLUS 150W/m2 TYP: ZOJ-10 | E32: szt | F32: 570.00 zł | H32: 0% | I32: 570.00 zł | K32: 0
A33: 30. | B33: MTC10000223-WUN | C33: ZOJ-15 | D33: Zestaw grzejny jednostronnie zasilany STANDARD-PLUS 150W/m2 TYP: ZOJ-15 | E33: szt | F33: 650.00 zł | H33: 0% | I33: 650.00 zł | K33: 0
A34: 31. | B34: MTC10000224-WUN | C34: ZOJ-20 | D34: Zestaw grzejny jednostronnie zasilany STANDARD-PLUS 150W/m2 TYP: ZOJ-20 | E34: szt | F34: 755.00 zł | H34: 0% | I34: 755.00 zł | K34: 0
A35: 32. | B35: MTC10000225-WUN | C35: ZOJ-25 | D35: Zestaw grzejny jednostronnie zasilany STANDARD-PLUS 150W/m2 TYP: ZOJ-25 | E35: szt | F35: 820.00 zł | H35: 0% | I35: 820.00 zł | K35: 0
A36: 33. | B36: MTC10000226-WUN | C36: ZOJ-30 | D36: Zestaw grzejny jednostronnie zasilany STANDARD-PLUS 150W/m2 TYP: ZOJ-30 | E36: szt | F36: 895.00 zł | H36: 0% | I36: 895.00 zł | K36: 0
A37: 34. | B37: MTC10000227-WUN | C37: ZOJ-40 | D37: Zestaw grzejny jednostronnie zasilany STANDARD-PLUS 150W/m2 TYP: ZOJ-40 | E37: szt | F37: 1,020.00 zł | H37: 0% | I37: 1,020.00 zł | K37: 0
A38: 35. | B38: MTC10000228-WUN | C38: ZOJ-50 | D38: Zestaw grzejny jednostronnie zasilany STANDARD-PLUS 150W/m2 TYP: ZOJ-50 | E38: szt | F38: 1,190.00 zł | H38: 0% | I38: 1,190.00 zł | K38: 0
A39: 36. | B39: MTC10000357-WUN | C39: FGP-80/0,5x1,0 | D39: Folia grzejna FGP-80/0,5x1,0m (0,5 m²) | E39: szt | F39: 199.00 zł | H39: 0% | I39: 199.00 zł | K39: 0
A40: 37. | B40: MTC10000359-WUN | C40: FGP-80/0,5x2,0 | D40: Folia grzejna FGP-80/0,5x2,0m (1,0 m²) | E40: szt | F40: 250.00 zł | H40: 0% | I40: 250.00 zł | K40: 0
A41: 38. | B41: MTC10000360-WUN | C41: FGP-80/0,5x3,0 | D41: Folia grzejna FGP-80/0,5x3,0m (1,5 m²) | E41: szt | F41: 280.00 zł | H41: 0% | I41: 280.00 zł | K41: 0
A42: 39. | B42: MTC10000361-WUN | C42: FGP-80/0,5x4,0 | D42: Folia grzejna FGP-80/0,5x4,0m (2,0 m²) | E42: szt | F42: 320.00 zł | H42: 0% | I42: 320.00 zł | K42: 0
A43: 40. | B43: MTC10000362-WUN | C43: FGP-80/0,5x5,0 | D43: Folia grzejna FGP-80/0,5x5,0m (2,5 m²) | E43: szt | F43: 370.00 zł | H43: 0% | I43: 370.00 zł | K43: 0
A44: 41. | B44: MTC10000363-WUN | C44: FGP-80/0,5x6,0 | D44: Folia grzejna FGP-80/0,5x6,0m (3,0 m²) | E44: szt | F44: 395.00 zł | H44: 0% | I44: 395.00 zł | K44: 0
A45: 42. | B45: MTC10000364-WUN | C45: FGP-80/0,5x7,0 | D45: Folia grzejna FGP-80/0,5x7,0m (3,5 m²) | E45: szt | F45: 445.00 zł | H45: 0% | I45: 445.00 zł | K45: 0
A46: 43. | B46: MTC10000365-WUN | C46: FGP-80/0,5x8,0 | D46: Folia grzejna FGP-80/0,5x8,0m (4,0 m²) | E46: szt | F46: 460.00 zł | H46: 0% | I46: 460.00 zł | K46: 0
A47: 44. | B47: MTC10000366-WUN | C47: FGP-80/0,5x9,0 | D47: Folia grzejna FGP-80/0,5x9,0m (4,5 m²) | E47: szt | F47: 505.00 zł | H47: 0% | I47: 505.00 zł | K47: 0
A48: 45. | B48: MTC10000367-WUN | C48: FGP-80/0,5x10,0 | D48: Folia grzejna FGP-80/0,5x10,0m (5,0 m²) | E48: szt | F48: 540.00 zł | H48: 0% | I48: 540.00 zł | K48: 0
A49: 46. | B49: MTC10000368-WUN | C49: FGP-80 1m | D49: Folia grzejna FGP-80 1m | E49: szt | F49: 73.00 zł | H49: 0% | I49: 73.00 zł | K49: 0
A50: 47. | B50: MTC10000410-WUN | C50: FGP-140/0,5x1 | D50: Folia grzejna FGP-140/0,5x1m (0,5 m²) | E50: szt | F50: 215.00 zł | H50: 0% | I50: =F50-F50*H50 -> 215.00 zł | K50: =J50*I50 -> 0
A51: 48. | B51: MTC10000411-WUN | C51: FGP-140/0,5x2 | D51: Folia grzejna FGP-140/0,5x2m (1,0 m²) | E51: szt | F51: 275.00 zł | H51: 0% | I51: 275.00 zł | K51: 0
A52: 49. | B52: MTC10000412-WUN | C52: FGP-140/0,5x3 | D52: Folia grzejna FGP-140/0,5x3m (1,5 m²) | E52: szt | F52: 310.00 zł | H52: 0% | I52: 310.00 zł | K52: 0
A53: 50. | B53: MTC10000413-WUN | C53: FGP-140/0,5x4 | D53: Folia grzejna FGP-140/0,5x4m (2,0 m²) | E53: szt | F53: 360.00 zł | H53: 0% | I53: 360.00 zł | K53: 0
A54: 51. | B54: MTC10000414-WUN | C54: FGP-140/0,5x5 | D54: Folia grzejna FGP-140/0,5x5m (2,5 m²) | E54: szt | F54: 420.00 zł | H54: 0% | I54: 420.00 zł | K54: 0
A55: 52. | B55: MTC10000415-WUN | C55: FGP-140/0,5x6 | D55: Folia grzejna FGP-140/0,5x6m (3,0 m²) | E55: szt | F55: 455.00 zł | H55: 0% | I55: 455.00 zł | K55: 0
A56: 53. | B56: MTC10000416-WUN | C56: FGP-140/0,5x7 | D56: Folia grzejna FGP-140/0,5x7m (3,5 m²) | E56: szt | F56: 506.00 zł | H56: 0% | I56: 506.00 zł | K56: 0
A57: 54. | B57: MTC10000417-WUN | C57: FGP-140/0,5x8 | D57: Folia grzejna FGP-140/0,5x8m (4,0 m²) | E57: szt | F57: 540.00 zł | H57: 0% | I57: 540.00 zł | K57: 0
A58: 55. | B58: MTC10000418-WUN | C58: FGP-140/0,5x9 | D58: Folia grzejna FGP-140/0,5x9m (4,5 m²) | E58: szt | F58: 595.00 zł | H58: 0% | I58: 595.00 zł | K58: 0
A59: 56. | B59: MTC10000419-WUN | C59: FGP-140/0,5x10 | D59: Folia grzejna FGP-140/0,5x10m (5,0 m²) | E59: szt | F59: 638.00 zł | H59: 0% | I59: 638.00 zł | K59: 0
A60: 57. | B60: MTC10000421-WUN | C60: FGP-140 1m | D60: Folia grzejna FGP-140 1m | E60: szt | F60: 76.00 zł | H60: 0% | I60: 76.00 zł | K60: 0
A61: 58. | B61: MTC10000358-WUN | C61: ZM-02 | D61: Zestaw montazowy do folii grzejnych ZM-02 | E61: szt | F61: 90.00 zł | H61: 0% | I61: 90.00 zł | K61: 0
A62: 59. | B62: MTC10000426-WUN | C62: ZM-03 | D62: Zestaw zacisków do folii grzewczej ZM-03 (kpl. 10szt) | E62: kpl. | F62: 30.00 zł | H62: 0% | I62: =F62-F62*H62 -> 30.00 zł | K62: =J62*I62 -> 0
A63: 60. | B63: MTC10000287-WUN | C63: RTD-01 | D63: Regulator temperatury podtynkowy – programowalny z kolorowym ekranem dotykowym RTD-01 | E63: szt | F63: 540.00 zł | H63: 0% | I63: 540.00 zł | K63: 0
A64: 61. | B64: MTC10000377-WUN | C64: RTW-01 biały | D64: Regulator temperatury podtynkowy - programowalny, WI-FI TYP: RTW-01, biały | E64: szt | F64: 530.00 zł | H64: 0% | I64: 530.00 zł | K64: 0
A65: 62. | B65: MTC10000378-WUN | C65: RTW-01 czarny | D65: Regulator temperatury podtynkowy - programowalny, WI-FI TYP: RTW-01, czarny | E65: szt | F65: 550.00 zł | H65: 0% | I65: 550.00 zł | K65: 0
A66: 63. | B66: MTC10000402-WUN | C66: RTS-01A | D66: Regulator temperatury natynkowy - manualny sonda 2m, RTS-01A | E66: szt | F66: 220.00 zł | H66: 0% | I66: 220.00 zł | K66: 0
A67: 64. | B67: MTC10000289-WUN | C67: RTD-02 biały | D67: Regulator temperatury podtynkowy - programowalny TYP: RTD-02; biały | E67: szt | F67: 358.00 zł | H67: 0% | I67: 358.00 zł | K67: 0
A68: 65. | B68: MTC10000292-WUN | C68: RTD-02 czarny | D68: Regulator temperatury podtynkowy - programowalny TYP: RTD-02; czarny | E68: szt | F68: 358.00 zł | H68: 0% | I68: 358.00 zł | K68: 0
A69: 66. | B69: MTC10000408-WUN | C69: RTP-04 | D69: Regulator temperatury podtynkowy - programowalny RTP-04 | E69: szt | F69: 290.00 zł | H69: 0% | I69: 290.00 zł | K69: 0
D70: Elektryczne Systemy Antyoblodzeniowe | F70: =F3 -> CENNIK natto 12.05.2025 | G70: DODATKOWE INFORMACJE | I70: CENA ZAKUPU | J70: ILOŚĆ | K70: WARTOŚĆ
A71: 67. | B71: MTC10000254-WUN | C71: EM-52489 | D71: Regulator temperatury przeciwoblodzeniowy 1-strefowy TYP: EM524 89 | E71: szt | F71: 1,650.00 zł | H71: =$H$70 -> 0% | I71: 1,650.00 zł | K71: 0
A72: 68. | B72: MTC10000253-WUN | C72: EM-52490 | D72: Regulator temperatury przeciwoblodzeniowy 2-strefowy TYP: EM524 90 | E72: szt | F72: 2,100.00 zł | H72: =$H$70 -> 0% | I72: 2,100.00 zł | K72: 0
A73: 69. | B73: MTC10000255-WUN | C73: ESD524 003 | D73: Czujnik lodu i śniegu do rynien z przewodem o dł. 4m TYP: ESD524 003 | E73: szt | F73: 535.00 zł | H73: 0% | I73: 535.00 zł | K73: 0
A74: 70. | B74: MTC10000256-WUN | C74: TFD524 004 | D74: Czujnik temperatury i powierzc hni do rynien (standardowy) dł. 4m TYP: TFD524 004 | E74: szt | F74: 162.00 zł | H74: 0% | I74: 162.00 zł | K74: 0
A75: 71. | B75: MTC10000257-WUN | C75: ESF524 001 | D75: Czujnik lodu i śniegu na podja zdy z przewodem dł. 15m TYP: ESF524 001 | E75: szt | F75: 1,030.00 zł | H75: 0% | I75: 1,030.00 zł | K75: 0
A76: 72. | B76: MTC10000258-WUN | C76: TFF524 002 | D76: Czujnik temperatury i wilgotno ści-okrągły na podjazdy z prze wodem dł. 15m TYP: TFF524 002 | E76: szt | F76: 995.00 zł | H76: 0% | I76: 995.00 zł | K76: 0
A77: 73. | B77: MTC10000266-WUN | C77: UTR-20 | D77: Regulator temperat uniwersalny do montażu na ścianie TYP: UTR-20 | E77: szt | F77: 668.00 zł | H77: 0% | I77: 668.00 zł | K77: 0
A78: 74. | B78: MTC10000267-WUN | C78: F891000 | D78: Czujnik temperatury do UTR-20 z przewodem dł. 4m TYP: F891000 | E78: szt | F78: 115.00 zł | H78: 0% | I78: 115.00 zł | K78: 0
A79: 75. | B79: MTC10000268-WUN | C79: KRS-01 | D79: Klips do rur, opakowanie 25szt. TYP: KRS-01 | E79: kpl. | F79: 77.00 zł | H79: 0% | I79: 77.00 zł | K79: 0
A80: 76. | B80: MTC10000269-WUN | C80: LS-01 | D80: Łańcuch do montażu elementów w rurach spustowych; Opk 10mb, 1m to 22 oczka. TYP: LS-01 | E80: szt | F80: 170.00 zł | H80: 0% | I80: 170.00 zł | K80: 0
A81: 77. | B81: MTC10000270-WUN | C81: ZW-01 | D81: Zawiesie do łańcucha (pręt profilowany fi 5mm o dł. 290mm TYP: ZW-01 | E81: szt | F81: 45.00 zł | H81: 0% | I81: 45.00 zł | K81: 0
A82: 78. | B82: MTC10000271-WUN | C82: TMW-01 | D82: Taśma montażowa wzmacniana włóknem szklanym - rolka 50m TYP: TMW-01 | E82: szt | F82: 35.00 zł | H82: 0% | I82: 35.00 zł | K82: =J82*I82 -> 0
A83: 79. | B83: MTC10000372-WUN | C83: TAS-01 | D83: Taśma aluminiowa, samoprzylepna TAS-01; rolka 50m (50mm) | E83: szt | F83: 50.00 zł | H83: 0% | I83: =F83-F83*H83 -> 50.00 zł | K83: 0
A84: 80. | B84: MTC10000237-WUN | C84: TMS-01 | D84: Taśma montażowa stalowa ocynkowana, 7,5mb TYP: TMS-01 | E84: szt | F84: 55.00 zł | H84: 0% | I84: 55.00 zł | K84: 0
A85: 81. | B85: MTC10000273-WUN | C85: KRU-01 | D85: Klips do rynien - do montażu kabli grzejnych w rynnach, opakowanie 25 szt. TYP: KRU-01 | E85: szt | F85: 94.00 zł | H85: 0% | I85: 94.00 zł | K85: 0
A86: 82. | B86: MTC10000236-WUN | C86: GP-SR/25 | D86: Przewód grzejny samoregulujący TYP: GP-SR/25 | E86: km | F86: 30,800.00 zł | H86: 0% | I86: 30,800.00 zł | K86: 0
A87: 83. | B87: MTC10000229-WUN | C87: GP-SR/17 | D87: Przewód grzejny samoregulujący TYP: GP-SR/17 | E87: km | F87: 30,500.00 zł | H87: 0% | I87: 30,500.00 zł | K87: 0
A88: 84. | B88: MTC10000272-WUN | C88: ZM-01 | D88: Zestaw montażowy do łączenia przewodu grzejnego z przew. zasilającym TYP: ZM-01 | E88: szt | F88: 60.00 zł | H88: 0% | I88: 60.00 zł | K88: 0
A89: 85. | B89: MTC10000422-WUN | C89: GMG-01 | D89: Gumowa Mata Grzejna GMG-01, 110W; NOWOŚĆ | E89: szt | F89: 450.00 zł | H89: 0% | I89: =F89-F89*H89 -> 450.00 zł | K89: =J89*I89 -> 0
A90: 86. | B90: MTC10000423-WUN | C90: GMG-02 | D90: Gumowa Mata Grzejna GMG-02, 300W; NOWOŚĆ | E90: szt | F90: 650.00 zł | H90: 0% | I90: 650.00 zł | K90: 0
A91: 87. | B91: MTC10000321-WUN | C91: GPRN-12/18 | D91: Zestaw PG do rynien zewn PG GPRN - 12m 18W/m TYP: GPRN-12/18 | E91: szt | F91: 280.00 zł | H91: 0% | I91: 280.00 zł | K91: 0
A92: 88. | B92: MTC10000322-WUN | C92: GPRN-18/18 | D92: Zestaw PG do rynien zewn PG GPRN - 18m 18W/m TYP: GPRN-18/18 | E92: szt | F92: 310.00 zł | H92: 0% | I92: =F92-F92*H92 -> 310.00 zł | K92: =J92*I92 -> 0
A93: 89. | B93: MTC10000323-WUN | C93: GPRN-24/18 | D93: Zestaw PG do rynien zewn PG GPRN - 24m 18W/m TYP: GPRN-24/18 | E93: szt | F93: 380.00 zł | H93: 0% | I93: 380.00 zł | K93: 0
A94: 90. | B94: MTC10000324-WUN | C94: GPRN-29/18 | D94: Zestaw PG do rynien zewn PG GPRN - 29m 18W/m TYP: GPRN-29/18 | E94: szt | F94: 420.00 zł | H94: 0% | I94: 420.00 zł | K94: 0
A95: 91. | B95: MTC10000325-WUN | C95: GPRN-36/18 | D95: Zestaw PG do rynien zewn PG GPRN - 36m 18W/m TYP: GPRN-36/18 | E95: szt | F95: 510.00 zł | H95: 0% | I95: 510.00 zł | K95: 0
A96: 92. | B96: MTC10000326-WUN | C96: GPRN-43/18 | D96: Zestaw PG do rynien zewn PG GPRN - 43m 18W/m TYP: GPRN-43/18 | E96: szt | F96: 495.00 zł | H96: 0% | I96: 495.00 zł | K96: 0
A97: 93. | B97: MTC10000276-WUN | C97: GPRN-50/18 | D97: Zestaw PG do rynien zewn PG GPRN – 50m 18W/m TYP: GPRN-50/18 | E97: szt | F97: 520.00 zł | H97: 0% | I97: 520.00 zł | K97: 0
A98: 94. | B98: MTC10000277-WUN | C98: GPRN-60/18 | D98: Zestaw PG do rynien zewn PG GPRN – 60m 18W/m TYP: GPRN-60/18 | E98: szt | F98: 600.00 zł | H98: 0% | I98: 600.00 zł | K98: 0
A99: 95. | B99: MTC10000278-WUN | C99: GPRN-70/18 | D99: Zestaw PG do rynien zewn PG GPRN – 70m 18W/m TYP: GPRN-70/18 | E99: szt | F99: 660.00 zł | H99: 0% | I99: 660.00 zł | K99: 0
A100: 96. | B100: MTC10000279-WUN | C100: GPRN-80/18 | D100: Zestaw PG do rynien zewn PG GPRN – 80m 18W/m TYP: GPRN-80/18 | E100: szt | F100: 780.00 zł | H100: 0% | I100: 780.00 zł | K100: 0
A101: 97. | B101: MTC10000280-WUN | C101: GPRN-90/18 | D101: Zestaw PG do rynien zewn PG GPRN – 90m 18W/m TYP: GPRN-90/18 | E101: szt | F101: 900.00 zł | H101: 0% | I101: 900.00 zł | K101: 0
A102: 98. | B102: MTC10000281-WUN | C102: GPRN-100/18 | D102: Zestaw PG do rynien zewn PG GPRN – 100m 18W/m TYP: GPRN-100/18 | E102: szt | F102: 1,020.00 zł | H102: 0% | I102: 1,020.00 zł | K102: 0
A103: 99. | B103: MTC10000301-WUN | C103: GPSY-9,5/20 | D103: Zestaw PG na schody zewn PG GPSY - 9,5m 20W/m TYP: GPSY-9,5/20 | E103: szt | F103: 220.00 zł | H103: 0% | I103: 220.00 zł | K103: 0
A104: 100. | B104: MTC10000302-WUN | C104: GPSY-15,0/20 | D104: Zestaw PG na schody zewn PG GPSY - 15,0m 20W/m TYP: GPSY-15,0/20 | E104: szt | F104: 245.00 zł | H104: 0% | I104: 245.00 zł | K104: 0
A105: 101. | B105: MTC10000303-WUN | C105: GPSY-22,0/20 | D105: Zestaw PG na schody zewn PG GPSY - 22,0m 20W/m TYP: GPSY-22,0/20 | E105: szt | F105: 290.00 zł | H105: 0% | I105: 290.00 zł | K105: 0
A106: 102. | B106: MTC10000304-WUN | C106: GPSY-26,5/20 | D106: Zestaw PG na schody zewn PG GPSY - 26,5m 20W/m TYP: GPSY-26,5/20 | E106: szt | F106: 320.00 zł | H106: 0% | I106: 320.00 zł | K106: 0
A107: 103. | B107: MTC10000305-WUN | C107: GPSY-40,5/20 | D107: Zestaw PG na schody zewn PG GPSY - 40,5m 20W/m TYP: GPSY-40,5/20 | E107: szt | F107: 410.00 zł | H107: 0% | I107: 410.00 zł | K107: 0
A108: 104. | B108: MTC10000306-WUN | C108: GPSY-51/20 | D108: Zestaw PG na schody zewn PG GPSY - 51,0m 20W/m TYP: GPSY-51/20 | E108: szt | F108: 470.00 zł | H108: 0% | I108: 470.00 zł | K108: 0
A109: 105. | B109: MTC10000282-WUN | C109: GPSY-60/20 | D109: Zestaw PG na schody zewn PG GPSY – 60m 20W/m TYP: GPSY-60/20 | E109: szt | F109: 495.00 zł | H109: 0% | I109: 495.00 zł | K109: 0
A110: 106. | B110: MTC10000283-WUN | C110: GPSY-70/20 | D110: Zestaw PG na schody zewn PG GPSY – 70m 20W/m TYP: GPSY-70/20 | E110: szt | F110: 550.00 zł | H110: 0% | I110: 550.00 zł | K110: 0
A111: 107. | B111: MTC10000284-WUN | C111: GPSY-80/20 | D111: Zestaw PG na schody zewn PG GPSY – 80m 20W/m TYP: GPSY-80/20 | E111: szt | F111: 695.00 zł | H111: 0% | I111: 695.00 zł | K111: 0
A112: 108. | B112: MTC10000285-WUN | C112: GPSY-90/20 | D112: Zestaw PG na schody zewn PG GPSY – 90m 20W/m TYP: GPSY-90/20 | E112: szt | F112: 790.00 zł | H112: 0% | I112: 790.00 zł | K112: 0
A113: 109. | B113: MTC10000286-WUN | C113: GPSY-100/20 | D113: Zestaw PG na schody zewn PG GPSY – 100m 20W/m TYP: GPSY-100/20 | E113: szt | F113: 830.00 zł | H113: 0% | I113: 830.00 zł | K113: 0
A114: 110. | B114: MTC10000379-WUN | C114: GPSY-24/30 | D114: Przewód grzejny na schody i rampy GPSY 24/30; 24m | E114: szt | F114: 390.00 zł | H114: 0% | I114: =F114-F114*H114 -> 390.00 zł | K114: 0
A115: 111. | B115: MTC10000380-WUN | C115: GPSY-33/30 | D115: Przewód grzejny na schody i rampy GPSY 33/30; 33m | E115: szt | F115: 520.00 zł | H115: 0% | I115: 520.00 zł | K115: 0
A116: 112. | B116: MTC10000381-WUN | C116: GPSY-39/30 | D116: Przewód grzejny na schody i rampy GPSY 39/30; 39m | E116: szt | F116: 570.00 zł | H116: 0% | I116: 570.00 zł | K116: 0
A117: 113. | B117: MTC10000382-WUN | C117: GPSY-54/30 | D117: Przewód grzejny na schody i rampy GPSY 54/30; 54m | E117: szt | F117: 735.00 zł | H117: 0% | I117: 735.00 zł | K117: 0
A118: 114. | B118: MTC10000383-WUN | C118: GPSY-62/30 | D118: Przewód grzejny na schody i rampy GPSY 62/30; 62m | E118: szt | F118: 850.00 zł | H118: 0% | I118: 850.00 zł | K118: 0
A119: 115. | B119: MTC10000384-WUN | C119: GPSY-78/30 | D119: Przewód grzejny na schody i rampy GPSY 78/30; 78m | E119: szt | F119: 940.00 zł | H119: 0% | I119: 940.00 zł | K119: 0
A120: 116. | B120: MTC10000385-WUN | C120: GPSY-91/30 | D120: Przewód grzejny na schody i rampy GPSY 91/30; 91m | E120: szt | F120: 1,280.00 zł | H120: 0% | I120: 1,280.00 zł | K120: 0
A121: 117. | B121: MTC10000386-WUN | C121: GPSY-100/30 | D121: Przewód grzejny na schody i rampy GPSY 100/30; 100m | E121: szt | F121: 1,360.00 zł | H121: 0% | I121: 1,360.00 zł | K121: 0
A122: 118. | B122: MTC10000387-WUN | C122: GPSY-110/30 | D122: Przewód grzejny na schody i rampy GPSY 110/30; 110m | E122: szt | F122: 1,250.00 zł | H122: 0% | I122: 1,250.00 zł | K122: 0
A123: 119. | B123: MTC10000388-WUN | C123: GPSY-120/30 | D123: Przewód grzejny na schody i rampy GPSY 120/30; 120m | E123: szt | F123: 1,625.00 zł | H123: 0% | I123: 1,625.00 zł | K123: 0
A124: 120. | B124: MTC10000389-WUN | C124: GPSY-130/30 | D124: Przewód grzejny na schody i rampy GPSY 130/30; 130m | E124: szt | F124: 1,700.00 zł | H124: 0% | I124: 1,700.00 zł | K124: 0
A125: 121. | B125: MTC10000291-WUN | C125: GPRU-2/15 | D125: Zestaw PG do rur zewn PG GPRU – 2m 15W/m TYP: GPRU-2/15 | E125: szt | F125: 195.00 zł | H125: 0% | I125: 195.00 zł | K125: 0
A126: 122. | B126: MTC10000331-WUN | C126: GPRU-4/18 | D126: Zestaw PG do rur zewn PG GPRU - 4m 18W/m TYP: GPRU-4/18 | E126: szt | F126: 250.00 zł | H126: 0% | I126: 250.00 zł | K126: 0
A127: 123. | B127: MTC10000332-WUN | C127: GPRU-6/18 | D127: Zestaw PG do rur zewn PG GPRU - 6m 18W/m TYP: GPRU-6/18 | E127: szt | F127: 250.00 zł | H127: 0% | I127: 250.00 zł | K127: 0
A128: 124. | B128: MTC10000333-WUN | C128: GPRU-10/18 | D128: Zestaw PG do rur zewn PG GPRU - 10m 18W/m TYP: GPRU-10/18 | E128: szt | F128: 270.00 zł | H128: 0% | I128: 270.00 zł | K128: 0
A129: 125. | B129: MTC10000334-WUN | C129: GPRU-14,5/18 | D129: Zestaw PG do rur zewn PG GPRU - 14,5m 18W/m TYP: GPRU-14,5/18 | E129: szt | F129: 280.00 zł | H129: 0% | I129: 280.00 zł | K129: 0
A130: 126. | B130: MTC10000335-WUN | C130: GPRU-20,5/18 | D130: Zestaw PG do rur zewn PG GPRU - 20,5m 18W/m TYP: GPRU-20,5/18 | E130: szt | F130: 330.00 zł | H130: 0% | I130: 330.00 zł | K130: 0
A131: 127. | B131: MTC10000311-WUN | C131: GMPD-20/300 | D131: Zestaw PG na podjazdy maty zew PG GMPD - 2,0m2 300W/m2 TYP: GMPD-20/300 | E131: szt | F131: 370.00 zł | H131: 0% | I131: 370.00 zł | K131: 0
A132: 128. | B132: MTC10000312-WUN | C132: GMPD-30/300 | D132: Zestaw PG na podjazdy maty zew PG GMPD - 3,0m2 300W/m2 TYP: GMPD-30/300 | E132: szt | F132: 465.00 zł | H132: 0% | I132: 465.00 zł | K132: 0
A133: 129. | B133: MTC10000313-WUN | C133: GMPD-40/300 | D133: Zestaw PG na podjazdy maty zew PG GMPD - 4,0m2 300W/m2 TYP: GMPD-40/300 | E133: szt | F133: 540.00 zł | H133: 0% | I133: 540.00 zł | K133: 0
A134: 130. | B134: MTC10000314-WUN | C134: GMPD-50/300 | D134: Zestaw PG na podjazdy maty zew PG GMPD - 5,0m2 300W/m2 TYP: GMPD-50/300 | E134: szt | F134: 710.00 zł | H134: 0% | I134: 710.00 zł | K134: 0
A135: 131. | B135: MTC10000315-WUN | C135: GMPD-60/300 | D135: Zestaw PG na podjazdy maty zew PG GMPD - 6,0m2 300W/m2 TYP: GMPD-60/300 | E135: szt | F135: 880.00 zł | H135: 0% | I135: 880.00 zł | K135: 0
A136: 132. | B136: MTC10000369-WUN | C136: GMPD-70/300 | D136: Zestaw PG na podjazdy maty zew PG GMPD - 7,0m2 300W/m2 TYP: GMPD-70/300 | E136: szt | F136: 995.00 zł | H136: 0% | I136: 995.00 zł | K136: 0
A137: 133. | B137: MTC10000370-WUN | C137: GMPD-80/300 | D137: Zestaw PG na podjazdy maty zew PG GMPD - 8,0m2 300W/m2 TYP: GMPD-80/300 | E137: szt | F137: 1,230.00 zł | H137: 0% | I137: 1,230.00 zł | K137: 0
A138: 134. | B138: MTC10000371-WUN | C138: GMPD-100/300 | D138: Zestaw PG na podjazdy maty zew PG GMPD - 10,0m2 300W/m2 TYP: GMPD-100/300 | E138: szt | F138: 1,710.00 zł | H138: 0% | I138: 1,710.00 zł | K138: 0

Sheet CET_opakowania
B3: Uwaga:
B4: Bębny kablowe, szpule SK-01 oraz euro-palety, na których wysyłane są wyroby ZAMEL (kable i przewody) podlegają poniższym zasadom w zakresie zwrotu.
A6: 1. | B6: Bębny kablowe, jednorazowe szpule oraz euro-palety sprzedawane są Klientowi z chwilą wydania wyrobu znajdującego się na tym opakowaniu, wg obowiązującego cennika opakowań.
A7: 2. | B7: Na opakowania wystawione są faktury VAT, gdzie termin płatności pokrywa się z terminem dla produktu sprzedawanego razem tym opakowaniem.
A8: 3. | B8: W przypadku zwrotu opakowania przed upływem terminu płatności, Zamel ma obowiązek wystawić Fakturę korygującą na opakowanie z ceną jego pierwotnej sprzedaży. Ważne jest, aby zwracany bęben/szpula posiadał dokument WZ, z którym Klient powołuje się na numer faktury pierwotnej sprzedaży tego opakowania. Podstawową formą egzekwowania należności jest kompensata.
A9: 4. | B9: Zamel zobowiązany jest przyjąć zwrotnie bęben, szpulę sklejkową lub euro-paletę od klienta po upływie terminu płatności z pierwotnej sprzedaży w nieprzekraczalnym terminie do 12 miesięcy od daty wystawienia faktury. Ważne jest, aby zwracany bęben/szpula/euro-paleta posiadał dokument WZ, którym Klient powołuje się na numer faktury pierwotnej sprzedaży tego opakowania. Dokumentem potwierdzającym dokonanie zwrotu jest Faktura korygująca wystawiona przez Dostawcę - ZAMEL. Podstawową formą egzekwowania należności jest kompensata.
A10: 5. | B10: Zwrot opakowań (transport) dokonywany jest na koszt Klienta zwracającego opakowania.
A11: 6. | B11: Dopuszcza się dokonanie zwrotu (bęnów i szpul) transportem Dostawcy - ZAMEL tylko i wyłącznie wtedy, gdy opakowania zgromadzone są na jednej, pełnej palecie. Dla bębnów drewnianych minimalna ilość na palecie to 3szt. W przypadku szpul sklejkowych minimalna ilość na palecie wynosi 25szt. Jeśli opakowań jest więcej obowiązuje wielokrotność podanych ilości w zakresie osobno bębnów i osobno szpul.
A12: 7. | B12: Zwracane opakowania przyjmowane są dokumentem PZ. ZAMEL jako sprzedawca opakowania wystawia Fakturę korygującą do oryginalnej Faktury sprzedaży tego opakowania, na której numer zobowiązany jest powołać się Klient.
A13: 8. | B13: Zamel nie przyjmuje uszkodzonych opakowań.
A14: 9. | B14: Przy każdorazowym zwrocie przeprowadzane są oględziny opakowania, na podstawie których Zamel ma prawo obniżyć jego wartość lub nie wyrazić zgody na odkup.
B16: Zwroty bębnów przyjmowane są na adres:
B17: Zamel Sp. z o.o.
B18: Ul. Zielona 27
B19: 43-200 Pszczyna
B20: Magazyn CET
B22: aktualizacja od 12.05.2025

Sheet IFS
A1: ID wariant | B1: SYMBOL | C1: CENA
A2: KAB10000985-0100 | B2: DY 0,50 300/500 BIAŁY | C2: =VLOOKUP(A2,'CET cennik 01 02 2026 wer SHE'!B:I,8,0) -> 611.00 zł
A3: KAB10000985-0200 | B3: DY 0,50 300/500 BIAŁY | C3: =VLOOKUP(A3,'CET cennik 01 02 2026 wer SHE'!B:I,8,0) -> 611.00 zł
A4: KAB10000985-0500 | B4: DY 0,50 300/500 BIAŁY | C4: =VLOOKUP(A4,'CET cennik 01 02 2026 wer SHE'!B:I,8,0) -> 611.00 zł
A5: KAB10000985-1000 | B5: DY 0,50 300/500 BIAŁY | C5: =VLOOKUP(A5,'CET cennik 01 02 2026 wer SHE'!B:I,8,0) -> 611.00 zł
A6: KAB10000985-5000 | B6: DY 0,50 300/500 BIAŁY | C6: =VLOOKUP(A6,'CET cennik 01 02 2026 wer SHE'!B:I,8,0) -> 611.00 zł
A7: KAB10000986-0100 | B7: DY 0,50 300/500 BRĄZOWY | C7: =VLOOKUP(A7,'CET cennik 01 02 2026 wer SHE'!B:I,8,0) -> 611.00 zł
A8: KAB10000986-0500 | B8: DY 0,50 300/500 BRĄZOWY | C8: =VLOOKUP(A8,'CET cennik 01 02 2026 wer SHE'!B:I,8,0) -> 611.00 zł
A9: KAB10000986-1000 | B9: DY 0,50 300/500 BRĄZOWY | C9: =VLOOKUP(A9,'CET cennik 01 02 2026 wer SHE'!B:I,8,0) -> 611.00 zł
A10: KAB10000987-0100 | B10: DY 0,50 300/500 CZARNY | C10: =VLOOKUP(A10,'CET cennik 01 02 2026 wer SHE'!B:I,8,0) -> 611.00 zł
A11: KAB10000987-0200 | B11: DY 0,50 300/500 CZARNY | C11: =VLOOKUP(A11,'CET cennik 01 02 2026 wer SHE'!B:I,8,0) -> 611.00 zł
A12: KAB10000987-0500 | B12: DY 0,50 300/500 CZARNY | C12: =VLOOKUP(A12,'CET cennik 01 02 2026 wer SHE'!B:I,8,0) -> 611.00 zł
A13: KAB10000987-1000 | B13: DY 0,50 300/500 CZARNY | C13: =VLOOKUP(A13,'CET cennik 01 02 2026 wer SHE'!B:I,8,0) -> 611.00 zł
A14: KAB10000988-0100 | B14: DY 0,50 300/500 CZERWONY | C14: =VLOOKUP(A14,'CET cennik 01 02 2026 wer SHE'!B:I,8,0) -> 611.00 zł
A15: KAB10000988-0200 | B15: DY 0,50 300/500 CZERWONY | C15: =VLOOKUP(A15,'CET cennik 01 02 2026 wer SHE'!B:I,8,0) -> 611.00 zł
A16: KAB10000988-0500 | B16: DY 0,50 300/500 CZERWONY | C16: =VLOOKUP(A16,'CET cennik 01 02 2026 wer SHE'!B:I,8,0) -> 611.00 zł
A17: KAB10000988-1000 | B17: DY 0,50 300/500 CZERWONY | C17: =VLOOKUP(A17,'CET cennik 01 02 2026 wer SHE'!B:I,8,0) -> 611.00 zł
A18: KAB10000988-5000 | B18: DY 0,50 300/500 CZERWONY | C18: =VLOOKUP(A18,'CET cennik 01 02 2026 wer SHE'!B:I,8,0) -> 611.00 zł
A19: KAB10000989-0100 | B19: DY 0,50 300/500 NIEBIESKI | C19: =VLOOKUP(A19,'CET cennik 01 02 2026 wer SHE'!B:I,8,0) -> 611.00 zł
A20: KAB10000989-0200 | B20: DY 0,50 300/500 NIEBIESKI | C20: =VLOOKUP(A20,'CET cennik 01 02 2026 wer SHE'!B:I,8,0) -> 611.00 zł
A21: KAB10000989-0500 | B21: DY 0,50 300/500 NIEBIESKI | C21: =VLOOKUP(A21,'CET cennik 01 02 2026 wer SHE'!B:I,8,0) -> 611.00 zł
A22: KAB10000989-1000 | B22: DY 0,50 300/500 NIEBIESKI | C22: =VLOOKUP(A22,'CET cennik 01 02 2026 wer SHE'!B:I,8,0) -> 611.00 zł
A23: KAB10000989-5000 | B23: DY 0,50 300/500 NIEBIESKI | C23: =VLOOKUP(A23,'CET cennik 01 02 2026 wer SHE'!B:I,8,0) -> 611.00 zł
A24: KAB10000990-0100 | B24: DY 0,50 300/500 ŻÓŁTO-ZIELONY | C24: =VLOOKUP(A24,'CET cennik 01 02 2026 wer SHE'!B:I,8,0) -> 611.00 zł
A25: KAB10000990-0500 | B25: DY 0,50 300/500 ŻÓŁTO-ZIELONY | C25: =VLOOKUP(A25,'CET cennik 01 02 2026 wer SHE'!B:I,8,0) -> 611.00 zł
A26: KAB10000990-1000 | B26: DY 0,50 300/500 ŻÓŁTO-ZIELONY | C26: =VLOOKUP(A26,'CET cennik 01 02 2026 wer SHE'!B:I,8,0) -> 611.00 zł
A27: KAB10000990-5000 | B27: DY 0,50 300/500 ŻÓŁTO-ZIELONY | C27: =VLOOKUP(A27,'CET cennik 01 02 2026 wer SHE'!B:I,8,0) -> 611.00 zł
A28: KAB10000009-0100 | B28: DY 0,75 300/500 BIAŁY | C28: =VLOOKUP(A28,'CET cennik 01 02 2026 wer SHE'!B:I,8,0) -> 879.00 zł
A29: KAB10000009-0200 | B29: DY 0,75 300/500 BIAŁY | C29: =VLOOKUP(A29,'CET cennik 01 02 2026 wer SHE'!B:I,8,0) -> 879.00 zł
A30: KAB10000009-0500 | B30: DY 0,75 300/500 BIAŁY | C30: =VLOOKUP(A30,'CET cennik 01 02 2026 wer SHE'!B:I,8,0) -> 879.00 zł
A31: KAB10000009-1000 | B31: DY 0,75 300/500 BIAŁY | C31: =VLOOKUP(A31,'CET cennik 01 02 2026 wer SHE'!B:I,8,0) -> 879.00 zł
A32: KAB10000010-0100 | B32: DY 0,75 300/500 BRĄZOWY | C32: =VLOOKUP(A32,'CET cennik 01 02 2026 wer SHE'!B:I,8,0) -> 879.00 zł
A33: KAB10000010-5000 | B33: DY 0,75 300/500 BRĄZOWY | C33: =VLOOKUP(A33,'CET cennik 01 02 2026 wer SHE'!B:I,8,0) -> 879.00 zł
A34: KAB10000010-0500 | B34: DY 0,75 300/500 BRĄZOWY | C34: =VLOOKUP(A34,'CET cennik 01 02 2026 wer SHE'!B:I,8,0) -> 879.00 zł
A35: KAB10000010-1000 | B35: DY 0,75 300/500 BRĄZOWY | C35: =VLOOKUP(A35,'CET cennik 01 02 2026 wer SHE'!B:I,8,0) -> 879.00 zł
A36: KAB10000011-0100 | B36: DY 0,75 300/500 CZARNY | C36: =VLOOKUP(A36,'CET cennik 01 02 2026 wer SHE'!B:I,8,0) -> 879.00 zł
A37: KAB10000011-5000 | B37: DY 0,75 300/500 CZARNY | C37: =VLOOKUP(A37,'CET cennik 01 02 2026 wer SHE'!B:I,8,0) -> 879.00 zł
A38: KAB10000011-0500 | B38: DY 0,75 300/500 CZARNY | C38: =VLOOKUP(A38,'CET cennik 01 02 2026 wer SHE'!B:I,8,0) -> 879.00 zł
A39: KAB10000011-1000 | B39: DY 0,75 300/500 CZARNY | C39: =VLOOKUP(A39,'CET cennik 01 02 2026 wer SHE'!B:I,8,0) -> 879.00 zł
A40: KAB10000012-0100 | B40: DY 0,75 300/500 CZERWONY | C40: =VLOOKUP(A40,'CET cennik 01 02 2026 wer SHE'!B:I,8,0) -> 879.00 zł
A41: KAB10000012-1000 | B41: DY 0,75 300/500 CZERWONY | C41: =VLOOKUP(A41,'CET cennik 01 02 2026 wer SHE'!B:I,8,0) -> 879.00 zł
A42: KAB10000012-0500 | B42: DY 0,75 300/500 CZERWONY | C42: =VLOOKUP(A42,'CET cennik 01 02 2026 wer SHE'!B:I,8,0) -> 879.00 zł
A43: KAB10000013-0100 | B43: DY 0,75 300/500 NIEBIESKI | C43: =VLOOKUP(A43,'CET cennik 01 02 2026 wer SHE'!B:I,8,0) -> 879.00 zł
A44: KAB10000013-5000 | B44: DY 0,75 300/500 NIEBIESKI | C44: =VLOOKUP(A44,'CET cennik 01 02 2026 wer SHE'!B:I,8,0) -> 879.00 zł
A45: KAB10000013-0500 | B45: DY 0,75 300/500 NIEBIESKI | C45: =VLOOKUP(A45,'CET cennik 01 02 2026 wer SHE'!B:I,8,0) -> 879.00 zł
A46: KAB10000013-1000 | B46: DY 0,75 300/500 NIEBIESKI | C46: =VLOOKUP(A46,'CET cennik 01 02 2026 wer SHE'!B:I,8,0) -> 879.00 zł
A47: KAB10000014-0100 | B47: DY 0,75 300/500 ŻÓŁTO-ZIELONY | C47: =VLOOKUP(A47,'CET cennik 01 02 2026 wer SHE'!B:I,8,0) -> 879.00 zł
A48: KAB10000014-5000 | B48: DY 0,75 300/500 ŻÓŁTO-ZIELONY | C48: =VLOOKUP(A48,'CET cennik 01 02 2026 wer SHE'!B:I,8,0) -> 879.00 zł
A49: KAB10000014-0500 | B49: DY 0,75 300/500 ŻÓŁTO-ZIELONY | C49: =VLOOKUP(A49,'CET cennik 01 02 2026 wer SHE'!B:I,8,0) -> 879.00 zł
A50: KAB10000014-1000 | B50: DY 0,75 300/500 ŻÓŁTO-ZIELONY | C50: =VLOOKUP(A50,'CET cennik 01 02 2026 wer SHE'!B:I,8,0) -> 879.00 zł
A51: KAB10000015-0100 | B51: DY 1,00 300/500 BIAŁY | C51: =VLOOKUP(A51,'CET cennik 01 02 2026 wer SHE'!B:I,8,0) -> 1,047.00 zł
A52: KAB10000015-0500 | B52: DY 1,00 300/500 BIAŁY | C52: =VLOOKUP(A52,'CET cennik 01 02 2026 wer SHE'!B:I,8,0) -> 1,047.00 zł
A53: KAB10000015-1000 | B53: DY 1,00 300/500 BIAŁY | C53: =VLOOKUP(A53,'CET cennik 01 02 2026 wer SHE'!B:I,8,0) -> 1,047.00 zł
A54: KAB10000016-0100 | B54: DY 1,00 300/500 BRĄZOWY | C54: =VLOOKUP(A54,'CET cennik 01 02 2026 wer SHE'!B:I,8,0) -> 1,047.00 zł
A55: KAB10000016-0500 | B55: DY 1,00 300/500 BRĄZOWY | C55: =VLOOKUP(A55,'CET cennik 01 02 2026 wer SHE'!B:I,8,0) -> 1,047.00 zł
A56: KAB10000016-1000 | B56: DY 1,00 300/500 BRĄZOWY | C56: =VLOOKUP(A56,'CET cennik 01 02 2026 wer SHE'!B:I,8,0) -> 1,047.00 zł
A57: KAB10000017-0100 | B57: DY 1,00 300/500 CZARNY | C57: =VLOOKUP(A57,'CET cennik 01 02 2026 wer SHE'!B:I,8,0) -> 1,047.00 zł
A58: KAB10000017-0500 | B58: DY 1,00 300/500 CZARNY | C58: =VLOOKUP(A58,'CET cennik 01 02 2026 wer SHE'!B:I,8,0) -> 1,047.00 zł
A59: KAB10000017-1000 | B59: DY 1,00 300/500 CZARNY | C59: =VLOOKUP(A59,'CET cennik 01 02 2026 wer SHE'!B:I,8,0) -> 1,047.00 zł
A60: KAB10000018-0100 | B60: DY 1,00 300/500 CZERWONY | C60: =VLOOKUP(A60,'CET cennik 01 02 2026 wer SHE'!B:I,8,0) -> 1,047.00 zł
A61: KAB10000018-0500 | B61: DY 1,00 300/500 CZERWONY | C61: =VLOOKUP(A61,'CET cennik 01 02 2026 wer SHE'!B:I,8,0) -> 1,047.00 zł
A62: KAB10000018-1000 | B62: DY 1,00 300/500 CZERWONY | C62: =VLOOKUP(A62,'CET cennik 01 02 2026 wer SHE'!B:I,8,0) -> 1,047.00 zł
A63: KAB10000019-0100 | B63: DY 1,00 300/500 NIEBIESKI | C63: =VLOOKUP(A63,'CET cennik 01 02 2026 wer SHE'!B:I,8,0) -> 1,047.00 zł
A64: KAB10000019-0500 | B64: DY 1,00 300/500 NIEBIESKI | C64: =VLOOKUP(A64,'CET cennik 01 02 2026 wer SHE'!B:I,8,0) -> 1,047.00 zł
A65: KAB10000019-1000 | B65: DY 1,00 300/500 NIEBIESKI | C65: =VLOOKUP(A65,'CET cennik 01 02 2026 wer SHE'!B:I,8,0) -> 1,047.00 zł
A66: KAB10000020-0100 | B66: DY 1,00 300/500 ŻÓŁTO-ZIELONY | C66: =VLOOKUP(A66,'CET cennik 01 02 2026 wer SHE'!B:I,8,0) -> 1,047.00 zł
A67: KAB10000020-0500 | B67: DY 1,00 300/500 ŻÓŁTO-ZIELONY | C67: =VLOOKUP(A67,'CET cennik 01 02 2026 wer SHE'!B:I,8,0) -> 1,047.00 zł
A68: KAB10000020-1000 | B68: DY 1,00 300/500 ŻÓŁTO-ZIELONY | C68: =VLOOKUP(A68,'CET cennik 01 02 2026 wer SHE'!B:I,8,0) -> 1,047.00 zł
A69: KAB10000021-0100 | B69: DY 1,50 300/500 BIAŁY | C69: =VLOOKUP(A69,'CET cennik 01 02 2026 wer SHE'!B:I,8,0) -> 1,500.00 zł
A70: KAB10000021-0500 | B70: DY 1,50 300/500 BIAŁY | C70: =VLOOKUP(A70,'CET cennik 01 02 2026 wer SHE'!B:I,8,0) -> 1,500.00 zł
A71: KAB10000021-1000 | B71: DY 1,50 300/500 BIAŁY | C71: =VLOOKUP(A71,'CET cennik 01 02 2026 wer SHE'!B:I,8,0) -> 1,500.00 zł
A72: KAB10000022-0100 | B72: DY 1,50 300/500 BRĄZOWY | C72: =VLOOKUP(A72,'CET cennik 01 02 2026 wer SHE'!B:I,8,0) -> 1,500.00 zł
A73: KAB10000022-0500 | B73: DY 1,50 300/500 BRĄZOWY | C73: =VLOOKUP(A73,'CET cennik 01 02 2026 wer SHE'!B:I,8,0) -> 1,500.00 zł
A74: KAB10000022-1000 | B74: DY 1,50 300/500 BRĄZOWY | C74: =VLOOKUP(A74,'CET cennik 01 02 2026 wer SHE'!B:I,8,0) -> 1,500.00 zł
A75: KAB10000023-0100 | B75: DY 1,50 300/500 CZARNY | C75: =VLOOKUP(A75,'CET cennik 01 02 2026 wer SHE'!B:I,8,0) -> 1,500.00 zł
A76: KAB10000023-0500 | B76: DY 1,50 300/500 CZARNY | C76: =VLOOKUP(A76,'CET cennik 01 02 2026 wer SHE'!B:I,8,0) -> 1,500.00 zł
A77: KAB10000023-1000 | B77: DY 1,50 300/500 CZARNY | C77: =VLOOKUP(A77,'CET cennik 01 02 2026 wer SHE'!B:I,8,0) -> 1,500.00 zł
A78: KAB10000024-0100 | B78: DY 1,50 300/500 CZERWONY | C78: =VLOOKUP(A78,'CET cennik 01 02 2026 wer SHE'!B:I,8,0) -> 1,500.00 zł
A79: KAB10000024-0500 | B79: DY 1,50 300/500 CZERWONY | C79: =VLOOKUP(A79,'CET cennik 01 02 2026 wer SHE'!B:I,8,0) -> 1,500.00 zł
A80: KAB10000024-1000 | B80: DY 1,50 300/500 CZERWONY | C80: =VLOOKUP(A80,'CET cennik 01 02 2026 wer SHE'!B:I,8,0) -> 1,500.00 zł
A81: KAB10000025-0100 | B81: DY 1,50 300/500 NIEBIESKI | C81: =VLOOKUP(A81,'CET cennik 01 02 2026 wer SHE'!B:I,8,0) -> 1,500.00 zł
A82: KAB10000025-0500 | B82: DY 1,50 300/500 NIEBIESKI | C82: =VLOOKUP(A82,'CET cennik 01 02 2026 wer SHE'!B:I,8,0) -> 1,500.00 zł
A83: KAB10000025-1000 | B83: DY 1,50 300/500 NIEBIESKI | C83: =VLOOKUP(A83,'CET cennik 01 02 2026 wer SHE'!B:I,8,0) -> 1,500.00 zł
A84: KAB10000027-0100 | B84: DY 1,50 300/500 ŻÓŁTO-ZIELONY | C84: =VLOOKUP(A84,'CET cennik 01 02 2026 wer SHE'!B:I,8,0) -> 1,500.00 zł
A85: KAB10000027-0500 | B85: DY 1,50 300/500 ŻÓŁTO-ZIELONY | C85: =VLOOKUP(A85,'CET cennik 01 02 2026 wer SHE'!B:I,8,0) -> 1,500.00 zł
A86: KAB10000027-1000 | B86: DY 1,50 300/500 ŻÓŁTO-ZIELONY | C86: =VLOOKUP(A86,'CET cennik 01 02 2026 wer SHE'!B:I,8,0) -> 1,500.00 zł
A87: KAB10000032-0100 | B87: DY 2,50 300/500 BRĄZOWY | C87: =VLOOKUP(A87,'CET cennik 01 02 2026 wer SHE'!B:I,8,0) -> 2,383.00 zł
A88: KAB10000032-0500 | B88: DY 2,50 300/500 BRĄZOWY | C88: =VLOOKUP(A88,'CET cennik 01 02 2026 wer SHE'!B:I,8,0) -> 2,383.00 zł
A89: KAB10000032-1000 | B89: DY 2,50 300/500 BRĄZOWY | C89: =VLOOKUP(A89,'CET cennik 01 02 2026 wer SHE'!B:I,8,0) -> 2,383.00 zł
A90: KAB10000033-0100 | B90: DY 2,50 300/500 CZARNY | C90: =VLOOKUP(A90,'CET cennik 01 02 2026 wer SHE'!B:I,8,0) -> 2,383.00 zł
A91: KAB10000033-0500 | B91: DY 2,50 300/500 CZARNY | C91: =VLOOKUP(A91,'CET cennik 01 02 2026 wer SHE'!B:I,8,0) -> 2,383.00 zł
A92: KAB10000033-1000 | B92: DY 2,50 300/500 CZARNY | C92: =VLOOKUP(A92,'CET cennik 01 02 2026 wer SHE'!B:I,8,0) -> 2,383.00 zł
A93: KAB10000034-0100 | B93: DY 2,50 300/500 CZERWONY | C93: =VLOOKUP(A93,'CET cennik 01 02 2026 wer SHE'!B:I,8,0) -> 2,383.00 zł
A94: KAB10000034-0500 | B94: DY 2,50 300/500 CZERWONY | C94: =VLOOKUP(A94,'CET cennik 01 02 2026 wer SHE'!B:I,8,0) -> 2,383.00 zł
A95: KAB10000034-1000 | B95: DY 2,50 300/500 CZERWONY | C95: =VLOOKUP(A95,'CET cennik 01 02 2026 wer SHE'!B:I,8,0) -> 2,383.00 zł
A96: KAB10000035-0100 | B96: DY 2,50 300/500 NIEBIESKI | C96: =VLOOKUP(A96,'CET cennik 01 02 2026 wer SHE'!B:I,8,0) -> 2,383.00 zł
A97: KAB10000035-0500 | B97: DY 2,50 300/500 NIEBIESKI | C97: =VLOOKUP(A97,'CET cennik 01 02 2026 wer SHE'!B:I,8,0) -> 2,383.00 zł
A98: KAB10000035-1000 | B98: DY 2,50 300/500 NIEBIESKI | C98: =VLOOKUP(A98,'CET cennik 01 02 2026 wer SHE'!B:I,8,0) -> 2,383.00 zł
A99: KAB10000036-0100 | B99: DY 2,50 300/500 ŻÓŁTO-ZIELONY | C99: =VLOOKUP(A99,'CET cennik 01 02 2026 wer SHE'!B:I,8,0) -> 2,383.00 zł
A100: KAB10000036-0500 | B100: DY 2,50 300/500 ŻÓŁTO-ZIELONY | C100: =VLOOKUP(A100,'CET cennik 01 02 2026 wer SHE'!B:I,8,0) -> 2,383.00 zł
A101: KAB10000036-1000 | B101: DY 2,50 300/500 ŻÓŁTO-ZIELONY | C101: =VLOOKUP(A101,'CET cennik 01 02 2026 wer SHE'!B:I,8,0) -> 2,383.00 zł
A102: KAB10000041-0100 | B102: DYc 0,50 300/500 BIAŁY | C102: =VLOOKUP(A102,'CET cennik 01 02 2026 wer SHE'!B:I,8,0) -> 643.00 zł
A103: KAB10000041-0500 | B103: DYc 0,50 300/500 BIAŁY | C103: =VLOOKUP(A103,'CET cennik 01 02 2026 wer SHE'!B:I,8,0) -> 643.00 zł
A104: KAB10000041-1000 | B104: DYc 0,50 300/500 BIAŁY | C104: =VLOOKUP(A104,'CET cennik 01 02 2026 wer SHE'!B:I,8,0) -> 643.00 zł
A105: KAB10000042-0500 | B105: DYc 0,50 300/500 CZARNY | C105: =VLOOKUP(A105,'CET cennik 01 02 2026 wer SHE'!B:I,8,0) -> 643.00 zł
A106: KAB10000042-0100 | B106: DYc 0,50 300/500 CZARNY | C106: =VLOOKUP(A106,'CET cennik 01 02 2026 wer SHE'!B:I,8,0) -> 643.00 zł
A107: KAB10000042-1000 | B107: DYc 0,50 300/500 CZARNY | C107: =VLOOKUP(A107,'CET cennik 01 02 2026 wer SHE'!B:I,8,0) -> 643.00 zł
A108: KAB10000043-0500 | B108: DYc 0,50 300/500 NIEBIESKI | C108: =VLOOKUP(A108,'CET cennik 01 02 2026 wer SHE'!B:I,8,0) -> 643.00 zł
A109: KAB10000043-0100 | B109: DYc 0,50 300/500 NIEBIESKI | C109: =VLOOKUP(A109,'CET cennik 01 02 2026 wer SHE'!B:I,8,0) -> 643.00 zł
A110: KAB10000043-1000 | B110: DYc 0,50 300/500 NIEBIESKI | C110: =VLOOKUP(A110,'CET cennik 01 02 2026 wer SHE'!B:I,8,0) -> 643.00 zł
A111: KAB10000046-0100 | B111: DYc 0,50 300/500 ŻÓŁTO-ZIELONY | C111: =VLOOKUP(A111,'CET cennik 01 02 2026 wer SHE'!B:I,8,0) -> 643.00 zł
A112: KAB10000046-0500 | B112: DYc 0,50 300/500 ŻÓŁTO-ZIELONY | C112: =VLOOKUP(A112,'CET cennik 01 02 2026 wer SHE'!B:I,8,0) -> 643.00 zł
A113: KAB10000046-1000 | B113: DYc 0,50 300/500 ŻÓŁTO-ZIELONY | C113: =VLOOKUP(A113,'CET cennik 01 02 2026 wer SHE'!B:I,8,0) -> 643.00 zł
A114: KAB10000047-0100 | B114: DYc 0,75 300/500 BIAŁY | C114: =VLOOKUP(A114,'CET cennik 01 02 2026 wer SHE'!B:I,8,0) -> 916.00 zł
A115: KAB10000047-0500 | B115: DYc 0,75 300/500 BIAŁY | C115: =VLOOKUP(A115,'CET cennik 01 02 2026 wer SHE'!B:I,8,0) -> 916.00 zł
A116: KAB10000047-1000 | B116: DYc 0,75 300/500 BIAŁY | C116: =VLOOKUP(A116,'CET cennik 01 02 2026 wer SHE'!B:I,8,0) -> 916.00 zł
A117: KAB10000048-0100 | B117: DYc 0,75 300/500 CZARNY | C117: =VLOOKUP(A117,'CET cennik 01 02 2026 wer SHE'!B:I,8,0) -> 916.00 zł
A118: KAB10000048-0200 | B118: DYc 0,75 300/500 CZARNY | C118: =VLOOKUP(A118,'CET cennik 01 02 2026 wer SHE'!B:I,8,0) -> 916.00 zł
A119: KAB10000048-0500 | B119: DYc 0,75 300/500 CZARNY | C119: =VLOOKUP(A119,'CET cennik 01 02 2026 wer SHE'!B:I,8,0) -> 916.00 zł
A120: KAB10000048-1000 | B120: DYc 0,75 300/500 CZARNY | C120: =VLOOKUP(A120,'CET cennik 01 02 2026 wer SHE'!B:I,8,0) -> 916.00 zł
A121: KAB10000049-0100 | B121: DYc 0,75 300/500 CZERWONY | C121: =VLOOKUP(A121,'CET cennik 01 02 2026 wer SHE'!B:I,8,0) -> 916.00 zł
A122: KAB10000049-0200 | B122: DYc 0,75 300/500 CZERWONY | C122: =VLOOKUP(A122,'CET cennik 01 02 2026 wer SHE'!B:I,8,0) -> 916.00 zł
A123: KAB10000049-0500 | B123: DYc 0,75 300/500 CZERWONY | C123: =VLOOKUP(A123,'CET cennik 01 02 2026 wer SHE'!B:I,8,0) -> 916.00 zł
A124: KAB10000049-1000 | B124: DYc 0,75 300/500 CZERWONY | C124: =VLOOKUP(A124,'CET cennik 01 02 2026 wer SHE'!B:I,8,0) -> 916.00 zł
A125: KAB10000050-0100 | B125: DYc 0,75 300/500 NIEBIESKI | C125: =VLOOKUP(A125,'CET cennik 01 02 2026 wer SHE'!B:I,8,0) -> 916.00 zł
A126: KAB10000050-0200 | B126: DYc 0,75 300/500 NIEBIESKI | C126: =VLOOKUP(A126,'CET cennik 01 02 2026 wer SHE'!B:I,8,0) -> 916.00 zł
A127: KAB10000050-0500 | B127: DYc 0,75 300/500 NIEBIESKI | C127: =VLOOKUP(A127,'CET cennik 01 02 2026 wer SHE'!B:I,8,0) -> 916.00 zł
A128: KAB10000050-1000 | B128: DYc 0,75 300/500 NIEBIESKI | C128: =VLOOKUP(A128,'CET cennik 01 02 2026 wer SHE'!B:I,8,0) -> 916.00 zł
A129: KAB10000051-0100 | B129: DYc 1,00 300/500 BIAŁY | C129: =VLOOKUP(A129,'CET cennik 01 02 2026 wer SHE'!B:I,8,0) -> 1,087.00 zł
A130: KAB10000051-0500 | B130: DYc 1,00 300/500 BIAŁY | C130: =VLOOKUP(A130,'CET cennik 01 02 2026 wer SHE'!B:I,8,0) -> 1,087.00 zł
A131: KAB10000051-1000 | B131: DYc 1,00 300/500 BIAŁY | C131: =VLOOKUP(A131,'CET cennik 01 02 2026 wer SHE'!B:I,8,0) -> 1,087.00 zł
A132: KAB10000052-0100 | B132: DYc 1,50 300/500 BIAŁY | C132: =VLOOKUP(A132,'CET cennik 01 02 2026 wer SHE'!B:I,8,0) -> 1,551.00 zł
A133: KAB10000052-0500 | B133: DYc 1,50 300/500 BIAŁY | C133: =VLOOKUP(A133,'CET cennik 01 02 2026 wer SHE'!B:I,8,0) -> 1,551.00 zł
A134: KAB10000052-1000 | B134: DYc 1,50 300/500 BIAŁY | C134: =VLOOKUP(A134,'CET cennik 01 02 2026 wer SHE'!B:I,8,0) -> 1,551.00 zł
A135: KAB10000053-0100 | B135: DYc 1,50 300/500 ŻÓŁTO-ZIELONY | C135: =VLOOKUP(A135,'CET cennik 01 02 2026 wer SHE'!B:I,8,0) -> 1,551.00 zł
A136: KAB10000053-0500 | B136: DYc 1,50 300/500 ŻÓŁTO-ZIELONY | C136: =VLOOKUP(A136,'CET cennik 01 02 2026 wer SHE'!B:I,8,0) -> 1,551.00 zł
A137: KAB10000053-1000 | B137: DYc 1,50 300/500 ŻÓŁTO-ZIELONY | C137: =VLOOKUP(A137,'CET cennik 01 02 2026 wer SHE'!B:I,8,0) -> 1,551.00 zł
A138: KAB10000714-0500 | B138: DYc 1,50 300/500 CZARNY | C138: =VLOOKUP(A138,'CET cennik 01 02 2026 wer SHE'!B:I,8,0) -> 1,551.00 zł
A139: KAB10000714-1000 | B139: DYc 1,50 300/500 CZARNY | C139: =VLOOKUP(A139,'CET cennik 01 02 2026 wer SHE'!B:I,8,0) -> 1,551.00 zł
A140: KAB10000714-0100 | B140: DYc 1,50 300/500 CZARNY | C140: =VLOOKUP(A140,'CET cennik 01 02 2026 wer SHE'!B:I,8,0) -> 1,551.00 zł
A141: KAB10000139-0100 | B141: LgY 1x0,50 300/500 BIAŁY | C141: =VLOOKUP(A141,'CET cennik 01 02 2026 wer SHE'!B:I,8,0) -> 595.00 zł
A142: KAB10000139-0500 | B142: LgY 1x0,50 300/500 BIAŁY | C142: =VLOOKUP(A142,'CET cennik 01 02 2026 wer SHE'!B:I,8,0) -> 595.00 zł
A143: KAB10000139-1000 | B143: LgY 1x0,50 300/500 BIAŁY | C143: =VLOOKUP(A143,'CET cennik 01 02 2026 wer SHE'!B:I,8,0) -> 595.00 zł
A144: KAB10000140-0100 | B144: LgY 1x0,50 300/500 BRĄZOWY | C144: =VLOOKUP(A144,'CET cennik 01 02 2026 wer SHE'!B:I,8,0) -> 595.00 zł
A145: KAB10000140-0500 | B145: LgY 1x0,50 300/500 BRĄZOWY | C145: =VLOOKUP(A145,'CET cennik 01 02 2026 wer SHE'!B:I,8,0) -> 595.00 zł
A146: KAB10000140-1000 | B146: LgY 1x0,50 300/500 BRĄZOWY | C146: =VLOOKUP(A146,'CET cennik 01 02 2026 wer SHE'!B:I,8,0) -> 595.00 zł
A147: KAB10000142-0100 | B147: LgY 1x0,50 300/500 CZARNY | C147: =VLOOKUP(A147,'CET cennik 01 02 2026 wer SHE'!B:I,8,0) -> 595.00 zł
A148: KAB10000142-0500 | B148: LgY 1x0,50 300/500 CZARNY | C148: =VLOOKUP(A148,'CET cennik 01 02 2026 wer SHE'!B:I,8,0) -> 595.00 zł
A149: KAB10000142-1000 | B149: LgY 1x0,50 300/500 CZARNY | C149: =VLOOKUP(A149,'CET cennik 01 02 2026 wer SHE'!B:I,8,0) -> 595.00 zł
A150: KAB10000143-0100 | B150: LgY 1x0,50 300/500 CZERWONY | C150: =VLOOKUP(A150,'CET cennik 01 02 2026 wer SHE'!B:I,8,0) -> 595.00 zł
A151: KAB10000143-0500 | B151: LgY 1x0,50 300/500 CZERWONY | C151: =VLOOKUP(A151,'CET cennik 01 02 2026 wer SHE'!B:I,8,0) -> 595.00 zł
A152: KAB10000143-1000 | B152: LgY 1x0,50 300/500 CZERWONY | C152: =VLOOKUP(A152,'CET cennik 01 02 2026 wer SHE'!B:I,8,0) -> 595.00 zł
A153: KAB10000143-5000 | B153: LgY 1x0,50 300/500 CZERWONY | C153: =VLOOKUP(A153,'CET cennik 01 02 2026 wer SHE'!B:I,8,0) -> 595.00 zł
A154: KAB10000144-0100 | B154: LgY 1x0,50 300/500 NIEBIESKI | C154: =VLOOKUP(A154,'CET cennik 01 02 2026 wer SHE'!B:I,8,0) -> 595.00 zł
A155: KAB10000144-0500 | B155: LgY 1x0,50 300/500 NIEBIESKI | C155: =VLOOKUP(A155,'CET cennik 01 02 2026 wer SHE'!B:I,8,0) -> 595.00 zł
A156: KAB10000144-1000 | B156: LgY 1x0,50 300/500 NIEBIESKI | C156: =VLOOKUP(A156,'CET cennik 01 02 2026 wer SHE'!B:I,8,0) -> 595.00 zł
A157: KAB10000144-5000 | B157: LgY 1x0,50 300/500 NIEBIESKI | C157: =VLOOKUP(A157,'CET cennik 01 02 2026 wer SHE'!B:I,8,0) -> 595.00 zł
A158: KAB10000146-0100 | B158: LgY 1x0,50 300/500 ŻÓŁTO-ZIELONY | C158: =VLOOKUP(A158,'CET cennik 01 02 2026 wer SHE'!B:I,8,0) -> 595.00 zł
A159: KAB10000146-0500 | B159: LgY 1x0,50 300/500 ŻÓŁTO-ZIELONY | C159: =VLOOKUP(A159,'CET cennik 01 02 2026 wer SHE'!B:I,8,0) -> 595.00 zł
A160: KAB10000146-1000 | B160: LgY 1x0,50 300/500 ŻÓŁTO-ZIELONY | C160: =VLOOKUP(A160,'CET cennik 01 02 2026 wer SHE'!B:I,8,0) -> 595.00 zł
A161: KAB10000146-5000 | B161: LgY 1x0,50 300/500 ŻÓŁTO-ZIELONY | C161: =VLOOKUP(A161,'CET cennik 01 02 2026 wer SHE'!B:I,8,0) -> 595.00 zł
A162: KAB10000147-0100 | B162: LgY 1x0,75 300/500 BIAŁY | C162: =VLOOKUP(A162,'CET cennik 01 02 2026 wer SHE'!B:I,8,0) -> 787.00 zł
A163: KAB10000147-0500 | B163: LgY 1x0,75 300/500 BIAŁY | C163: =VLOOKUP(A163,'CET cennik 01 02 2026 wer SHE'!B:I,8,0) -> 787.00 zł
A164: KAB10000147-1000 | B164: LgY 1x0,75 300/500 BIAŁY | C164: =VLOOKUP(A164,'CET cennik 01 02 2026 wer SHE'!B:I,8,0) -> 787.00 zł
A165: KAB10000148-0100 | B165: LgY 1x0,75 300/500 BRĄZOWY | C165: =VLOOKUP(A165,'CET cennik 01 02 2026 wer SHE'!B:I,8,0) -> 787.00 zł
A166: KAB10000148-0500 | B166: LgY 1x0,75 300/500 BRĄZOWY | C166: =VLOOKUP(A166,'CET cennik 01 02 2026 wer SHE'!B:I,8,0) -> 787.00 zł
A167: KAB10000148-1000 | B167: LgY 1x0,75 300/500 BRĄZOWY | C167: =VLOOKUP(A167,'CET cennik 01 02 2026 wer SHE'!B:I,8,0) -> 787.00 zł
A168: KAB10000149-0100 | B168: LgY 1x0,75 300/500 CZARNY | C168: =VLOOKUP(A168,'CET cennik 01 02 2026 wer SHE'!B:I,8,0) -> 787.00 zł
A169: KAB10000149-0500 | B169: LgY 1x0,75 300/500 CZARNY | C169: =VLOOKUP(A169,'CET cennik 01 02 2026 wer SHE'!B:I,8,0) -> 787.00 zł
A170: KAB10000149-1000 | B170: LgY 1x0,75 300/500 CZARNY | C170: =VLOOKUP(A170,'CET cennik 01 02 2026 wer SHE'!B:I,8,0) -> 787.00 zł
A171: KAB10000150-0100 | B171: LgY 1x0,75 300/500 CZERWONY | C171: =VLOOKUP(A171,'CET cennik 01 02 2026 wer SHE'!B:I,8,0) -> 787.00 zł
A172: KAB10000150-0500 | B172: LgY 1x0,75 300/500 CZERWONY | C172: =VLOOKUP(A172,'CET cennik 01 02 2026 wer SHE'!B:I,8,0) -> 787.00 zł
A173: KAB10000150-1000 | B173: LgY 1x0,75 300/500 CZERWONY | C173: =VLOOKUP(A173,'CET cennik 01 02 2026 wer SHE'!B:I,8,0) -> 787.00 zł
A174: KAB10000150-5000 | B174: LgY 1x0,75 300/500 CZERWONY | C174: =VLOOKUP(A174,'CET cennik 01 02 2026 wer SHE'!B:I,8,0) -> 787.00 zł
A175: KAB10000151-0100 | B175: LgY 1x0,75 300/500 NIEBIESKI | C175: =VLOOKUP(A175,'CET cennik 01 02 2026 wer SHE'!B:I,8,0) -> 787.00 zł
A176: KAB10000151-0500 | B176: LgY 1x0,75 300/500 NIEBIESKI | C176: =VLOOKUP(A176,'CET cennik 01 02 2026 wer SHE'!B:I,8,0) -> 787.00 zł
A177: KAB10000151-1000 | B177: LgY 1x0,75 300/500 NIEBIESKI | C177: =VLOOKUP(A177,'CET cennik 01 02 2026 wer SHE'!B:I,8,0) -> 787.00 zł
A178: KAB10000153-0100 | B178: LgY 1x0,75 300/500 ŻÓŁTY | C178: =VLOOKUP(A178,'CET cennik 01 02 2026 wer SHE'!B:I,8,0) -> 787.00 zł
A179: KAB10000153-0500 | B179: LgY 1x0,75 300/500 ŻÓŁTY | C179: =VLOOKUP(A179,'CET cennik 01 02 2026 wer SHE'!B:I,8,0) -> 787.00 zł
A180: KAB10000153-1000 | B180: LgY 1x0,75 300/500 ŻÓŁTY | C180: =VLOOKUP(A180,'CET cennik 01 02 2026 wer SHE'!B:I,8,0) -> 787.00 zł
A181: KAB10000154-0100 | B181: LgY 1x0,75 300/500 ŻÓŁTO-ZIELONY | C181: =VLOOKUP(A181,'CET cennik 01 02 2026 wer SHE'!B:I,8,0) -> 787.00 zł
A182: KAB10000154-0500 | B182: LgY 1x0,75 300/500 ŻÓŁTO-ZIELONY | C182: =VLOOKUP(A182,'CET cennik 01 02 2026 wer SHE'!B:I,8,0) -> 787.00 zł
A183: KAB10000154-1000 | B183: LgY 1x0,75 300/500 ŻÓŁTO-ZIELONY | C183: =VLOOKUP(A183,'CET cennik 01 02 2026 wer SHE'!B:I,8,0) -> 787.00 zł
A184: KAB10000154-5000 | B184: LgY 1x0,75 300/500 ŻÓŁTO-ZIELONY | C184: =VLOOKUP(A184,'CET cennik 01 02 2026 wer SHE'!B:I,8,0) -> 787.00 zł
A185: KAB10000155-0100 | B185: LgY 1x0,75 450/750 NIEBIESKI | C185: =VLOOKUP(A185,'CET cennik 01 02 2026 wer SHE'!B:I,8,0) -> 787.00 zł
A186: KAB10000155-0500 | B186: LgY 1x0,75 450/750 NIEBIESKI | C186: =VLOOKUP(A186,'CET cennik 01 02 2026 wer SHE'!B:I,8,0) -> 787.00 zł
A187: KAB10000155-1000 | B187: LgY 1x0,75 450/750 NIEBIESKI | C187: =VLOOKUP(A187,'CET cennik 01 02 2026 wer SHE'!B:I,8,0) -> 787.00 zł
A188: KAB10000156-0100 | B188: LgY 1x1,00 300/500 BIAŁY | C188: =VLOOKUP(A188,'CET cennik 01 02 2026 wer SHE'!B:I,8,0) -> 1,003.00 zł
A189: KAB10000156-0500 | B189: LgY 1x1,00 300/500 BIAŁY | C189: =VLOOKUP(A189,'CET cennik 01 02 2026 wer SHE'!B:I,8,0) -> 1,003.00 zł
A190: KAB10000156-1000 | B190: LgY 1x1,00 300/500 BIAŁY | C190: =VLOOKUP(A190,'CET cennik 01 02 2026 wer SHE'!B:I,8,0) -> 1,003.00 zł
A191: KAB10000157-0100 | B191: LgY 1x1,00 300/500 BRĄZOWY | C191: =VLOOKUP(A191,'CET cennik 01 02 2026 wer SHE'!B:I,8,0) -> 1,003.00 zł
A192: KAB10000157-0500 | B192: LgY 1x1,00 300/500 BRĄZOWY | C192: =VLOOKUP(A192,'CET cennik 01 02 2026 wer SHE'!B:I,8,0) -> 1,003.00 zł
A193: KAB10000157-1000 | B193: LgY 1x1,00 300/500 BRĄZOWY | C193: =VLOOKUP(A193,'CET cennik 01 02 2026 wer SHE'!B:I,8,0) -> 1,003.00 zł
A194: KAB10000158-0100 | B194: LgY 1x1,00 300/500 CZARNY | C194: =VLOOKUP(A194,'CET cennik 01 02 2026 wer SHE'!B:I,8,0) -> 1,003.00 zł
A195: KAB10000158-0500 | B195: LgY 1x1,00 300/500 CZARNY | C195: =VLOOKUP(A195,'CET cennik 01 02 2026 wer SHE'!B:I,8,0) -> 1,003.00 zł
A196: KAB10000158-1000 | B196: LgY 1x1,00 300/500 CZARNY | C196: =VLOOKUP(A196,'CET cennik 01 02 2026 wer SHE'!B:I,8,0) -> 1,003.00 zł
A197: KAB10000159-0100 | B197: LgY 1x1,00 300/500 CZERWONY | C197: =VLOOKUP(A197,'CET cennik 01 02 2026 wer SHE'!B:I,8,0) -> 1,003.00 zł
A198: KAB10000159-0500 | B198: LgY 1x1,00 300/500 CZERWONY | C198: =VLOOKUP(A198,'CET cennik 01 02 2026 wer SHE'!B:I,8,0) -> 1,003.00 zł
A199: KAB10000159-1000 | B199: LgY 1x1,00 300/500 CZERWONY | C199: =VLOOKUP(A199,'CET cennik 01 02 2026 wer SHE'!B:I,8,0) -> 1,003.00 zł
A200: KAB10000160-0100 | B200: LgY 1x1,00 300/500 NIEBIESKI | C200: =VLOOKUP(A200,'CET cennik 01 02 2026 wer SHE'!B:I,8,0) -> 1,003.00 zł
... 1379 more rows

Sheet Arkusz1
